Workbook

Sheet Visibility (hidden)
I2: Hide Based on Characteristic
B3: ComponentVisibility | C3: Hide Row(s) | E3: Hide Colum(s) | K3: IsPrograms | P3: HDC Use Only
B4: SheetName | C4: StartRow | D4: EndRow | E4: StartCol | F4: EndCol | G4: Visible | H4: Description | I4: Force True | J4: Force False | K4: Program True | R4: Reviewer 1 | S4: Reviewer 2 | T4: Manager Review
B5: Application Support | G5: =OR(ComponentVisibility[[#This Row],[Force True]],AND(ComponentVisibility[[#This Row],[Program True]],NOT(ComponentVisibility[[#This Row],[Force False]]))) -> FALSE | H5: Vissible Sheet if "TRUE" | I5: =OR(IsCalhome,IsJSerna) -> FALSE | K5: FALSE | P5: Start CalHome Threshold review?
B6: CalHome Threshold Requirements | C6: =ROW('CalHome Threshold Requirements'!A16) -> 16 | D6: =ROW('CalHome Threshold Requirements'!A16) -> 16 | G6: =OR(ComponentVisibility[[#This Row],[Force True]],AND(ComponentVisibility[[#This Row],[Program True]],NOT(ComponentVisibility[[#This Row],[Force False]]))) -> FALSE | H6: Vissible Sheet if "TRUE" | I6: =vmApplicant1Type="Local Public Entity" -> FALSE | K6: FALSE | P6: Start Serna Threshold review?
B7: CalHome Threshold Requirements | C7: =ROW('CalHome Threshold Requirements'!A17) -> 17 | D7: =ROW('CalHome Threshold Requirements'!A17) -> 17 | G7: =OR(ComponentVisibility[[#This Row],[Force True]],AND(ComponentVisibility[[#This Row],[Program True]],NOT(ComponentVisibility[[#This Row],[Force False]]))) -> FALSE | H7: Vissible Sheet if "TRUE" | I7: =IF(vmApplicant1Type="Local Public Entity",TRUE,FALSE) -> FALSE | K7: FALSE | P7: Start HOSN Scoring review?
B8: CalHome Threshold Requirements | C8: =ROW('CalHome Threshold Requirements'!A18) -> 18 | D8: =ROW('CalHome Threshold Requirements'!A18) -> 18 | G8: =OR(ComponentVisibility[[#This Row],[Force True]],AND(ComponentVisibility[[#This Row],[Program True]],NOT(ComponentVisibility[[#This Row],[Force False]]))) -> FALSE | H8: Vissible row(s) if "TRUE" | I8: =IF(vmApplicant1Type="Tribal Entity",TRUE,FALSE) -> FALSE | K8: FALSE | P8: Start Tribal NOFA Scoring review?
B9: CalHome Threshold Requirements | C9: =ROW('CalHome Threshold Requirements'!A20) -> 20 | D9: =ROW('CalHome Threshold Requirements'!A28) -> 28 | G9: =OR(ComponentVisibility[[#This Row],[Force True]],AND(ComponentVisibility[[#This Row],[Program True]],NOT(ComponentVisibility[[#This Row],[Force False]]))) -> FALSE | H9: Vissible row(s) if "TRUE" | I9: =OR(vmApplicant1Type="Tribal Entity",vmApplicant1Type="Nonprofit Corporation") -> FALSE | K9: FALSE
B10: CalHome Threshold Requirements | C10: =ROW('CalHome Threshold Requirements'!A22) -> 22 | D10: =ROW('CalHome Threshold Requirements'!A25) -> 25 | G10: =OR(ComponentVisibility[[#This Row],[Force True]],AND(ComponentVisibility[[#This Row],[Program True]],NOT(ComponentVisibility[[#This Row],[Force False]]))) -> FALSE | H10: Vissible row(s) if "TRUE" | I10: =vmCDO="Yes" -> FALSE | K10: FALSE
B11: CalHome Threshold Requirements | C11: =ROW('CalHome Threshold Requirements'!A27) -> 27 | D11: =ROW('CalHome Threshold Requirements'!A27) -> 27 | G11: =OR(ComponentVisibility[[#This Row],[Force True]],AND(ComponentVisibility[[#This Row],[Program True]],NOT(ComponentVisibility[[#This Row],[Force False]]))) -> FALSE | H11: Vissible row(s) if "TRUE" | I11: =vm523SH="Yes" -> FALSE | K11: FALSE
B12: CalHome Threshold Requirements | C12: =ROW('CalHome Threshold Requirements'!A34) -> 34 | D12: =ROW('CalHome Threshold Requirements'!A35) -> 35 | G12: =OR(ComponentVisibility[[#This Row],[Force True]],AND(ComponentVisibility[[#This Row],[Program True]],NOT(ComponentVisibility[[#This Row],[Force False]]))) -> FALSE | H12: Vissible row(s) if "TRUE" | I12: =vmC2years="Yes" -> FALSE | K12: FALSE
B13: CalHome Threshold Requirements | C13: =ROW('CalHome Threshold Requirements'!A36) -> 36 | D13: =ROW('CalHome Threshold Requirements'!A37) -> 37 | G13: =OR(ComponentVisibility[[#This Row],[Force True]],AND(ComponentVisibility[[#This Row],[Program True]],NOT(ComponentVisibility[[#This Row],[Force False]]))) -> FALSE | H13: Vissible row(s) if "TRUE" | I13: =AND(vmApplicant1Type="Tribal Entity",vmC2years="No") -> FALSE | K13: FALSE
B14: CalHome Threshold Requirements | C14: =ROW('CalHome Threshold Requirements'!A38) -> 38 | D14: =ROW('CalHome Threshold Requirements'!A38) -> 38 | G14: =OR(ComponentVisibility[[#This Row],[Force True]],AND(ComponentVisibility[[#This Row],[Program True]],NOT(ComponentVisibility[[#This Row],[Force False]]))) -> FALSE | H14: Vissible row(s) if "TRUE" | I14: =IF(OR(vmApplicant1Type="Local Public Entity",vmApplicant1Type="Tribal Entity"),TRUE,FALSE) -> FALSE | K14: FALSE
B15: CalHome Threshold Requirements | C15: =ROW('CalHome Threshold Requirements'!A39) -> 39 | D15: =ROW('CalHome Threshold Requirements'!A45) -> 45 | G15: =OR(ComponentVisibility[[#This Row],[Force True]],AND(ComponentVisibility[[#This Row],[Program True]],NOT(ComponentVisibility[[#This Row],[Force False]]))) -> FALSE | H15: Vissible row(s) if "TRUE" | I15: =vmCLocalityAS="Yes" -> FALSE | K15: FALSE
B16: CalHome Threshold Requirements | C16: =ROW('CalHome Threshold Requirements'!A41) -> 41 | D16: =ROW('CalHome Threshold Requirements'!A48) -> 48 | G16: =OR(ComponentVisibility[[#This Row],[Force True]],AND(ComponentVisibility[[#This Row],[Program True]],NOT(ComponentVisibility[[#This Row],[Force False]]))) -> FALSE | H16: Vissible row(s) if "TRUE" | I16: =IF(OR(vmApplicant1Type="Local Public Entity",vmApplicant1Type="Tribal Entity"),TRUE,FALSE) -> FALSE | K16: FALSE
B17: CalHome Threshold Requirements | C17: =ROW('CalHome Threshold Requirements'!A47) -> 47 | D17: =ROW('CalHome Threshold Requirements'!A48) -> 48 | G17: =OR(ComponentVisibility[[#This Row],[Force True]],AND(ComponentVisibility[[#This Row],[Program True]],NOT(ComponentVisibility[[#This Row],[Force False]]))) -> FALSE | H17: Vissible row(s) if "TRUE" | I17: =vmCCA="Yes" -> FALSE | K17: FALSE
B18: CalHome Threshold Requirements | C18: =ROW('CalHome Threshold Requirements'!A50) -> 50 | D18: =ROW('CalHome Threshold Requirements'!A55) -> 55 | G18: =OR(ComponentVisibility[[#This Row],[Force True]],AND(ComponentVisibility[[#This Row],[Program True]],NOT(ComponentVisibility[[#This Row],[Force False]]))) -> FALSE | H18: Vissible row(s) if "TRUE" | I18: =vmApplicant1Type="Nonprofit Corporation" -> FALSE | K18: FALSE
B19: CalHome Threshold Requirements | C19: =ROW('CalHome Threshold Requirements'!A63) -> 63 | D19: =ROW('CalHome Threshold Requirements'!A65) -> 65 | G19: =OR(ComponentVisibility[[#This Row],[Force True]],AND(ComponentVisibility[[#This Row],[Program True]],NOT(ComponentVisibility[[#This Row],[Force False]]))) -> FALSE | H19: Vissible row(s) if "TRUE" | I19: =vmCRE="Yes" -> FALSE | K19: FALSE
B20: CalHome Threshold Requirements | C20: =ROW('CalHome Threshold Requirements'!A67) -> 67 | D20: =ROW('CalHome Threshold Requirements'!A69) -> 69 | G20: =OR(ComponentVisibility[[#This Row],[Force True]],AND(ComponentVisibility[[#This Row],[Program True]],NOT(ComponentVisibility[[#This Row],[Force False]]))) -> FALSE | H20: Vissible row(s) if "TRUE" | I20: =vmCBDFT="Yes" -> FALSE | K20: FALSE
B21: CalHome Threshold Requirements | C21: =ROW('CalHome Threshold Requirements'!A74) -> 74 | D21: =ROW('CalHome Threshold Requirements'!A77) -> 77 | G21: =OR(ComponentVisibility[[#This Row],[Force True]],AND(ComponentVisibility[[#This Row],[Program True]],NOT(ComponentVisibility[[#This Row],[Force False]]))) -> FALSE | H21: Vissible row(s) if "TRUE" | I21: =vmIsHDPL="Yes" -> FALSE | K21: FALSE
B22: CalHome Threshold Requirements | C22: =ROW('CalHome Threshold Requirements'!A78) -> 78 | D22: =ROW('CalHome Threshold Requirements'!A78) -> 78 | G22: =OR(ComponentVisibility[[#This Row],[Force True]],AND(ComponentVisibility[[#This Row],[Program True]],NOT(ComponentVisibility[[#This Row],[Force False]]))) -> FALSE | H22: Vissible row(s) if "TRUE" | I22: =vmCWE="Yes" -> FALSE | K22: FALSE
B23: CalHome Threshold Requirements | C23: =ROW('CalHome Threshold Requirements'!A79) -> 79 | D23: =ROW('CalHome Threshold Requirements'!A79) -> 79 | G23: =OR(ComponentVisibility[[#This Row],[Force True]],AND(ComponentVisibility[[#This Row],[Program True]],NOT(ComponentVisibility[[#This Row],[Force False]]))) -> FALSE | H23: Vissible row(s) if "TRUE" | I23: =vmIsSHTA="Yes" -> FALSE | K23: FALSE
B24: CalHome Threshold Requirements | C24: =ROW('CalHome Threshold Requirements'!A80) -> 80 | D24: =ROW('CalHome Threshold Requirements'!A80) -> 80 | G24: =OR(ComponentVisibility[[#This Row],[Force True]],AND(ComponentVisibility[[#This Row],[Program True]],NOT(ComponentVisibility[[#This Row],[Force False]]))) -> FALSE | H24: Vissible row(s) if "TRUE" | I24: =vmIsMA="Yes" -> FALSE | K24: FALSE
B25: CalHome Threshold Requirements | C25: =ROW('CalHome Threshold Requirements'!A81) -> 81 | D25: =ROW('CalHome Threshold Requirements'!A81) -> 81 | G25: =OR(ComponentVisibility[[#This Row],[Force True]],AND(ComponentVisibility[[#This Row],[Program True]],NOT(ComponentVisibility[[#This Row],[Force False]]))) -> FALSE | H25: Vissible row(s) if "TRUE" | I25: =vmIsOOR="Yes" -> FALSE | K25: FALSE
B26: CalHome Threshold Requirements | C26: =ROW('CalHome Threshold Requirements'!A82) -> 82 | D26: =ROW('CalHome Threshold Requirements'!A82) -> 82 | G26: =OR(ComponentVisibility[[#This Row],[Force True]],AND(ComponentVisibility[[#This Row],[Program True]],NOT(ComponentVisibility[[#This Row],[Force False]]))) -> FALSE | H26: Vissible row(s) if "TRUE" | I26: =vmIsSH="Yes" -> FALSE | K26: FALSE
B27: CalHome Threshold Requirements | C27: =ROW('CalHome Threshold Requirements'!A83) -> 83 | D27: =ROW('CalHome Threshold Requirements'!A83) -> 83 | G27: =OR(ComponentVisibility[[#This Row],[Force True]],AND(ComponentVisibility[[#This Row],[Program True]],NOT(ComponentVisibility[[#This Row],[Force False]]))) -> FALSE | H27: Vissible row(s) if "TRUE" | I27: =vmIsJADU="Yes" -> FALSE | K27: FALSE
B28: CalHome Threshold Requirements | C28: =ROW('CalHome Threshold Requirements'!A88) -> 88 | D28: =ROW('CalHome Threshold Requirements'!A88) -> 88 | G28: =OR(ComponentVisibility[[#This Row],[Force True]],AND(ComponentVisibility[[#This Row],[Program True]],NOT(ComponentVisibility[[#This Row],[Force False]]))) -> FALSE | H28: Vissible row(s) if "TRUE" | I28: =vmIsHDPL="Yes" -> FALSE | K28: FALSE
B29: CalHome Threshold Requirements | C29: =ROW('CalHome Threshold Requirements'!A89) -> 89 | D29: =ROW('CalHome Threshold Requirements'!A89) -> 89 | G29: =OR(ComponentVisibility[[#This Row],[Force True]],AND(ComponentVisibility[[#This Row],[Program True]],NOT(ComponentVisibility[[#This Row],[Force False]]))) -> FALSE | H29: Vissible row(s) if "TRUE" | I29: =vmIsSHTA="Yes" -> FALSE | K29: FALSE
B30: CalHome Threshold Requirements | C30: =ROW('CalHome Threshold Requirements'!A90) -> 90 | D30: =ROW('CalHome Threshold Requirements'!A90) -> 90 | G30: =OR(ComponentVisibility[[#This Row],[Force True]],AND(ComponentVisibility[[#This Row],[Program True]],NOT(ComponentVisibility[[#This Row],[Force False]]))) -> FALSE | H30: Vissible row(s) if "TRUE" | I30: =vmIsMA="Yes" -> FALSE | K30: FALSE
B31: CalHome Threshold Requirements | C31: =ROW('CalHome Threshold Requirements'!A91) -> 91 | D31: =ROW('CalHome Threshold Requirements'!A91) -> 91 | G31: =OR(ComponentVisibility[[#This Row],[Force True]],AND(ComponentVisibility[[#This Row],[Program True]],NOT(ComponentVisibility[[#This Row],[Force False]]))) -> FALSE | H31: Vissible row(s) if "TRUE" | I31: =vmIsOOR="Yes" -> FALSE | K31: FALSE
B32: CalHome Threshold Requirements | C32: =ROW('CalHome Threshold Requirements'!A92) -> 92 | D32: =ROW('CalHome Threshold Requirements'!A92) -> 92 | G32: =OR(ComponentVisibility[[#This Row],[Force True]],AND(ComponentVisibility[[#This Row],[Program True]],NOT(ComponentVisibility[[#This Row],[Force False]]))) -> FALSE | H32: Vissible row(s) if "TRUE" | I32: =vmIsSH="Yes" -> FALSE | K32: FALSE
B33: CalHome Threshold Requirements | C33: =ROW('CalHome Threshold Requirements'!A93) -> 93 | D33: =ROW('CalHome Threshold Requirements'!A93) -> 93 | G33: =OR(ComponentVisibility[[#This Row],[Force True]],AND(ComponentVisibility[[#This Row],[Program True]],NOT(ComponentVisibility[[#This Row],[Force False]]))) -> FALSE | H33: Vissible row(s) if "TRUE" | I33: =vmIsJADU="Yes" -> FALSE | K33: FALSE
B34: CalHome Threshold Requirements | C34: =ROW('CalHome Threshold Requirements'!A98) -> 98 | D34: =ROW('CalHome Threshold Requirements'!A105) -> 105 | G34: =OR(ComponentVisibility[[#This Row],[Force True]],AND(ComponentVisibility[[#This Row],[Program True]],NOT(ComponentVisibility[[#This Row],[Force False]]))) -> FALSE | H34: Vissible row(s) if "TRUE" | I34: =vmIsMA="Yes" -> FALSE | K34: FALSE
B35: CalHome Threshold Requirements | C35: =ROW('CalHome Threshold Requirements'!A106) -> 106 | D35: =ROW('CalHome Threshold Requirements'!A113) -> 113 | G35: =OR(ComponentVisibility[[#This Row],[Force True]],AND(ComponentVisibility[[#This Row],[Program True]],NOT(ComponentVisibility[[#This Row],[Force False]]))) -> FALSE | H35: Vissible row(s) if "TRUE" | I35: =vmIsOOR="Yes" -> FALSE | K35: FALSE
B36: CalHome Threshold Requirements | C36: =ROW('CalHome Threshold Requirements'!A114) -> 114 | D36: =ROW('CalHome Threshold Requirements'!A125) -> 125 | G36: =OR(ComponentVisibility[[#This Row],[Force True]],AND(ComponentVisibility[[#This Row],[Program True]],NOT(ComponentVisibility[[#This Row],[Force False]]))) -> FALSE | H36: Vissible row(s) if "TRUE" | I36: =vmIsSHTA="Yes" -> FALSE | K36: FALSE
B37: CalHome Threshold Requirements | C37: =ROW('CalHome Threshold Requirements'!A126) -> 126 | D37: =ROW('CalHome Threshold Requirements'!A133) -> 133 | G37: =OR(ComponentVisibility[[#This Row],[Force True]],AND(ComponentVisibility[[#This Row],[Program True]],NOT(ComponentVisibility[[#This Row],[Force False]]))) -> FALSE | H37: Vissible row(s) if "TRUE" | I37: =vmIsSH="Yes" -> FALSE | K37: FALSE
B38: CalHome Threshold Requirements | C38: =ROW('CalHome Threshold Requirements'!A134) -> 134 | D38: =ROW('CalHome Threshold Requirements'!A142) -> 142 | G38: =OR(ComponentVisibility[[#This Row],[Force True]],AND(ComponentVisibility[[#This Row],[Program True]],NOT(ComponentVisibility[[#This Row],[Force False]]))) -> FALSE | H38: Vissible row(s) if "TRUE" | I38: =vmIsJADU="Yes" -> FALSE | K38: FALSE
B39: CalHome Threshold Requirements | C39: =ROW('CalHome Threshold Requirements'!A143) -> 143 | D39: =ROW('CalHome Threshold Requirements'!A146) -> 146 | G39: =OR(ComponentVisibility[[#This Row],[Force True]],AND(ComponentVisibility[[#This Row],[Program True]],NOT(ComponentVisibility[[#This Row],[Force False]]))) -> FALSE | H39: Vissible row(s) if "TRUE" | I39: =vmIsHDPL="Yes" -> FALSE | K39: FALSE
B40: CalHome Threshold Requirements | C40: =ROW('CalHome Threshold Requirements'!A147) -> 147 | D40: =ROW('CalHome Threshold Requirements'!A163) -> 163 | G40: =OR(ComponentVisibility[[#This Row],[Force True]],AND(ComponentVisibility[[#This Row],[Program True]],NOT(ComponentVisibility[[#This Row],[Force False]]))) -> FALSE | H40: Vissible row(s) if "TRUE" | I40: =vmC2P="Yes" -> FALSE | K40: FALSE
B41: CalHome Threshold Requirements | C41: =ROW('CalHome Threshold Requirements'!A164) -> 164 | D41: =ROW('CalHome Threshold Requirements'!A167) -> 167 | G41: =OR(ComponentVisibility[[#This Row],[Force True]],AND(ComponentVisibility[[#This Row],[Program True]],NOT(ComponentVisibility[[#This Row],[Force False]]))) -> FALSE | H41: Vissible row(s) if "TRUE" | I41: =vmHDPLMA="Yes" -> FALSE | K41: FALSE
B42: CalHome Threshold Requirements | E42: =COLUMN('CalHome Threshold Requirements'!AO1) -> 41 | F42: =COLUMN('CalHome Threshold Requirements'!AQ1) -> 43 | G42: =OR(ComponentVisibility[[#This Row],[Force True]],AND(ComponentVisibility[[#This Row],[Program True]],NOT(ComponentVisibility[[#This Row],[Force False]]))) -> FALSE | H42: Vissible row(s) if "TRUE" | I42: =AND(CalHomeTreview="Yes",CalHomeTreviewR1="Yes") -> FALSE | K42: FALSE
B43: CalHome Threshold Requirements | E43: =COLUMN('CalHome Threshold Requirements'!AR2) -> 44 | F43: =COLUMN('CalHome Threshold Requirements'!AT2) -> 46 | G43: =OR(ComponentVisibility[[#This Row],[Force True]],AND(ComponentVisibility[[#This Row],[Program True]],NOT(ComponentVisibility[[#This Row],[Force False]]))) -> FALSE | H43: Vissible row(s) if "TRUE" | I43: =AND(CalHomeTreview="Yes",CalHomeTreviewR2="Yes") -> FALSE | K43: FALSE
B44: CalHome Threshold Requirements | E44: =COLUMN('CalHome Threshold Requirements'!AU3) -> 47 | F44: =COLUMN('CalHome Threshold Requirements'!AW3) -> 49 | G44: =OR(ComponentVisibility[[#This Row],[Force True]],AND(ComponentVisibility[[#This Row],[Program True]],NOT(ComponentVisibility[[#This Row],[Force False]]))) -> FALSE | H44: Vissible row(s) if "TRUE" | I44: =AND(CalHomeTreview="Yes",CalHomeTreviewM="Yes") -> FALSE | K44: FALSE
B45: CalHome Threshold Requirements | G45: =OR(ComponentVisibility[[#This Row],[Force True]],AND(ComponentVisibility[[#This Row],[Program True]],NOT(ComponentVisibility[[#This Row],[Force False]]))) -> FALSE | H45: Vissible Sheet if "TRUE" | I45: =vmIsCalhome="Yes" -> FALSE | K45: FALSE
B46: CountyScores | G46: =OR(ComponentVisibility[[#This Row],[Force True]],AND(ComponentVisibility[[#This Row],[Program True]],NOT(ComponentVisibility[[#This Row],[Force False]]))) -> FALSE | H46: Vissible Sheet if "TRUE" | I46: =OR(IsCalhome,IsJSerna) -> FALSE | K46: FALSE
B47: Document Checklist-Full List | G47: =OR(ComponentVisibility[[#This Row],[Force True]],AND(ComponentVisibility[[#This Row],[Program True]],NOT(ComponentVisibility[[#This Row],[Force False]]))) -> FALSE | H47: Vissible Sheet if "TRUE" | I47: =OR(IsCalhome,IsJSerna) -> FALSE | K47: FALSE
B48: Entity Org Docs | G48: =OR(ComponentVisibility[[#This Row],[Force True]],AND(ComponentVisibility[[#This Row],[Program True]],NOT(ComponentVisibility[[#This Row],[Force False]]))) -> FALSE | H48: Vissible Sheet if "TRUE" | I48: =OR(IsCalhome,IsJSerna) -> FALSE | K48: FALSE
B49: FWHG Threshold Requiremets | C49: =ROW('CalHome Threshold Requirements'!A16) -> 16 | D49: =ROW('CalHome Threshold Requirements'!A19) -> 19 | G49: =OR(ComponentVisibility[[#This Row],[Force True]],AND(ComponentVisibility[[#This Row],[Program True]],NOT(ComponentVisibility[[#This Row],[Force False]]))) -> FALSE | H49: Vissible Sheet if "TRUE" | I49: =vmApplicant1Type="Local Public Entity" -> FALSE | K49: FALSE
B50: FWHG Threshold Requiremets | C50: =ROW('CalHome Threshold Requirements'!A17) -> 17 | D50: =ROW('CalHome Threshold Requirements'!A17) -> 17 | G50: =OR(ComponentVisibility[[#This Row],[Force True]],AND(ComponentVisibility[[#This Row],[Program True]],NOT(ComponentVisibility[[#This Row],[Force False]]))) -> FALSE | H50: Vissible Sheet if "TRUE" | I50: =IF(vmApplicant1Type="Local Public Entity",TRUE,FALSE) -> FALSE | K50: FALSE
B51: FWHG Threshold Requiremets | C51: =ROW('CalHome Threshold Requirements'!A18) -> 18 | D51: =ROW('CalHome Threshold Requirements'!A18) -> 18 | G51: =OR(ComponentVisibility[[#This Row],[Force True]],AND(ComponentVisibility[[#This Row],[Program True]],NOT(ComponentVisibility[[#This Row],[Force False]]))) -> FALSE | H51: Vissible row(s) if "TRUE" | I51: =IF(vmApplicant1Type="Tribal Entity",TRUE,FALSE) -> FALSE | K51: FALSE
B52: FWHG Threshold Requiremets | C52: =ROW('CalHome Threshold Requirements'!A20) -> 20 | D52: =ROW('CalHome Threshold Requirements'!A28) -> 28 | G52: =OR(ComponentVisibility[[#This Row],[Force True]],AND(ComponentVisibility[[#This Row],[Program True]],NOT(ComponentVisibility[[#This Row],[Force False]]))) -> FALSE | H52: Vissible row(s) if "TRUE" | I52: =OR(vmApplicant1Type="Tribal Entity",vmApplicant1Type="Nonprofit Corporation",vmApplicant1Type="Limited Liability Company",vmApplicant1Type="Limited Partnership") -> FALSE | K52: FALSE
B53: FWHG Threshold Requiremets | C53: =ROW('CalHome Threshold Requirements'!A22) -> 22 | D53: =ROW('CalHome Threshold Requirements'!A25) -> 25 | G53: =OR(ComponentVisibility[[#This Row],[Force True]],AND(ComponentVisibility[[#This Row],[Program True]],NOT(ComponentVisibility[[#This Row],[Force False]]))) -> FALSE | H53: Vissible row(s) if "TRUE" | I53: =vmJCDO="Yes" -> FALSE | K53: FALSE
B54: FWHG Threshold Requiremets | C54: =ROW('FWHG Threshold Requiremets'!A27) -> 27 | D54: =ROW('FWHG Threshold Requiremets'!A27) -> 27 | G54: =OR(ComponentVisibility[[#This Row],[Force True]],AND(ComponentVisibility[[#This Row],[Program True]],NOT(ComponentVisibility[[#This Row],[Force False]]))) -> FALSE | H54: Vissible row(s) if "TRUE" | I54: =vmJ523SH="Yes" -> FALSE | K54: FALSE
B55: FWHG Threshold Requiremets | C55: =ROW('FWHG Threshold Requiremets'!A34) -> 34 | D55: =ROW('FWHG Threshold Requiremets'!A35) -> 35 | G55: =OR(ComponentVisibility[[#This Row],[Force True]],AND(ComponentVisibility[[#This Row],[Program True]],NOT(ComponentVisibility[[#This Row],[Force False]]))) -> FALSE | H55: Vissible row(s) if "TRUE" | I55: =vmJC2years="Yes" -> FALSE | K55: FALSE
B56: FWHG Threshold Requiremets | C56: =ROW('CalHome Threshold Requirements'!A36) -> 36 | D56: =ROW('CalHome Threshold Requirements'!A37) -> 37 | G56: =OR(ComponentVisibility[[#This Row],[Force True]],AND(ComponentVisibility[[#This Row],[Program True]],NOT(ComponentVisibility[[#This Row],[Force False]]))) -> FALSE | H56: Vissible row(s) if "TRUE" | I56: =vmApplicant1Type="Tribal Entity" -> FALSE | K56: FALSE
B57: FWHG Threshold Requiremets | C57: =ROW('FWHG Threshold Requiremets'!A39) -> 39 | D57: =ROW('FWHG Threshold Requiremets'!A45) -> 45 | G57: =OR(ComponentVisibility[[#This Row],[Force True]],AND(ComponentVisibility[[#This Row],[Program True]],NOT(ComponentVisibility[[#This Row],[Force False]]))) -> FALSE | H57: Vissible row(s) if "TRUE" | I57: =vmJLocalityAS="Yes" -> FALSE | K57: FALSE
B58: FWHG Threshold Requiremets | C58: =ROW('FWHG Threshold Requiremets'!A47) -> 47 | D58: =ROW('FWHG Threshold Requiremets'!A48) -> 48 | G58: =OR(ComponentVisibility[[#This Row],[Force True]],AND(ComponentVisibility[[#This Row],[Program True]],NOT(ComponentVisibility[[#This Row],[Force False]]))) -> FALSE | H58: Vissible row(s) if "TRUE" | I58: =vmJCCA="Yes" -> FALSE | K58: FALSE
B59: FWHG Threshold Requiremets | C59: =ROW('FWHG Threshold Requiremets'!A50) -> 50 | D59: =ROW('FWHG Threshold Requiremets'!A55) -> 55 | G59: =OR(ComponentVisibility[[#This Row],[Force True]],AND(ComponentVisibility[[#This Row],[Program True]],NOT(ComponentVisibility[[#This Row],[Force False]]))) -> FALSE | H59: Vissible row(s) if "TRUE" | I59: =OR(vmApplicant1Type="Tribal Entity",vmApplicant1Type="Nonprofit Corporation",vmApplicant1Type="Limited Liability Company",vmApplicant1Type="Limited Partnership") -> FALSE | K59: FALSE
B60: FWHG Threshold Requiremets | C60: =ROW('FWHG Threshold Requiremets'!A63) -> 63 | D60: =ROW('FWHG Threshold Requiremets'!A65) -> 65 | G60: =OR(ComponentVisibility[[#This Row],[Force True]],AND(ComponentVisibility[[#This Row],[Program True]],NOT(ComponentVisibility[[#This Row],[Force False]]))) -> FALSE | H60: Vissible row(s) if "TRUE" | I60: =vmJRE="Yes" -> FALSE | K60: FALSE
B61: FWHG Threshold Requiremets | C61: =ROW('FWHG Threshold Requiremets'!A67) -> 67 | D61: =ROW('FWHG Threshold Requiremets'!A69) -> 69 | G61: =OR(ComponentVisibility[[#This Row],[Force True]],AND(ComponentVisibility[[#This Row],[Program True]],NOT(ComponentVisibility[[#This Row],[Force False]]))) -> FALSE | H61: Vissible row(s) if "TRUE" | I61: =vmCBDFT="Yes" -> FALSE | K61: FALSE
B62: FWHG Threshold Requiremets | C62: =ROW('FWHG Threshold Requiremets'!A74) -> 74 | D62: =ROW('FWHG Threshold Requiremets'!A78) -> 78 | G62: =OR(ComponentVisibility[[#This Row],[Force True]],AND(ComponentVisibility[[#This Row],[Program True]],NOT(ComponentVisibility[[#This Row],[Force False]]))) -> FALSE | H62: Vissible row(s) if "TRUE" | I62: =vmIsJHDPL="Yes" -> FALSE | K62: FALSE
B63: FWHG Threshold Requiremets | C63: =ROW('FWHG Threshold Requiremets'!A79) -> 79 | D63: =ROW('FWHG Threshold Requiremets'!A79) -> 79 | G63: =OR(ComponentVisibility[[#This Row],[Force True]],AND(ComponentVisibility[[#This Row],[Program True]],NOT(ComponentVisibility[[#This Row],[Force False]]))) -> FALSE | H63: Vissible row(s) if "TRUE" | I63: =vmJWE="Yes" -> FALSE | K63: FALSE
B64: FWHG Threshold Requiremets | C64: =ROW('FWHG Threshold Requiremets'!A80) -> 80 | D64: =ROW('FWHG Threshold Requiremets'!A80) -> 80 | G64: =OR(ComponentVisibility[[#This Row],[Force True]],AND(ComponentVisibility[[#This Row],[Program True]],NOT(ComponentVisibility[[#This Row],[Force False]]))) -> FALSE | H64: Vissible row(s) if "TRUE" | I64: =vmIsJSHTA="Yes" -> FALSE | K64: FALSE
B65: FWHG Threshold Requiremets | C65: =ROW('FWHG Threshold Requiremets'!A81) -> 81 | D65: =ROW('FWHG Threshold Requiremets'!A81) -> 81 | G65: =OR(ComponentVisibility[[#This Row],[Force True]],AND(ComponentVisibility[[#This Row],[Program True]],NOT(ComponentVisibility[[#This Row],[Force False]]))) -> FALSE | H65: Vissible row(s) if "TRUE" | I65: =vmIsJMA="Yes" -> FALSE | K65: FALSE
B66: FWHG Threshold Requiremets | C66: =ROW('FWHG Threshold Requiremets'!A82) -> 82 | D66: =ROW('FWHG Threshold Requiremets'!A82) -> 82 | G66: =OR(ComponentVisibility[[#This Row],[Force True]],AND(ComponentVisibility[[#This Row],[Program True]],NOT(ComponentVisibility[[#This Row],[Force False]]))) -> FALSE | H66: Vissible row(s) if "TRUE" | I66: =vmIsJOOR="Yes" -> FALSE | K66: FALSE
B67: FWHG Threshold Requiremets | C67: =ROW('FWHG Threshold Requiremets'!A83) -> 83 | D67: =ROW('FWHG Threshold Requiremets'!A83) -> 83 | G67: =OR(ComponentVisibility[[#This Row],[Force True]],AND(ComponentVisibility[[#This Row],[Program True]],NOT(ComponentVisibility[[#This Row],[Force False]]))) -> FALSE | H67: Vissible row(s) if "TRUE" | I67: =vmIsJAMH="Yes" -> FALSE | K67: FALSE
B68: FWHG Threshold Requiremets | C68: =ROW('FWHG Threshold Requiremets'!A88) -> 88 | D68: =ROW('FWHG Threshold Requiremets'!A88) -> 88 | G68: =OR(ComponentVisibility[[#This Row],[Force True]],AND(ComponentVisibility[[#This Row],[Program True]],NOT(ComponentVisibility[[#This Row],[Force False]]))) -> FALSE | H68: Vissible row(s) if "TRUE" | I68: =vmIsJHDPL="Yes" -> FALSE | K68: FALSE
B69: FWHG Threshold Requiremets | C69: =ROW('FWHG Threshold Requiremets'!A89) -> 89 | D69: =ROW('FWHG Threshold Requiremets'!A89) -> 89 | G69: =OR(ComponentVisibility[[#This Row],[Force True]],AND(ComponentVisibility[[#This Row],[Program True]],NOT(ComponentVisibility[[#This Row],[Force False]]))) -> FALSE | H69: Vissible row(s) if "TRUE" | I69: =vmIsJSHTA="Yes" -> FALSE | K69: FALSE
B70: FWHG Threshold Requiremets | C70: =ROW('FWHG Threshold Requiremets'!A90) -> 90 | D70: =ROW('FWHG Threshold Requiremets'!A90) -> 90 | G70: =OR(ComponentVisibility[[#This Row],[Force True]],AND(ComponentVisibility[[#This Row],[Program True]],NOT(ComponentVisibility[[#This Row],[Force False]]))) -> FALSE | H70: Vissible row(s) if "TRUE" | I70: =vmIsJMA="Yes" -> FALSE | K70: FALSE
B71: FWHG Threshold Requiremets | C71: =ROW('FWHG Threshold Requiremets'!A91) -> 91 | D71: =ROW('FWHG Threshold Requiremets'!A91) -> 91 | G71: =OR(ComponentVisibility[[#This Row],[Force True]],AND(ComponentVisibility[[#This Row],[Program True]],NOT(ComponentVisibility[[#This Row],[Force False]]))) -> FALSE | H71: Vissible row(s) if "TRUE" | I71: =vmIsJOOR="Yes" -> FALSE | K71: FALSE
B72: FWHG Threshold Requiremets | C72: =ROW('FWHG Threshold Requiremets'!A92) -> 92 | D72: =ROW('FWHG Threshold Requiremets'!A92) -> 92 | G72: =OR(ComponentVisibility[[#This Row],[Force True]],AND(ComponentVisibility[[#This Row],[Program True]],NOT(ComponentVisibility[[#This Row],[Force False]]))) -> FALSE | H72: Vissible row(s) if "TRUE" | I72: =vmIsJAMH="Yes" -> FALSE | K72: FALSE
B73: FWHG Threshold Requiremets | C73: =ROW('FWHG Threshold Requiremets'!A97) -> 97 | D73: =ROW('FWHG Threshold Requiremets'!A104) -> 104 | G73: =OR(ComponentVisibility[[#This Row],[Force True]],AND(ComponentVisibility[[#This Row],[Program True]],NOT(ComponentVisibility[[#This Row],[Force False]]))) -> FALSE | H73: Vissible row(s) if "TRUE" | I73: =vmIsJMA="Yes" -> FALSE | K73: FALSE
B74: FWHG Threshold Requiremets | C74: =ROW('FWHG Threshold Requiremets'!A105) -> 105 | D74: =ROW('FWHG Threshold Requiremets'!A112) -> 112 | G74: =OR(ComponentVisibility[[#This Row],[Force True]],AND(ComponentVisibility[[#This Row],[Program True]],NOT(ComponentVisibility[[#This Row],[Force False]]))) -> FALSE | H74: Vissible row(s) if "TRUE" | I74: =vmIsJOOR="Yes" -> FALSE | K74: FALSE
B75: FWHG Threshold Requiremets | C75: =ROW('FWHG Threshold Requiremets'!A113) -> 113 | D75: =ROW('FWHG Threshold Requiremets'!A124) -> 124 | G75: =OR(ComponentVisibility[[#This Row],[Force True]],AND(ComponentVisibility[[#This Row],[Program True]],NOT(ComponentVisibility[[#This Row],[Force False]]))) -> FALSE | H75: Vissible row(s) if "TRUE" | I75: =vmIsJSHTA="Yes" -> FALSE | K75: FALSE
B76: FWHG Threshold Requiremets | C76: =ROW('FWHG Threshold Requiremets'!A125) -> 125 | D76: =ROW('FWHG Threshold Requiremets'!A128) -> 128 | G76: =OR(ComponentVisibility[[#This Row],[Force True]],AND(ComponentVisibility[[#This Row],[Program True]],NOT(ComponentVisibility[[#This Row],[Force False]]))) -> FALSE | H76: Vissible row(s) if "TRUE" | I76: =vmIsJHDPL="Yes" -> FALSE | K76: FALSE
B77: FWHG Threshold Requiremets | C77: =ROW('FWHG Threshold Requiremets'!A129) -> 129 | D77: =ROW('FWHG Threshold Requiremets'!A144) -> 144 | G77: =OR(ComponentVisibility[[#This Row],[Force True]],AND(ComponentVisibility[[#This Row],[Program True]],NOT(ComponentVisibility[[#This Row],[Force False]]))) -> FALSE | H77: Vissible row(s) if "TRUE" | I77: =vmJ2P="Yes" -> FALSE | K77: FALSE
B78: FWHG Threshold Requiremets | C78: =ROW('FWHG Threshold Requiremets'!A146) -> 146 | D78: =ROW('FWHG Threshold Requiremets'!A150) -> 150 | G78: =OR(ComponentVisibility[[#This Row],[Force True]],AND(ComponentVisibility[[#This Row],[Program True]],NOT(ComponentVisibility[[#This Row],[Force False]]))) -> FALSE | H78: Vissible row(s) if "TRUE" | I78: =vmJHDPLMA="Yes" -> FALSE | K78: FALSE
B79: FWHG Threshold Requiremets | C79: =ROW('FWHG Threshold Requiremets'!A151) -> 151 | D79: =ROW('FWHG Threshold Requiremets'!A162) -> 162 | G79: =OR(ComponentVisibility[[#This Row],[Force True]],AND(ComponentVisibility[[#This Row],[Program True]],NOT(ComponentVisibility[[#This Row],[Force False]]))) -> FALSE | H79: Vissible row(s) if "TRUE" | I79: =vmIsJAMH="Yes" -> FALSE | K79: FALSE
B80: FWHG Threshold Requiremets | C80: =ROW('FWHG Threshold Requiremets'!A163) -> 163 | D80: =ROW('FWHG Threshold Requiremets'!A177) -> 177 | G80: =OR(ComponentVisibility[[#This Row],[Force True]],AND(ComponentVisibility[[#This Row],[Program True]],NOT(ComponentVisibility[[#This Row],[Force False]]))) -> FALSE | H80: Vissible row(s) if "TRUE" | I80: =vmSiteControl2="Yes" -> FALSE | K80: FALSE
B81: FWHG Threshold Requiremets | C81: =ROW('FWHG Threshold Requiremets'!A171) -> 171 | D81: =ROW('FWHG Threshold Requiremets'!A174) -> 174 | G81: =OR(ComponentVisibility[[#This Row],[Force True]],AND(ComponentVisibility[[#This Row],[Program True]],NOT(ComponentVisibility[[#This Row],[Force False]]))) -> FALSE | H81: Vissible row(s) if "TRUE" | I81: =vmGroundLease2="Yes" -> FALSE | K81: FALSE
B82: FWHG Threshold Requiremets | C82: =ROW('FWHG Threshold Requiremets'!A182) -> 182 | D82: =ROW('FWHG Threshold Requiremets'!A184) -> 184 | G82: =OR(ComponentVisibility[[#This Row],[Force True]],AND(ComponentVisibility[[#This Row],[Program True]],NOT(ComponentVisibility[[#This Row],[Force False]]))) -> FALSE | H82: Vissible row(s) if "TRUE" | I82: =IsJHDPL -> FALSE | K82: FALSE
B83: FWHG Threshold Requiremets | E83: =COLUMN('FWHG Threshold Requiremets'!AO42) -> 41 | F83: =COLUMN('FWHG Threshold Requiremets'!AQ42) -> 43 | G83: =OR(ComponentVisibility[[#This Row],[Force True]],AND(ComponentVisibility[[#This Row],[Program True]],NOT(ComponentVisibility[[#This Row],[Force False]]))) -> FALSE | H83: Vissible row(s) if "TRUE" | I83: =AND(SernaTreview="Yes",SernaTreviewR1="Yes") -> FALSE | K83: FALSE
B84: FWHG Threshold Requiremets | E84: =COLUMN('FWHG Threshold Requiremets'!AR43) -> 44 | F84: =COLUMN('FWHG Threshold Requiremets'!AT43) -> 46 | G84: =OR(ComponentVisibility[[#This Row],[Force True]],AND(ComponentVisibility[[#This Row],[Program True]],NOT(ComponentVisibility[[#This Row],[Force False]]))) -> FALSE | H84: Vissible row(s) if "TRUE" | I84: =AND(SernaTreview="Yes",SernaTreviewR2="Yes") -> FALSE | K84: FALSE
B85: FWHG Threshold Requiremets | E85: =COLUMN('FWHG Threshold Requiremets'!AU44) -> 47 | F85: =COLUMN('FWHG Threshold Requiremets'!AW44) -> 49 | G85: =OR(ComponentVisibility[[#This Row],[Force True]],AND(ComponentVisibility[[#This Row],[Program True]],NOT(ComponentVisibility[[#This Row],[Force False]]))) -> FALSE | H85: Vissible row(s) if "TRUE" | I85: =AND(SernaTreview="Yes",SernaTreviewM="Yes") -> FALSE | K85: FALSE
B86: FWHG Threshold Requiremets | G86: =OR(ComponentVisibility[[#This Row],[Force True]],AND(ComponentVisibility[[#This Row],[Program True]],NOT(ComponentVisibility[[#This Row],[Force False]]))) -> FALSE | H86: Vissible Sheet if "TRUE" | I86: =vmIsJSerna="Yes" -> FALSE | K86: FALSE
B87: Grant-Loan Amount | C87: =ROW('Grant-Loan Amount'!A4) -> 4 | D87: =ROW('Grant-Loan Amount'!A5) -> 5 | G87: =OR(ComponentVisibility[[#This Row],[Force True]],AND(ComponentVisibility[[#This Row],[Program True]],NOT(ComponentVisibility[[#This Row],[Force False]]))) -> FALSE | H87: Vissible row(s) if "TRUE" | I87: =AND(NOT(IsCalhomeTribal),IsCalhome) -> FALSE | K87: FALSE
B88: Grant-Loan Amount | C88: =ROW('Grant-Loan Amount'!A6) -> 6 | D88: =ROW('Grant-Loan Amount'!A6) -> 6 | G88: =OR(ComponentVisibility[[#This Row],[Force True]],AND(ComponentVisibility[[#This Row],[Program True]],NOT(ComponentVisibility[[#This Row],[Force False]]))) -> FALSE | H88: Vissible row(s) if "TRUE" | I88: =vmMPMHC="Yes" -> FALSE | K88: FALSE
B89: Grant-Loan Amount | C89: =ROW('Grant-Loan Amount'!A7) -> 7 | D89: =ROW('Grant-Loan Amount'!A11) -> 11 | G89: =OR(ComponentVisibility[[#This Row],[Force True]],AND(ComponentVisibility[[#This Row],[Program True]],NOT(ComponentVisibility[[#This Row],[Force False]]))) -> FALSE | H89: Vissible row(s) if "TRUE" | I89: =vmCalHomeMPMHC="Both" -> FALSE | K89: FALSE
B90: Grant-Loan Amount | C90: =ROW('Grant-Loan Amount'!A12) -> 12 | D90: =ROW('Grant-Loan Amount'!A13) -> 13 | G90: =OR(ComponentVisibility[[#This Row],[Force True]],AND(ComponentVisibility[[#This Row],[Program True]],NOT(ComponentVisibility[[#This Row],[Force False]]))) -> FALSE | H90: Vissible row(s) if "TRUE" | I90: =AND(OR(IsCalhome,IsJSerna),vmCBD="Yes") -> FALSE | K90: FALSE
B91: Grant-Loan Amount | C91: =ROW('Grant-Loan Amount'!A14) -> 14 | D91: =ROW('Grant-Loan Amount'!A14) -> 14 | G91: =OR(ComponentVisibility[[#This Row],[Force True]],AND(ComponentVisibility[[#This Row],[Program True]],NOT(ComponentVisibility[[#This Row],[Force False]]))) -> FALSE | H91: Vissible row(s) if "TRUE" | I91: =OR(AND(IsCalhome,IsMA),AND(IsJSerna,IsJMA)) -> FALSE | K91: FALSE
B92: Grant-Loan Amount | C92: =ROW('Grant-Loan Amount'!A19) -> 19 | D92: =ROW('Grant-Loan Amount'!A19) -> 19 | G92: =OR(ComponentVisibility[[#This Row],[Force True]],AND(ComponentVisibility[[#This Row],[Program True]],NOT(ComponentVisibility[[#This Row],[Force False]]))) -> FALSE | H92: Vissible row(s) if "TRUE" | I92: =IF(OR(AND(IsCalhome,IsHDPL),AND(IsJSerna,IsJHDPL)),TRUE,FALSE) -> FALSE | K92: FALSE
B93: Grant-Loan Amount | C93: =ROW('Grant-Loan Amount'!A20) -> 20 | D93: =ROW('Grant-Loan Amount'!A20) -> 20 | G93: =OR(ComponentVisibility[[#This Row],[Force True]],AND(ComponentVisibility[[#This Row],[Program True]],NOT(ComponentVisibility[[#This Row],[Force False]]))) -> FALSE | H93: Vissible row(s) if "TRUE" | I93: =IF(OR(AND(IsCalhome,IsSHTA),AND(IsJSerna,IsJSHTA)),TRUE,FALSE) -> FALSE | K93: FALSE
B94: Grant-Loan Amount | C94: =ROW('Grant-Loan Amount'!A21) -> 21 | D94: =ROW('Grant-Loan Amount'!A21) -> 21 | G94: =OR(ComponentVisibility[[#This Row],[Force True]],AND(ComponentVisibility[[#This Row],[Program True]],NOT(ComponentVisibility[[#This Row],[Force False]]))) -> FALSE | H94: Vissible row(s) if "TRUE" | I94: =IF(OR(AND(IsCalhome,IsMA),AND(IsJSerna,IsJMA)),TRUE,FALSE) -> FALSE | K94: FALSE
B95: Grant-Loan Amount | C95: =ROW('Grant-Loan Amount'!A22) -> 22 | D95: =ROW('Grant-Loan Amount'!A22) -> 22 | G95: =OR(ComponentVisibility[[#This Row],[Force True]],AND(ComponentVisibility[[#This Row],[Program True]],NOT(ComponentVisibility[[#This Row],[Force False]]))) -> FALSE | H95: Vissible row(s) if "TRUE" | I95: =IF(OR(AND(IsCalhome,IsOOR),AND(IsJSerna,IsJOOR)),TRUE,FALSE) -> FALSE | K95: FALSE
B96: Grant-Loan Amount | C96: =ROW('Grant-Loan Amount'!A23) -> 23 | D96: =ROW('Grant-Loan Amount'!A23) -> 23 | G96: =OR(ComponentVisibility[[#This Row],[Force True]],AND(ComponentVisibility[[#This Row],[Program True]],NOT(ComponentVisibility[[#This Row],[Force False]]))) -> FALSE | H96: Vissible row(s) if "TRUE" | I96: =IF(AND(IsCalhome,IsSH),TRUE,FALSE) -> FALSE | K96: FALSE
B97: Grant-Loan Amount | C97: =ROW('Grant-Loan Amount'!A24) -> 24 | D97: =ROW('Grant-Loan Amount'!A24) -> 24 | G97: =OR(ComponentVisibility[[#This Row],[Force True]],AND(ComponentVisibility[[#This Row],[Program True]],NOT(ComponentVisibility[[#This Row],[Force False]]))) -> FALSE | H97: Vissible row(s) if "TRUE" | I97: =IF(AND(IsCalhome,IsJADU),TRUE,FALSE) -> FALSE | K97: FALSE
B98: Grant-Loan Amount | C98: =ROW('Grant-Loan Amount'!A25) -> 25 | D98: =ROW('Grant-Loan Amount'!A25) -> 25 | G98: =OR(ComponentVisibility[[#This Row],[Force True]],AND(ComponentVisibility[[#This Row],[Program True]],NOT(ComponentVisibility[[#This Row],[Force False]]))) -> FALSE | H98: Vissible row(s) if "TRUE" | I98: =IF(AND(IsJSerna,IsJAMH),TRUE,FALSE) -> FALSE | K98: FALSE
B99: Grant-Loan Amount | G99: =OR(ComponentVisibility[[#This Row],[Force True]],AND(ComponentVisibility[[#This Row],[Program True]],NOT(ComponentVisibility[[#This Row],[Force False]]))) -> FALSE | H99: Vissible Sheet if "TRUE" | I99: =OR(IsCalhome,IsJSerna) -> FALSE | K99: FALSE
B100: Grant-Loan Amount | E100: =COLUMN('Grant-Loan Amount'!AQ1) -> 43 | F100: =COLUMN('Grant-Loan Amount'!AX1) -> 50 | G100: =OR(ComponentVisibility[[#This Row],[Force True]],AND(ComponentVisibility[[#This Row],[Program True]],NOT(ComponentVisibility[[#This Row],[Force False]]))) -> TRUE | H100: Vissible Column(s) if "TRUE" | I100: =OR(vmIsCalhomeTribal="No",vmIsCalhomeTribal="") -> TRUE | K100: FALSE
B101: Grant-Loan Amount | E101: =COLUMN('Grant-Loan Amount'!AY1) -> 51 | F101: =COLUMN('Grant-Loan Amount'!BE1) -> 57 | G101: =OR(ComponentVisibility[[#This Row],[Force True]],AND(ComponentVisibility[[#This Row],[Program True]],NOT(ComponentVisibility[[#This Row],[Force False]]))) -> FALSE | H101: Vissible Column(s) if "TRUE" | I101: =vmIsCalhomeTribal="Yes" -> FALSE | K101: FALSE
B102: HDPL Dev Budget SU | G102: =OR(ComponentVisibility[[#This Row],[Force True]],AND(ComponentVisibility[[#This Row],[Program True]],NOT(ComponentVisibility[[#This Row],[Force False]]))) -> FALSE | H102: Vissible Sheet if "TRUE" | I102: =OR(AND(IsCalhome,IsHDPL),AND(IsJSerna,IsJHDPL)) -> FALSE | K102: FALSE
B103: HDPL Dev Sources | G103: =OR(ComponentVisibility[[#This Row],[Force True]],AND(ComponentVisibility[[#This Row],[Program True]],NOT(ComponentVisibility[[#This Row],[Force False]]))) -> FALSE | H103: Vissible Sheet if "TRUE" | I103: =OR(AND(IsCalhome,IsHDPL),AND(IsJSerna,IsJHDPL)) -> FALSE | K103: FALSE
B104: HDPL Unit Mix | G104: =OR(ComponentVisibility[[#This Row],[Force True]],AND(ComponentVisibility[[#This Row],[Program True]],NOT(ComponentVisibility[[#This Row],[Force False]]))) -> FALSE | H104: Vissible Sheet if "TRUE" | I104: =OR(AND(IsCalhome,IsHDPL),AND(IsJSerna,IsJHDPL)) -> FALSE | K104: FALSE
B105: Project Overview | C105: =ROW('Project Overview'!A11) -> 11 | D105: =ROW('Project Overview'!A25) -> 25 | G105: =OR(ComponentVisibility[[#This Row],[Force True]],AND(ComponentVisibility[[#This Row],[Program True]],NOT(ComponentVisibility[[#This Row],[Force False]]))) -> TRUE | H105: Vissible row(s) if "TRUE" | I105: =OR(vmIsCalhomeTribal="No",vmIsCalhomeTribal="") -> TRUE | K105: FALSE
B106: Project Overview | C106: =ROW('Project Overview'!A13) -> 13 | D106: =ROW('Project Overview'!A24) -> 24 | G106: =OR(ComponentVisibility[[#This Row],[Force True]],AND(ComponentVisibility[[#This Row],[Program True]],NOT(ComponentVisibility[[#This Row],[Force False]]))) -> FALSE | H106: Vissible row(s) if "TRUE" | I106: =vmIsJSerna="Yes" -> FALSE | K106: FALSE
B107: Project Overview | C107: =ROW('Project Overview'!A15) -> 15 | D107: =ROW('Project Overview'!A15) -> 15 | G107: =OR(ComponentVisibility[[#This Row],[Force True]],AND(ComponentVisibility[[#This Row],[Program True]],NOT(ComponentVisibility[[#This Row],[Force False]]))) -> FALSE | H107: Vissible row(s) if "TRUE" | I107: =vmIsJHDPL="Yes" -> FALSE | K107: FALSE
B108: Project Overview | C108: =ROW('Project Overview'!A18) -> 18 | D108: =ROW('Project Overview'!A18) -> 18 | G108: =OR(ComponentVisibility[[#This Row],[Force True]],AND(ComponentVisibility[[#This Row],[Program True]],NOT(ComponentVisibility[[#This Row],[Force False]]))) -> FALSE | H108: Vissible row(s) if "TRUE" | I108: =vmIsJSHTA="Yes" -> FALSE | K108: FALSE
B109: Project Overview | C109: =ROW('Project Overview'!A29) -> 29 | D109: =ROW('Project Overview'!A42) -> 42 | G109: =OR(ComponentVisibility[[#This Row],[Force True]],AND(ComponentVisibility[[#This Row],[Program True]],NOT(ComponentVisibility[[#This Row],[Force False]]))) -> FALSE | H109: Vissible row(s) if "TRUE" | I109: =vmIsCalhome="Yes" -> FALSE | K109: FALSE
B110: Project Overview | C110: =ROW('Project Overview'!A31) -> 31 | D110: =ROW('Project Overview'!A31) -> 31 | G110: =OR(ComponentVisibility[[#This Row],[Force True]],AND(ComponentVisibility[[#This Row],[Program True]],NOT(ComponentVisibility[[#This Row],[Force False]]))) -> FALSE | H110: Vissible row(s) if "TRUE" | I110: =vmIsHDPL="Yes" -> FALSE | K110: FALSE
B111: Project Overview | C111: =ROW('Project Overview'!A34) -> 34 | D111: =ROW('Project Overview'!A34) -> 34 | G111: =OR(ComponentVisibility[[#This Row],[Force True]],AND(ComponentVisibility[[#This Row],[Program True]],NOT(ComponentVisibility[[#This Row],[Force False]]))) -> FALSE | H111: Vissible row(s) if "TRUE" | I111: =vmIsSHTA="Yes" -> FALSE | K111: FALSE
B112: Project Overview | C112: =ROW('Project Overview'!A49) -> 49 | D112: =ROW('Project Overview'!A49) -> 49 | G112: =OR(ComponentVisibility[[#This Row],[Force True]],AND(ComponentVisibility[[#This Row],[Program True]],NOT(ComponentVisibility[[#This Row],[Force False]]))) -> FALSE | H112: Vissible row(s) if "TRUE" | I112: =IF(OR(vmIsJHDPL="Yes",vmIsHDPL="Yes"),TRUE,FALSE) -> FALSE | K112: FALSE
B113: Project Overview | C113: =ROW('Project Overview'!A54) -> 54 | D113: =ROW('Project Overview'!A54) -> 54 | G113: =OR(ComponentVisibility[[#This Row],[Force True]],AND(ComponentVisibility[[#This Row],[Program True]],NOT(ComponentVisibility[[#This Row],[Force False]]))) -> FALSE | H113: Vissible row(s) if "TRUE" | I113: =vmOFS="Yes" -> FALSE | K113: FALSE
B114: Project Overview | C114: =ROW('Project Overview'!A56) -> 56 | D114: =ROW('Project Overview'!A56) -> 56 | G114: =OR(ComponentVisibility[[#This Row],[Force True]],AND(ComponentVisibility[[#This Row],[Program True]],NOT(ComponentVisibility[[#This Row],[Force False]]))) -> FALSE | H114: Vissible row(s) if "TRUE" | I114: =vnPaCompany="Yes" -> FALSE | K114: FALSE
B115: Project Overview | C115: =ROW('Project Overview'!A58) -> 58 | D115: =ROW('Project Overview'!A58) -> 58 | G115: =OR(ComponentVisibility[[#This Row],[Force True]],AND(ComponentVisibility[[#This Row],[Program True]],NOT(ComponentVisibility[[#This Row],[Force False]]))) -> FALSE | H115: Vissible row(s) if "TRUE" | I115: =vmApplicant1Type="Tribal Entity" -> FALSE | K115: FALSE
B116: Project Overview | C116: =ROW('Project Overview'!A59) -> 59 | D116: =ROW('Project Overview'!A59) -> 59 | G116: =OR(ComponentVisibility[[#This Row],[Force True]],AND(ComponentVisibility[[#This Row],[Program True]],NOT(ComponentVisibility[[#This Row],[Force False]]))) -> FALSE | H116: Vissible row(s) if "TRUE" | I116: =IF(AND(vmIsJSerna="Yes",vmApplicant1Type="Limited Partnership"),TRUE,FALSE) -> FALSE | K116: FALSE
B117: Project Overview | C117: =ROW('Project Overview'!A60) -> 60 | D117: =ROW('Project Overview'!A60) -> 60 | G117: =OR(ComponentVisibility[[#This Row],[Force True]],AND(ComponentVisibility[[#This Row],[Program True]],NOT(ComponentVisibility[[#This Row],[Force False]]))) -> FALSE | H117: Vissible row(s) if "TRUE" | I117: =vmIsJSerna="Yes" -> FALSE | K117: FALSE
B118: Project Overview | C118: =ROW('Project Overview'!A61) -> 61 | D118: =ROW('Project Overview'!A61) -> 61 | G118: =OR(ComponentVisibility[[#This Row],[Force True]],AND(ComponentVisibility[[#This Row],[Program True]],NOT(ComponentVisibility[[#This Row],[Force False]]))) -> FALSE | H118: Vissible row(s) if "TRUE" | I118: =IF(OR(vmApplicant1Type="Nonprofit Corporation",vmApplicant1Type="Limited Liability Company",vmApplicant1Type="Limited Partnership"),TRUE,FALSE) -> FALSE | K118: FALSE
B119: Project Overview | C119: =ROW('Project Overview'!A62) -> 62 | D119: =ROW('Project Overview'!A62) -> 62 | G119: =OR(ComponentVisibility[[#This Row],[Force True]],AND(ComponentVisibility[[#This Row],[Program True]],NOT(ComponentVisibility[[#This Row],[Force False]]))) -> FALSE | H119: Vissible row(s) if "TRUE" | I119: =vmPCompany="Yes" -> FALSE | K119: FALSE
B120: Project Overview | C120: =ROW('Project Overview'!A73) -> 73 | D120: =ROW('Project Overview'!A88) -> 88 | G120: =OR(ComponentVisibility[[#This Row],[Force True]],AND(ComponentVisibility[[#This Row],[Program True]],NOT(ComponentVisibility[[#This Row],[Force False]]))) -> FALSE | H120: Vissible row(s) if "TRUE" | I120: =vmCNonprofit="Yes" -> FALSE | K120: FALSE
B121: Project Overview | C121: =ROW('Project Overview'!A89) -> 89 | D121: =ROW('Project Overview'!A90) -> 90 | G121: =OR(ComponentVisibility[[#This Row],[Force True]],AND(ComponentVisibility[[#This Row],[Program True]],NOT(ComponentVisibility[[#This Row],[Force False]]))) -> FALSE | H121: Vissible row(s) if "TRUE" | I121: =vmApplicant1Type="Limited Partnership" -> FALSE | K121: FALSE
B122: Project Overview | C122: =ROW('Project Overview'!A97) -> 97 | D122: =ROW('Project Overview'!A100) -> 100 | G122: =OR(ComponentVisibility[[#This Row],[Force True]],AND(ComponentVisibility[[#This Row],[Program True]],NOT(ComponentVisibility[[#This Row],[Force False]]))) -> FALSE | H122: Vissible row(s) if "TRUE" | I122: =AND(IsCalhome,IsHDPL) -> FALSE | K122: FALSE
B123: Project Overview | C123: =ROW('Project Overview'!A101) -> 101 | D123: =ROW('Project Overview'!A102) -> 102 | G123: =OR(ComponentVisibility[[#This Row],[Force True]],AND(ComponentVisibility[[#This Row],[Program True]],NOT(ComponentVisibility[[#This Row],[Force False]]))) -> FALSE | H123: Vissible row(s) if "TRUE" | I123: =vmRural6="Yes" -> FALSE | K123: FALSE
B124: Project Overview | C124: =ROW('Project Overview'!A103) -> 103 | D124: =ROW('Project Overview'!A105) -> 105 | G124: =OR(ComponentVisibility[[#This Row],[Force True]],AND(ComponentVisibility[[#This Row],[Program True]],NOT(ComponentVisibility[[#This Row],[Force False]]))) -> FALSE | H124: Vissible row(s) if "TRUE" | I124: =AND(IsCalhome,IsHDPL) -> FALSE | K124: FALSE
B125: Project Overview | C125: =ROW('Project Overview'!A106) -> 106 | D125: =ROW('Project Overview'!A109) -> 109 | G125: =OR(ComponentVisibility[[#This Row],[Force True]],AND(ComponentVisibility[[#This Row],[Program True]],NOT(ComponentVisibility[[#This Row],[Force False]]))) -> FALSE | H125: Vissible row(s) if "TRUE" | I125: =AND(IsJSerna,IsJHDPL) -> FALSE | K125: FALSE
B126: Project Overview | C126: =ROW('Project Overview'!A110) -> 110 | D126: =ROW('Project Overview'!A111) -> 111 | G126: =OR(ComponentVisibility[[#This Row],[Force True]],AND(ComponentVisibility[[#This Row],[Program True]],NOT(ComponentVisibility[[#This Row],[Force False]]))) -> FALSE | H126: Vissible row(s) if "TRUE" | I126: =vmRural="Yes" -> FALSE | K126: FALSE
B127: Project Overview | C127: =ROW('Project Overview'!A112) -> 112 | D127: =ROW('Project Overview'!A114) -> 114 | G127: =OR(ComponentVisibility[[#This Row],[Force True]],AND(ComponentVisibility[[#This Row],[Program True]],NOT(ComponentVisibility[[#This Row],[Force False]]))) -> FALSE | H127: Vissible row(s) if "TRUE" | I127: =AND(IsJSerna,IsJHDPL) -> FALSE | K127: FALSE
B128: Project Overview | C128: =ROW('Project Overview'!A115) -> 115 | D128: =ROW('Project Overview'!A118) -> 118 | G128: =OR(ComponentVisibility[[#This Row],[Force True]],AND(ComponentVisibility[[#This Row],[Program True]],NOT(ComponentVisibility[[#This Row],[Force False]]))) -> FALSE | H128: Vissible row(s) if "TRUE" | I128: =AND(IsCalhome,IsSHTA) -> FALSE | K128: FALSE
B129: Project Overview | C129: =ROW('Project Overview'!A119) -> 119 | D129: =ROW('Project Overview'!A120) -> 120 | G129: =OR(ComponentVisibility[[#This Row],[Force True]],AND(ComponentVisibility[[#This Row],[Program True]],NOT(ComponentVisibility[[#This Row],[Force False]]))) -> FALSE | H129: Vissible row(s) if "TRUE" | I129: =vmRural7="Yes" -> FALSE | K129: FALSE
B130: Project Overview | C130: =ROW('Project Overview'!A121) -> 121 | D130: =ROW('Project Overview'!A123) -> 123 | G130: =OR(ComponentVisibility[[#This Row],[Force True]],AND(ComponentVisibility[[#This Row],[Program True]],NOT(ComponentVisibility[[#This Row],[Force False]]))) -> FALSE | H130: Vissible row(s) if "TRUE" | I130: =AND(IsCalhome,IsSHTA) -> FALSE | K130: FALSE
B131: Project Overview | C131: =ROW('Project Overview'!A124) -> 124 | D131: =ROW('Project Overview'!A127) -> 127 | G131: =OR(ComponentVisibility[[#This Row],[Force True]],AND(ComponentVisibility[[#This Row],[Program True]],NOT(ComponentVisibility[[#This Row],[Force False]]))) -> FALSE | H131: Vissible row(s) if "TRUE" | I131: =AND(IsJSerna,IsJSHTA) -> FALSE | K131: FALSE
B132: Project Overview | C132: =ROW('Project Overview'!A128) -> 128 | D132: =ROW('Project Overview'!A129) -> 129 | G132: =OR(ComponentVisibility[[#This Row],[Force True]],AND(ComponentVisibility[[#This Row],[Program True]],NOT(ComponentVisibility[[#This Row],[Force False]]))) -> FALSE | H132: Vissible row(s) if "TRUE" | I132: =vmRural2="Yes" -> FALSE | K132: FALSE
B133: Project Overview | C133: =ROW('Project Overview'!A130) -> 130 | D133: =ROW('Project Overview'!A132) -> 132 | G133: =OR(ComponentVisibility[[#This Row],[Force True]],AND(ComponentVisibility[[#This Row],[Program True]],NOT(ComponentVisibility[[#This Row],[Force False]]))) -> FALSE | H133: Vissible row(s) if "TRUE" | I133: =AND(IsJSerna,IsJSHTA) -> FALSE | K133: FALSE
B134: Project Overview | C134: =ROW('Project Overview'!A133) -> 133 | D134: =ROW('Project Overview'!A136) -> 136 | G134: =OR(ComponentVisibility[[#This Row],[Force True]],AND(ComponentVisibility[[#This Row],[Program True]],NOT(ComponentVisibility[[#This Row],[Force False]]))) -> FALSE | H134: Vissible row(s) if "TRUE" | I134: =AND(IsCalhome,IsMA) -> FALSE | K134: FALSE
B135: Project Overview | C135: =ROW('Project Overview'!A137) -> 137 | D135: =ROW('Project Overview'!A138) -> 138 | G135: =OR(ComponentVisibility[[#This Row],[Force True]],AND(ComponentVisibility[[#This Row],[Program True]],NOT(ComponentVisibility[[#This Row],[Force False]]))) -> FALSE | H135: Vissible row(s) if "TRUE" | I135: =vmRural8="Yes" -> FALSE | K135: FALSE
B136: Project Overview | C136: =ROW('Project Overview'!A139) -> 139 | D136: =ROW('Project Overview'!A141) -> 141 | G136: =OR(ComponentVisibility[[#This Row],[Force True]],AND(ComponentVisibility[[#This Row],[Program True]],NOT(ComponentVisibility[[#This Row],[Force False]]))) -> FALSE | H136: Vissible row(s) if "TRUE" | I136: =AND(IsCalhome,IsMA) -> FALSE | K136: FALSE
B137: Project Overview | C137: =ROW('Project Overview'!A142) -> 142 | D137: =ROW('Project Overview'!A145) -> 145 | G137: =OR(ComponentVisibility[[#This Row],[Force True]],AND(ComponentVisibility[[#This Row],[Program True]],NOT(ComponentVisibility[[#This Row],[Force False]]))) -> FALSE | H137: Vissible row(s) if "TRUE" | I137: =AND(IsJSerna,IsJMA) -> FALSE | K137: FALSE
B138: Project Overview | C138: =ROW('Project Overview'!A146) -> 146 | D138: =ROW('Project Overview'!A147) -> 147 | G138: =OR(ComponentVisibility[[#This Row],[Force True]],AND(ComponentVisibility[[#This Row],[Program True]],NOT(ComponentVisibility[[#This Row],[Force False]]))) -> FALSE | H138: Vissible row(s) if "TRUE" | I138: =vmRural3="Yes" -> FALSE | K138: FALSE
B139: Project Overview | C139: =ROW('Project Overview'!A148) -> 148 | D139: =ROW('Project Overview'!A150) -> 150 | G139: =OR(ComponentVisibility[[#This Row],[Force True]],AND(ComponentVisibility[[#This Row],[Program True]],NOT(ComponentVisibility[[#This Row],[Force False]]))) -> FALSE | H139: Vissible row(s) if "TRUE" | I139: =AND(IsJSerna,IsJMA) -> FALSE | K139: FALSE
B140: Project Overview | C140: =ROW('Project Overview'!A151) -> 151 | D140: =ROW('Project Overview'!A154) -> 154 | G140: =OR(ComponentVisibility[[#This Row],[Force True]],AND(ComponentVisibility[[#This Row],[Program True]],NOT(ComponentVisibility[[#This Row],[Force False]]))) -> FALSE | H140: Vissible row(s) if "TRUE" | I140: =AND(IsCalhome,IsOOR) -> FALSE | K140: FALSE
B141: Project Overview | C141: =ROW('Project Overview'!A155) -> 155 | D141: =ROW('Project Overview'!A156) -> 156 | G141: =OR(ComponentVisibility[[#This Row],[Force True]],AND(ComponentVisibility[[#This Row],[Program True]],NOT(ComponentVisibility[[#This Row],[Force False]]))) -> FALSE | H141: Vissible row(s) if "TRUE" | I141: =vmRural9="Yes" -> FALSE | K141: FALSE
B142: Project Overview | C142: =ROW('Project Overview'!A157) -> 157 | D142: =ROW('Project Overview'!A159) -> 159 | G142: =OR(ComponentVisibility[[#This Row],[Force True]],AND(ComponentVisibility[[#This Row],[Program True]],NOT(ComponentVisibility[[#This Row],[Force False]]))) -> FALSE | H142: Vissible row(s) if "TRUE" | I142: =AND(IsCalhome,IsOOR) -> FALSE | K142: FALSE
B143: Project Overview | C143: =ROW('Project Overview'!A160) -> 160 | D143: =ROW('Project Overview'!A163) -> 163 | G143: =OR(ComponentVisibility[[#This Row],[Force True]],AND(ComponentVisibility[[#This Row],[Program True]],NOT(ComponentVisibility[[#This Row],[Force False]]))) -> FALSE | H143: Vissible row(s) if "TRUE" | I143: =AND(IsJSerna,IsJOOR) -> FALSE | K143: FALSE
B144: Project Overview | C144: =ROW('Project Overview'!A164) -> 164 | D144: =ROW('Project Overview'!A165) -> 165 | G144: =OR(ComponentVisibility[[#This Row],[Force True]],AND(ComponentVisibility[[#This Row],[Program True]],NOT(ComponentVisibility[[#This Row],[Force False]]))) -> FALSE | H144: Vissible row(s) if "TRUE" | I144: =vmRural4="Yes" -> FALSE | K144: FALSE
B145: Project Overview | C145: =ROW('Project Overview'!A166) -> 166 | D145: =ROW('Project Overview'!A168) -> 168 | G145: =OR(ComponentVisibility[[#This Row],[Force True]],AND(ComponentVisibility[[#This Row],[Program True]],NOT(ComponentVisibility[[#This Row],[Force False]]))) -> FALSE | H145: Vissible row(s) if "TRUE" | I145: =AND(IsJSerna,IsJOOR) -> FALSE | K145: FALSE
B146: Project Overview | C146: =ROW('Project Overview'!A169) -> 169 | D146: =ROW('Project Overview'!A171) -> 171 | G146: =OR(ComponentVisibility[[#This Row],[Force True]],AND(ComponentVisibility[[#This Row],[Program True]],NOT(ComponentVisibility[[#This Row],[Force False]]))) -> FALSE | H146: Vissible row(s) if "TRUE" | I146: =AND(IsCalhome,IsSH) -> FALSE | K146: FALSE
B147: Project Overview | C147: =ROW('Project Overview'!A172) -> 172 | D147: =ROW('Project Overview'!A174) -> 174 | G147: =OR(ComponentVisibility[[#This Row],[Force True]],AND(ComponentVisibility[[#This Row],[Program True]],NOT(ComponentVisibility[[#This Row],[Force False]]))) -> FALSE | H147: Vissible row(s) if "TRUE" | I147: =IF(AND(IsCalhome,IsSH),TRUE,FALSE) -> FALSE | K147: FALSE
B148: Project Overview | C148: =ROW('Project Overview'!A175) -> 175 | D148: =ROW('Project Overview'!A178) -> 178 | G148: =OR(ComponentVisibility[[#This Row],[Force True]],AND(ComponentVisibility[[#This Row],[Program True]],NOT(ComponentVisibility[[#This Row],[Force False]]))) -> FALSE | H148: Vissible row(s) if "TRUE" | I148: =AND(IsCalhome,IsJADU) -> FALSE | K148: FALSE
B149: Project Overview | C149: =ROW('Project Overview'!A179) -> 179 | D149: =ROW('Project Overview'!A180) -> 180 | G149: =OR(ComponentVisibility[[#This Row],[Force True]],AND(ComponentVisibility[[#This Row],[Program True]],NOT(ComponentVisibility[[#This Row],[Force False]]))) -> FALSE | H149: Vissible row(s) if "TRUE" | I149: =vmRural11="Yes" -> FALSE | K149: FALSE
B150: Project Overview | C150: =ROW('Project Overview'!A181) -> 181 | D150: =ROW('Project Overview'!A183) -> 183 | G150: =OR(ComponentVisibility[[#This Row],[Force True]],AND(ComponentVisibility[[#This Row],[Program True]],NOT(ComponentVisibility[[#This Row],[Force False]]))) -> FALSE | H150: Vissible row(s) if "TRUE" | I150: =IF(AND(IsCalhome,IsJADU),TRUE,FALSE) -> FALSE | K150: FALSE
B151: Project Overview | C151: =ROW('Project Overview'!A184) -> 184 | D151: =ROW('Project Overview'!A187) -> 187 | G151: =OR(ComponentVisibility[[#This Row],[Force True]],AND(ComponentVisibility[[#This Row],[Program True]],NOT(ComponentVisibility[[#This Row],[Force False]]))) -> FALSE | H151: Vissible row(s) if "TRUE" | I151: =AND(IsJSerna,IsJAMH) -> FALSE | K151: FALSE
B152: Project Overview | C152: =ROW('Project Overview'!A188) -> 188 | D152: =ROW('Project Overview'!A189) -> 189 | G152: =OR(ComponentVisibility[[#This Row],[Force True]],AND(ComponentVisibility[[#This Row],[Program True]],NOT(ComponentVisibility[[#This Row],[Force False]]))) -> FALSE | H152: Vissible row(s) if "TRUE" | I152: =vmRural5="Yes" -> FALSE | K152: FALSE
B153: Project Overview | C153: =ROW('Project Overview'!A190) -> 190 | D153: =ROW('Project Overview'!A192) -> 192 | G153: =OR(ComponentVisibility[[#This Row],[Force True]],AND(ComponentVisibility[[#This Row],[Program True]],NOT(ComponentVisibility[[#This Row],[Force False]]))) -> FALSE | H153: Vissible row(s) if "TRUE" | I153: =IF(AND(IsJSerna,IsJAMH),TRUE,FALSE) -> FALSE | K153: FALSE
B154: Project Overview | C154: =ROW('Project Overview'!A193) -> 193 | D154: =ROW('Project Overview'!A193) -> 193 | G154: =OR(ComponentVisibility[[#This Row],[Force True]],AND(ComponentVisibility[[#This Row],[Program True]],NOT(ComponentVisibility[[#This Row],[Force False]]))) -> FALSE | H154: Vissible row(s) if "TRUE" | I154: =OR(vmIsHDPL="Yes",vmIsJHDPL="Yes",vmIsSHTA="Yes",vmIsJSHTA="Yes") -> FALSE | K154: FALSE
B155: Project Overview | C155: =ROW('Project Overview'!A194) -> 194 | D155: =ROW('Project Overview'!A195) -> 195 | G155: =OR(ComponentVisibility[[#This Row],[Force True]],AND(ComponentVisibility[[#This Row],[Program True]],NOT(ComponentVisibility[[#This Row],[Force False]]))) -> FALSE | H155: Vissible row(s) if "TRUE" | I155: =vmCBDFT="Yes" -> FALSE | K155: FALSE
B156: Project Overview | C156: =ROW('Project Overview'!A196) -> 196 | D156: =ROW('Project Overview'!A199) -> 199 | G156: =OR(ComponentVisibility[[#This Row],[Force True]],AND(ComponentVisibility[[#This Row],[Program True]],NOT(ComponentVisibility[[#This Row],[Force False]]))) -> FALSE | H156: Vissible row(s) if "TRUE" | I156: =vmApplicant1Type="Tribal Entity" -> FALSE | K156: FALSE
B157: Project Overview | C157: =ROW('Project Overview'!A200) -> 200 | D157: =ROW('Project Overview'!A200) -> 200 | G157: =OR(ComponentVisibility[[#This Row],[Force True]],AND(ComponentVisibility[[#This Row],[Program True]],NOT(ComponentVisibility[[#This Row],[Force False]]))) -> FALSE | H157: Vissible row(s) if "TRUE" | I157: =vmIndianCountry="Indian Country" -> FALSE | K157: FALSE
B158: Project Overview | C158: =ROW('Project Overview'!A201) -> 201 | D158: =ROW('Project Overview'!A201) -> 201 | G158: =OR(ComponentVisibility[[#This Row],[Force True]],AND(ComponentVisibility[[#This Row],[Program True]],NOT(ComponentVisibility[[#This Row],[Force False]]))) -> FALSE | H158: Vissible row(s) if "TRUE" | I158: =vmIndianCountry="Fee Land" -> FALSE | K158: FALSE
B159: Project Overview | C159: =ROW('Project Overview'!A203) -> 203 | D159: =ROW('Project Overview'!A203) -> 203 | G159: =OR(ComponentVisibility[[#This Row],[Force True]],AND(ComponentVisibility[[#This Row],[Program True]],NOT(ComponentVisibility[[#This Row],[Force False]]))) -> FALSE | H159: Vissible row(s) if "TRUE" | I159: =vmCBD="Yes" -> FALSE | K159: FALSE
B160: Project Overview | C160: =ROW('Project Overview'!A204) -> 204 | D160: =ROW('Project Overview'!A222) -> 222 | G160: =OR(ComponentVisibility[[#This Row],[Force True]],AND(ComponentVisibility[[#This Row],[Program True]],NOT(ComponentVisibility[[#This Row],[Force False]]))) -> FALSE | H160: Vissible row(s) if "TRUE" | I160: =vmCBD2="Yes" -> FALSE | K160: FALSE
B161: Project Overview | C161: =ROW('Project Overview'!A232) -> 232 | D161: =ROW('Project Overview'!A234) -> 234 | G161: =OR(ComponentVisibility[[#This Row],[Force True]],AND(ComponentVisibility[[#This Row],[Program True]],NOT(ComponentVisibility[[#This Row],[Force False]]))) -> FALSE | H161: Vissible row(s) if "TRUE" | I161: =vmApplicant1Type="Tribal Entity" -> FALSE | K161: FALSE
B162: Project Overview | C162: =ROW('Project Overview'!A236) -> 236 | D162: =ROW('Project Overview'!A236) -> 236 | G162: =OR(ComponentVisibility[[#This Row],[Force True]],AND(ComponentVisibility[[#This Row],[Program True]],NOT(ComponentVisibility[[#This Row],[Force False]]))) -> FALSE | H162: Vissible row(s) if "TRUE" | I162: =vmTpp="Yes" -> FALSE | K162: FALSE
B163: Project Overview | C163: =ROW('Project Overview'!A238) -> 238 | D163: =ROW('Project Overview'!A258) -> 258 | G163: =OR(ComponentVisibility[[#This Row],[Force True]],AND(ComponentVisibility[[#This Row],[Program True]],NOT(ComponentVisibility[[#This Row],[Force False]]))) -> FALSE | H163: Vissible row(s) if "TRUE" | I163: =OR(AND(IsCalhome,vmIsMA="Yes"),AND(IsJSerna,vmIsJMA="Yes")) -> FALSE | K163: FALSE
B164: Project Overview | C164: =ROW('Project Overview'!A261) -> 261 | D164: =ROW('Project Overview'!A263) -> 263 | G164: =OR(ComponentVisibility[[#This Row],[Force True]],AND(ComponentVisibility[[#This Row],[Program True]],NOT(ComponentVisibility[[#This Row],[Force False]]))) -> FALSE | H164: Vissible row(s) if "TRUE" | I164: =OR(AND(IsCalhome,vmIsHDPL="Yes"),AND(IsJSerna,vmIsJHDPL="Yes")) -> FALSE | K164: FALSE
B165: Project Overview | C165: =ROW('Project Overview'!A264) -> 264 | D165: =ROW('Project Overview'!A265) -> 265 | G165: =OR(ComponentVisibility[[#This Row],[Force True]],AND(ComponentVisibility[[#This Row],[Program True]],NOT(ComponentVisibility[[#This Row],[Force False]]))) -> FALSE | H165: Vissible row(s) if "TRUE" | I165: =vmRelocation="Yes" -> FALSE | K165: FALSE
B166: Project Overview | C166: =ROW('Project Overview'!A266) -> 266 | D166: =ROW('Project Overview'!A267) -> 267 | G166: =OR(ComponentVisibility[[#This Row],[Force True]],AND(ComponentVisibility[[#This Row],[Program True]],NOT(ComponentVisibility[[#This Row],[Force False]]))) -> FALSE | H166: Vissible row(s) if "TRUE" | I166: =vmRelocation="No" -> FALSE | K166: FALSE
B167: Project Overview | C167: =ROW('Project Overview'!A268) -> 268 | D167: =ROW('Project Overview'!A269) -> 269 | G167: =OR(ComponentVisibility[[#This Row],[Force True]],AND(ComponentVisibility[[#This Row],[Program True]],NOT(ComponentVisibility[[#This Row],[Force False]]))) -> FALSE | H167: Vissible row(s) if "TRUE" | I167: =OR(AND(IsCalhome,vmIsHDPL="Yes"),AND(IsJSerna,vmIsJHDPL="Yes")) -> FALSE | K167: FALSE
B168: Project Overview | C168: =ROW('Project Overview'!A271) -> 271 | D168: =ROW('Project Overview'!A279) -> 279 | G168: =OR(ComponentVisibility[[#This Row],[Force True]],AND(ComponentVisibility[[#This Row],[Program True]],NOT(ComponentVisibility[[#This Row],[Force False]]))) -> FALSE | H168: Vissible row(s) if "TRUE" | I168: =OR(AND(IsCalhome,OR(vmIsMA="Yes",vmIsOOR="Yes",vmIsJADU="Yes")),AND(IsJSerna,OR(vmIsJMA="Yes",vmIsJOOR="Yes",vmIsJAMH="Yes"))) -> FALSE | K168: FALSE
B169: Project Overview | C169: =ROW('Project Overview'!A282) -> 282 | D169: =ROW('Project Overview'!A334) -> 334 | G169: =OR(ComponentVisibility[[#This Row],[Force True]],AND(ComponentVisibility[[#This Row],[Program True]],NOT(ComponentVisibility[[#This Row],[Force False]]))) -> FALSE | H169: Vissible row(s) if "TRUE" | I169: =OR(AND(IsCalhome,vmIsHDPL="Yes"),AND(IsJSerna,vmIsJHDPL="Yes")) -> FALSE | K169: FALSE
B170: Project Overview | C170: =ROW('Project Overview'!A289) -> 289 | D170: =ROW('Project Overview'!A305) -> 305 | G170: =OR(ComponentVisibility[[#This Row],[Force True]],AND(ComponentVisibility[[#This Row],[Program True]],NOT(ComponentVisibility[[#This Row],[Force False]]))) -> FALSE | H170: Vissible row(s) if "TRUE" | I170: =AND(IsJSerna,vmIsJHDPL="Yes") -> FALSE | K170: FALSE
B171: Project Overview | C171: =ROW('Project Overview'!A290) -> 290 | D171: =ROW('Project Overview'!A296) -> 296 | G171: =OR(ComponentVisibility[[#This Row],[Force True]],AND(ComponentVisibility[[#This Row],[Program True]],NOT(ComponentVisibility[[#This Row],[Force False]]))) -> FALSE | H171: Vissible row(s) if "TRUE" | I171: =vmSiteControlFWHG="Yes" -> FALSE | K171: FALSE
B172: Project Overview | C172: =ROW('Project Overview'!A298) -> 298 | D172: =ROW('Project Overview'!A301) -> 301 | G172: =OR(ComponentVisibility[[#This Row],[Force True]],AND(ComponentVisibility[[#This Row],[Program True]],NOT(ComponentVisibility[[#This Row],[Force False]]))) -> FALSE | H172: Vissible row(s) if "TRUE" | I172: =vmGroundLeaseFWHG="Yes" -> FALSE | K172: FALSE
B173: Project Overview | C173: =ROW('Project Overview'!A306) -> 306 | D173: =ROW('Project Overview'!A322) -> 322 | G173: =OR(ComponentVisibility[[#This Row],[Force True]],AND(ComponentVisibility[[#This Row],[Program True]],NOT(ComponentVisibility[[#This Row],[Force False]]))) -> FALSE | H173: Vissible row(s) if "TRUE" | I173: =AND(IsCalhome,vmIsHDPL="Yes") -> FALSE | K173: FALSE
B174: Project Overview | C174: =ROW('Project Overview'!A307) -> 307 | D174: =ROW('Project Overview'!A313) -> 313 | G174: =OR(ComponentVisibility[[#This Row],[Force True]],AND(ComponentVisibility[[#This Row],[Program True]],NOT(ComponentVisibility[[#This Row],[Force False]]))) -> FALSE | H174: Vissible row(s) if "TRUE" | I174: =vmSiteControl="Yes" -> FALSE | K174: FALSE
B175: Project Overview | C175: =ROW('Project Overview'!A315) -> 315 | D175: =ROW('Project Overview'!A316) -> 316 | G175: =OR(ComponentVisibility[[#This Row],[Force True]],AND(ComponentVisibility[[#This Row],[Program True]],NOT(ComponentVisibility[[#This Row],[Force False]]))) -> FALSE | H175: Vissible row(s) if "TRUE" | I175: =vmGroundLease="Yes" -> FALSE | K175: FALSE
B176: Project Overview | C176: =ROW('Project Overview'!A335) -> 335 | D176: =ROW('Project Overview'!A343) -> 343 | G176: =OR(ComponentVisibility[[#This Row],[Force True]],AND(ComponentVisibility[[#This Row],[Program True]],NOT(ComponentVisibility[[#This Row],[Force False]]))) -> FALSE | H176: Vissible row(s) if "TRUE" | I176: =OR(AND(IsCalhome,vmIsSHTA="Yes"),AND(IsJSerna,vmIsJSHTA="Yes")) -> FALSE | K176: FALSE
B177: Project Overview | C177: =ROW('Project Overview'!A344) -> 344 | D177: =ROW('Project Overview'!A354) -> 354 | G177: =OR(ComponentVisibility[[#This Row],[Force True]],AND(ComponentVisibility[[#This Row],[Program True]],NOT(ComponentVisibility[[#This Row],[Force False]]))) -> FALSE | H177: Vissible row(s) if "TRUE" | I177: =OR(AND(IsCalhome,vmIsMA="Yes"),AND(IsJSerna,vmIsJMA="Yes")) -> FALSE | K177: FALSE
B178: Project Overview | C178: =ROW('Project Overview'!A355) -> 355 | D178: =ROW('Project Overview'!A365) -> 365 | G178: =OR(ComponentVisibility[[#This Row],[Force True]],AND(ComponentVisibility[[#This Row],[Program True]],NOT(ComponentVisibility[[#This Row],[Force False]]))) -> FALSE | H178: Vissible row(s) if "TRUE" | I178: =OR(AND(IsCalhome,vmIsOOR="Yes"),AND(IsJSerna,vmIsJOOR="Yes")) -> FALSE | K178: FALSE
B179: Project Overview | C179: =ROW('Project Overview'!A366) -> 366 | D179: =ROW('Project Overview'!A372) -> 372 | G179: =OR(ComponentVisibility[[#This Row],[Force True]],AND(ComponentVisibility[[#This Row],[Program True]],NOT(ComponentVisibility[[#This Row],[Force False]]))) -> FALSE | H179: Vissible row(s) if "TRUE" | I179: =AND(IsCalhome,vmIsSH="Yes") -> FALSE | K179: FALSE
B180: Project Overview | C180: =ROW('Project Overview'!A373) -> 373 | D180: =ROW('Project Overview'!A382) -> 382 | G180: =OR(ComponentVisibility[[#This Row],[Force True]],AND(ComponentVisibility[[#This Row],[Program True]],NOT(ComponentVisibility[[#This Row],[Force False]]))) -> FALSE | H180: Vissible row(s) if "TRUE" | I180: =AND(IsJSerna,vmIsJAMH="Yes") -> FALSE | K180: FALSE
B181: Project Overview | C181: =ROW('Project Overview'!A383) -> 383 | D181: =ROW('Project Overview'!A392) -> 392 | G181: =OR(ComponentVisibility[[#This Row],[Force True]],AND(ComponentVisibility[[#This Row],[Program True]],NOT(ComponentVisibility[[#This Row],[Force False]]))) -> FALSE | H181: Vissible row(s) if "TRUE" | I181: =AND(IsCalhome,vmIsJADU="Yes") -> FALSE | K181: FALSE
B182: Project Overview | C182: =ROW('Project Overview'!A423) -> 423 | D182: =ROW('Project Overview'!A433) -> 433 | G182: =OR(ComponentVisibility[[#This Row],[Force True]],AND(ComponentVisibility[[#This Row],[Program True]],NOT(ComponentVisibility[[#This Row],[Force False]]))) -> FALSE | H182: Vissible row(s) if "TRUE" | I182: =OR(AND(IsCalhome,vmIsHDPL="Yes"),AND(IsJSerna,vmIsJHDPL="Yes")) -> FALSE | K182: FALSE
B183: HOSN Scoring | C183: =ROW('HOSN Scoring'!A13) -> 13 | D183: =ROW('HOSN Scoring'!A21) -> 21 | G183: =OR(ComponentVisibility[[#This Row],[Force True]],AND(ComponentVisibility[[#This Row],[Program True]],NOT(ComponentVisibility[[#This Row],[Force False]]))) -> FALSE | H183: Vissible row(s) if "TRUE" | I183: =vmIsJSerna="Yes" -> FALSE | K183: FALSE
B184: HOSN Scoring | C184: =ROW('HOSN Scoring'!A16) -> 16 | D184: =ROW('HOSN Scoring'!A16) -> 16 | G184: =OR(ComponentVisibility[[#This Row],[Force True]],AND(ComponentVisibility[[#This Row],[Program True]],NOT(ComponentVisibility[[#This Row],[Force False]]))) -> FALSE | H184: Vissible row(s) if "TRUE" | I184: =vmIsJHDPL="Yes" -> FALSE | K184: FALSE
B185: HOSN Scoring | C185: =ROW('HOSN Scoring'!A17) -> 17 | D185: =ROW('HOSN Scoring'!A17) -> 17 | G185: =OR(ComponentVisibility[[#This Row],[Force True]],AND(ComponentVisibility[[#This Row],[Program True]],NOT(ComponentVisibility[[#This Row],[Force False]]))) -> FALSE | H185: Vissible row(s) if "TRUE" | I185: =vmIsJSHTA="Yes" -> FALSE | K185: FALSE
B186: HOSN Scoring | C186: =ROW('HOSN Scoring'!A18) -> 18 | D186: =ROW('HOSN Scoring'!A18) -> 18 | G186: =OR(ComponentVisibility[[#This Row],[Force True]],AND(ComponentVisibility[[#This Row],[Program True]],NOT(ComponentVisibility[[#This Row],[Force False]]))) -> FALSE | H186: Vissible row(s) if "TRUE" | I186: =vmIsJMA="Yes" -> FALSE | K186: FALSE
B187: HOSN Scoring | C187: =ROW('HOSN Scoring'!A19) -> 19 | D187: =ROW('HOSN Scoring'!A19) -> 19 | G187: =OR(ComponentVisibility[[#This Row],[Force True]],AND(ComponentVisibility[[#This Row],[Program True]],NOT(ComponentVisibility[[#This Row],[Force False]]))) -> FALSE | H187: Vissible row(s) if "TRUE" | I187: =vmIsJOOR="Yes" -> FALSE | K187: FALSE
B188: HOSN Scoring | C188: =ROW('HOSN Scoring'!A20) -> 20 | D188: =ROW('HOSN Scoring'!A20) -> 20 | G188: =OR(ComponentVisibility[[#This Row],[Force True]],AND(ComponentVisibility[[#This Row],[Program True]],NOT(ComponentVisibility[[#This Row],[Force False]]))) -> FALSE | H188: Vissible row(s) if "TRUE" | I188: =vmIsJAMH="Yes" -> FALSE | K188: FALSE
B189: HOSN Scoring | C189: =ROW('HOSN Scoring'!A22) -> 22 | D189: =ROW('HOSN Scoring'!A31) -> 31 | G189: =OR(ComponentVisibility[[#This Row],[Force True]],AND(ComponentVisibility[[#This Row],[Program True]],NOT(ComponentVisibility[[#This Row],[Force False]]))) -> FALSE | H189: Vissible row(s) if "TRUE" | I189: =vmIsCalhome="Yes" -> FALSE | K189: FALSE
B190: HOSN Scoring | C190: =ROW('HOSN Scoring'!A25) -> 25 | D190: =ROW('HOSN Scoring'!A25) -> 25 | G190: =OR(ComponentVisibility[[#This Row],[Force True]],AND(ComponentVisibility[[#This Row],[Program True]],NOT(ComponentVisibility[[#This Row],[Force False]]))) -> FALSE | H190: Vissible row(s) if "TRUE" | I190: =vmIsHDPL="Yes" -> FALSE | K190: FALSE
B191: HOSN Scoring | C191: =ROW('HOSN Scoring'!A26) -> 26 | D191: =ROW('HOSN Scoring'!A26) -> 26 | G191: =OR(ComponentVisibility[[#This Row],[Force True]],AND(ComponentVisibility[[#This Row],[Program True]],NOT(ComponentVisibility[[#This Row],[Force False]]))) -> FALSE | H191: Vissible row(s) if "TRUE" | I191: =vmIsSHTA="Yes" -> FALSE | K191: FALSE
B192: HOSN Scoring | C192: =ROW('HOSN Scoring'!A27) -> 27 | D192: =ROW('HOSN Scoring'!A27) -> 27 | G192: =OR(ComponentVisibility[[#This Row],[Force True]],AND(ComponentVisibility[[#This Row],[Program True]],NOT(ComponentVisibility[[#This Row],[Force False]]))) -> FALSE | H192: Vissible row(s) if "TRUE" | I192: =vmIsMA="Yes" -> FALSE | K192: FALSE
B193: HOSN Scoring | C193: =ROW('HOSN Scoring'!A28) -> 28 | D193: =ROW('HOSN Scoring'!A28) -> 28 | G193: =OR(ComponentVisibility[[#This Row],[Force True]],AND(ComponentVisibility[[#This Row],[Program True]],NOT(ComponentVisibility[[#This Row],[Force False]]))) -> FALSE | H193: Vissible row(s) if "TRUE" | I193: =vmIsOOR="Yes" -> FALSE | K193: FALSE
B194: HOSN Scoring | C194: =ROW('HOSN Scoring'!A29) -> 29 | D194: =ROW('HOSN Scoring'!A29) -> 29 | G194: =OR(ComponentVisibility[[#This Row],[Force True]],AND(ComponentVisibility[[#This Row],[Program True]],NOT(ComponentVisibility[[#This Row],[Force False]]))) -> FALSE | H194: Vissible row(s) if "TRUE" | I194: =vmIsSH="Yes" -> FALSE | K194: FALSE
B195: HOSN Scoring | C195: =ROW('HOSN Scoring'!A30) -> 30 | D195: =ROW('HOSN Scoring'!A30) -> 30 | G195: =OR(ComponentVisibility[[#This Row],[Force True]],AND(ComponentVisibility[[#This Row],[Program True]],NOT(ComponentVisibility[[#This Row],[Force False]]))) -> FALSE | H195: Vissible row(s) if "TRUE" | I195: =vmIsJADU="Yes" -> FALSE | K195: FALSE
B196: HOSN Scoring | C196: =ROW('HOSN Scoring'!A39) -> 39 | D196: =ROW('HOSN Scoring'!A39) -> 39 | G196: =OR(ComponentVisibility[[#This Row],[Force True]],AND(ComponentVisibility[[#This Row],[Program True]],NOT(ComponentVisibility[[#This Row],[Force False]]))) -> FALSE | H196: Vissible row(s) if "TRUE" | I196: =IF(OR(AND(IsCalhome,IsHDPL),AND(IsJSerna,IsJHDPL)),TRUE,FALSE) -> FALSE | K196: FALSE
B197: HOSN Scoring | C197: =ROW('HOSN Scoring'!A40) -> 40 | D197: =ROW('HOSN Scoring'!A40) -> 40 | G197: =OR(ComponentVisibility[[#This Row],[Force True]],AND(ComponentVisibility[[#This Row],[Program True]],NOT(ComponentVisibility[[#This Row],[Force False]]))) -> FALSE | H197: Vissible row(s) if "TRUE" | I197: =IF(OR(AND(IsCalhome,IsSHTA),AND(IsJSerna,IsJSHTA)),TRUE,FALSE) -> FALSE | K197: FALSE
B198: HOSN Scoring | C198: =ROW('HOSN Scoring'!A41) -> 41 | D198: =ROW('HOSN Scoring'!A41) -> 41 | G198: =OR(ComponentVisibility[[#This Row],[Force True]],AND(ComponentVisibility[[#This Row],[Program True]],NOT(ComponentVisibility[[#This Row],[Force False]]))) -> FALSE | H198: Vissible row(s) if "TRUE" | I198: =IF(OR(AND(IsCalhome,IsMA),AND(IsJSerna,IsJMA)),TRUE,FALSE) -> FALSE | K198: FALSE
B199: HOSN Scoring | C199: =ROW('HOSN Scoring'!A42) -> 42 | D199: =ROW('HOSN Scoring'!A42) -> 42 | G199: =OR(ComponentVisibility[[#This Row],[Force True]],AND(ComponentVisibility[[#This Row],[Program True]],NOT(ComponentVisibility[[#This Row],[Force False]]))) -> FALSE | H199: Vissible row(s) if "TRUE" | I199: =IF(OR(AND(IsCalhome,IsOOR),AND(IsJSerna,IsJOOR)),TRUE,FALSE) -> FALSE | K199: FALSE
B200: HOSN Scoring | C200: =ROW('HOSN Scoring'!A43) -> 43 | D200: =ROW('HOSN Scoring'!A43) -> 43 | G200: =OR(ComponentVisibility[[#This Row],[Force True]],AND(ComponentVisibility[[#This Row],[Program True]],NOT(ComponentVisibility[[#This Row],[Force False]]))) -> FALSE | H200: Vissible row(s) if "TRUE" | I200: =IF(AND(IsCalhome,IsSH),TRUE,FALSE) -> FALSE | K200: FALSE
B201: HOSN Scoring | C201: =ROW('HOSN Scoring'!A44) -> 44 | D201: =ROW('HOSN Scoring'!A44) -> 44 | G201: =OR(ComponentVisibility[[#This Row],[Force True]],AND(ComponentVisibility[[#This Row],[Program True]],NOT(ComponentVisibility[[#This Row],[Force False]]))) -> FALSE | H201: Vissible row(s) if "TRUE" | I201: =IF(AND(IsCalhome,IsJADU),TRUE,FALSE) -> FALSE | K201: FALSE
... 191 more rows

Sheet Dropdowns (hidden)
A1: 1 | B1: SernaEA | C1: CalHomeEA | E1: HRA | F1: NHRA | H1: contributes to Community Revitalization as defined above
A2: 2 | B2: Local Public Entity | C2: Local Public Entity | E2: Highest Resource | F2: Moderate Resource (Rapidly Changing) | H2: are, or will be, located within Indian Country | J2: Melendres, Gail | K2: Penner, Kendra
A3: 3 | B3: Tribal Entity | C3: Tribal Entity | E3: High Resource | F3: Moderate Resource | H3: will provide a preference for Tribal Households | J3: Allen, Charlptte
A4: 4 | B4: Nonprofit Corporation | C4: Nonprofit Corporation | F4: Low Resource | J4: Bouldin, Brandon
A5: 5 | B5: Limited Liability Company | F5: High Segregation & Poverty | J5: Thomson, Kara
A6: 6 | B6: Limited Partnership | F6: Missing / Insufficient Data | J6: Brent, Ina
A7: 7
A8: 8
A9: 9 | F9: High Resource
A10: 10 | B10: Alameda | C10: Northern | E10: Disposition and Development Agreement | F10: High Segregation & Poverty
A11: 11 | B11: Alpine | C11: Rural | E11: Enforceable Option to Lease or Purchase | F11: Highest Resource
A12: 12 | B12: Amador | C12: Rural | E12: Exclusive Right to Negotiate | F12: Low Resource
A13: 13 | B13: Butte | C13: Northern | E13: Fee Title | F13: Missing / Insufficient Data
A14: 14 | B14: Calaveras | C14: Rural | E14: Land Sales Contract | F14: Moderate Resource
A15: 15 | B15: Colusa | C15: Rural | E15: Leasehold Interest | F15: Moderate Resource (Rapidly Changing)
A16: 16 | B16: Contra Costa | C16: Northern | E16: Other form of site control
A17: 17 | B17: Del Norte | C17: Rural
A18: 18 | B18: El Dorado | C18: Northern | E18: Federal
A19: 19 | B19: Fresno | C19: Northern | E19: 4% tax credits
A20: 20 | B20: Glenn | C20: Rural | E20: 9% tax credits
A21: 21 | B21: Humboldt | C21: Rural | E21: Local
A22: 22 | B22: Imperial | C22: Southern | E22: Local Fee Waiver
A23: 23 | B23: Inyo | C23: Rural | E23: Local Land Donation
A24: 24 | B24: Kern | C24: Southern | E24: Other
A25: 25 | B25: Kings | C25: Northern | E25: Private
A26: 26 | B26: Lake | C26: Rural | E26: State-General
A27: 27 | B27: Lassen | C27: Rural | E27: State-GGRF
A28: 28 | B28: Los Angeles | C28: Southern | E28: State-HCD
A29: 29 | B29: Madera | C29: Northern
A30: 30 | B30: Marin | C30: Northern | E30: Fixed for Term
A31: 31 | B31: Mariposa | C31: Rural | E31: Fixed with Reset
A32: 32 | B32: Mendocino | C32: Rural | E32: Fixed, then Variable
A33: 33 | B33: Merced | C33: Northern | E33: Variable
A34: 34 | B34: Modoc | C34: Rural | E34: Other
A35: 35 | B35: Mono | C35: Rural | E35: None
A36: 36 | B36: Monterey | C36: Northern
A37: 37 | B37: Napa | C37: Northern
A38: 38 | B38: Nevada | C38: Rural
A39: 39 | B39: Orange | C39: Southern
A40: 40 | B40: Placer | C40: Northern
A41: 41 | B41: Plumas | C41: Rural
A42: 42 | B42: Riverside | C42: Southern
A43: 43 | B43: Sacramento | C43: Northern
A44: 44 | B44: San Benito | C44: Northern
A45: 45 | B45: San Bernardino | C45: Southern
A46: 46 | B46: San Diego | C46: Southern
A47: 47 | B47: San Francisco | C47: Northern
A48: 48 | B48: San Joaquin | C48: Northern
A49: 49 | B49: San Luis Obispo | C49: Southern
A50: 50 | B50: San Mateo | C50: Northern
A51: 51 | B51: Santa Barbara | C51: Southern
A52: 52 | B52: Santa Clara | C52: Northern
A53: 53 | B53: Santa Cruz | C53: Northern
A54: 54 | B54: Shasta | C54: Northern
A55: 55 | B55: Sierra | C55: Rural
A56: 56 | B56: Siskiyou | C56: Rural
A57: 57 | B57: Solano | C57: Northern
A58: 58 | B58: Sonoma | C58: Northern
A59: 59 | B59: Stanislaus | C59: Northern
A60: 60 | B60: Sutter | C60: Northern
A61: 61 | B61: Tehama | C61: Rural
A62: 62 | B62: Trinity | C62: Rural
A63: 63 | B63: Tulare | C63: Northern
A64: 64 | B64: Tuolumne | C64: Rural
A65: 65 | B65: Ventura | C65: Southern
A66: 66 | B66: Yolo | C66: Northern
A67: 67 | B67: Yuba | C67: Northern
A68: 68
A69: 69
A70: 70
A71: 71
A72: 72
A73: 73
A74: 74
A75: 75
A76: 76
A77: 77
A78: 78
A79: 79
A80: 80

Sheet CountyScores (hidden)
A1: 1 | B1: 2 | C1: 3 | D1: 4 | E1: 5 | F1: 6 | G1: 7 | H1: 8 | I1: 9 | J1: 10 | K1: 11 | L1: 12 | M1: 13 | N1: 14 | O1: 15 | P1: 16 | Q1: 17 | R1: 18 | S1: 19 | T1: 20 | U1: 21 | V1: 22 | W1: 23 | X1: 24 | Y1: 25 | Z1: 26 | AA1: 27 | AB1: 28 | AC1: 29 | AD1: 30 | AE1: 31 | AF1: 32 | AG1: 33 | AH1: 34 | AI1: 35 | AJ1: 36 | AK1: 37 | AL1: 38 | AM1: 39 | AN1: 40 | AO1: 41 | AP1: 42 | AQ1: 43 | AR1: 44 | AS1: 45 | AT1: 46 | AU1: 47 | AV1: 48 | AW1: 49
B2: Community Need: MA/SHTA/ADU/PDL/SHP/Serna MH | K2: Community Need: OOR | T2: Feasibility: MA (Only for Existing Homes Not Requiring Rehabilitation) Sales Data Collected 11/18/22 | AI2: Feasibility: OOR/ADU | AN2: Feasibility: Shared Housing Technical Assistance | AS2: Feasibility: PDL/Self-Help TA | AV2: Farmworker Need
A3: County | B3: Housing Affordability | C3: Points Awarded | D3: Percent of Low-Income Renter Households | E3: Points Awarded2 | F3: Percent of Overcrowded Renter Households | G3: Points Awarded3 | H3: Rental Vacancy Rate | I3: Points Awarded4 | J3: Community Need Total Points | K3: Age of Housing Stock | L3: Points Awarded6 | M3: Percent of Homeowners in Poverty | N3: Points Awarded7 | O3: Percent of Low-Income Homeowners | P3: Points Awarded8 | Q3: Percent of Overcrowded Homeowners | R3: Points Awarded9 | S3: OOR Community Need Total Points | T3: Median Owner to Renter Cost Ratio | U3: Median Owner Renter Cost Ratio Points | V3: Redfin.com Median Sales Price (October 2024) | W3: Realtor.com Median Sales Price (October 2024) | X3: Zillow.com Median Sales Price (October 2024) | Y3: Lessor of $500,000 or Average from Redfin, Realtor, Zillow (October 2024) | Z3: Affordable Single Family Homes Sold In Last Year (November 2024) (Zillow.com) | AA3: CalHome Proposed Number of Loans (entered by Applicant) | AB3: Serna Proposed Number of Loans (entered by Applicant) | AC3: CalHome Annualized Home Sales/ Proposed # of Loans | AD3: Serna Annualized Home Sales/ Proposed # of Loans | AE3: CalHome Proposed Loans to Sales Ratio Points | AF3: Serna Proposed Loans to Sales Ratio Points | AG3: CalHome Feasibility Points Awarded | AH3: Serna Feasibility Points Awarded | AI3: Age of Housing Stock2 | AJ3: Points Awarded10 | AK3: Percent of Overcrowded Homeowners11 | AL3: Points Awarded12 | AM3: OOR/ADU Total Feasibility Points Awarded | AN3: Renters <=80%AMI with Severe Cost Burden | AO3: Points Awarded11 | AP3: Rental Vacancy Rate12 | AQ3: Points Awarded13 | AR3: SHTA Total Feasibility Points Awarded | AS3: Median Owner Costs / Median Renter Costs Ratio | AT3: Points Awarded5 | AU3: PDL/SHTA Feasibility Points Awarded | AV3: OMS Migrant Family Housing Centers In County | AW3: Farmworker Need Points Awarded
A4: Alameda | B4: 8.131021195 | C4: 3 | D4: 0.5322709906 | E4: 1 | F4: 0.04959463237 | G4: 4 | H4: 0.04431540887 | I4: 2 | J4: =MIN(SUM(CountyScoresTbl[[#This Row],[Points Awarded]],CountyScoresTbl[[#This Row],[Points Awarded2]],CountyScoresTbl[[#This Row],[Points Awarded3]],CountyScoresTbl[[#This Row],[Points Awarded4]]),15) -> 10 | M4: 0.02453548427 | N4: 2 | Q4: 0.266695383 | R4: 2 | S4: =MIN(SUM(CountyScoresTbl[[#This Row],[Points Awarded6]],CountyScoresTbl[[#This Row],[Points Awarded7]],CountyScoresTbl[[#This Row],[Points Awarded8]],CountyScoresTbl[[#This Row],[Points Awarded9]]),15) -> 4 | T4: 1.591296546 | U4: 4 | V4: 1262000 | W4: 882500 | X4: 1109335.205 | Y4: =MIN( 500000, AVERAGE(CountyScoresTbl[[#This Row],[Redfin.com Median Sales Price (October 2024)]:[Zillow.com Median Sales Price (October 2024)]])) -> 500000 | Z4: 1192 | AA4: ='HDPL Unit Mix'!$G$16 -> 0 | AB4: ='HDPL Unit Mix'!$H$16 -> 0 | AC4: =IFERROR( CountyScoresTbl[[#This Row],[Affordable Single Family Homes Sold In Last Year (November 2024) (Zillow.com)]]/CountyScoresTbl[[#This Row],[CalHome Proposed Number of Loans (entered by Applicant)]], 0) -> 0 | AD4: =IFERROR( CountyScoresTbl[[#This Row],[Affordable Single Family Homes Sold In Last Year (November 2024) (Zillow.com)]]/CountyScoresTbl[[#This Row],[Serna Proposed Number of Loans (entered by Applicant)]], 0) -> 0 | AE4: =IF(AC4>=167, 10, IF(AC4>=73, 8, IF(AC4>=34, 6, IF(AC4>=11, 4, 2)))) -> 2 | AF4: =IF(AD4>=167, 10, IF(AD4>=73, 8, IF(AD4>=34, 6, IF(AD4>=11, 4, 2)))) -> 2 | AG4: =MIN(CountyScoresTbl[[#This Row],[Median Owner Renter Cost Ratio Points]]+CountyScoresTbl[[#This Row],[CalHome Proposed Loans to Sales Ratio Points]],15) -> 6 | AH4: =MIN(CountyScoresTbl[[#This Row],[Median Owner Renter Cost Ratio Points]]+CountyScoresTbl[[#This Row],[Serna Proposed Loans to Sales Ratio Points]],15) -> 6 | AI4: 0.7846124284 | AJ4: 8 | AK4: 0.008439424396 | AL4: 6 | AM4: =MIN(SUM(CountyScoresTbl[[#This Row],[Points Awarded10]],CountyScoresTbl[[#This Row],[Points Awarded12]]),15) -> 14 | AN4: 0.4168563325 | AO4: 6 | AP4: 0.04431540887 | AQ4: 4 | AR4: =MIN(SUM(CountyScoresTbl[[#This Row],[Points Awarded11]],CountyScoresTbl[[#This Row],[Points Awarded13]]),15) -> 10 | AS4: 1.602941176 | AT4: 2 | AU4: =SUM(CountyScoresTbl[[#This Row],[Points Awarded5]],10) -> 12 | AV4: 0 | AW4: =IF(CountyScoresTbl[[#This Row],[OMS Migrant Family Housing Centers In County]]>=3,30,IF(CountyScoresTbl[[#This Row],[OMS Migrant Family Housing Centers In County]]=2,20,IF(CountyScoresTbl[[#This Row],[OMS Migrant Family Housing Centers In County]]=1,10,0))) -> 0
A5: Alpine | B5: 15 | C5: 4 | D5: 0.5625 | E5: 1 | F5: 0 | G5: 1 | H5: 0.2727272727 | I5: 1 | J5: =MIN(SUM(CountyScoresTbl[[#This Row],[Points Awarded]],CountyScoresTbl[[#This Row],[Points Awarded2]],CountyScoresTbl[[#This Row],[Points Awarded3]],CountyScoresTbl[[#This Row],[Points Awarded4]]),15) -> 7 | M5: 0.0625 | N5: 8 | Q5: 0.2394366197 | R5: 2 | S5: =MIN(SUM(CountyScoresTbl[[#This Row],[Points Awarded6]],CountyScoresTbl[[#This Row],[Points Awarded7]],CountyScoresTbl[[#This Row],[Points Awarded8]],CountyScoresTbl[[#This Row],[Points Awarded9]]),15) -> 10 | T5: 3.75743349 | U5: 2 | V5: 535000 | W5: 479000 | X5: 494572.1781 | Y5: =MIN( 500000, AVERAGE(CountyScoresTbl[[#This Row],[Redfin.com Median Sales Price (October 2024)]:[Zillow.com Median Sales Price (October 2024)]])) -> 500000 | Z5: 58 | AA5: ='HDPL Unit Mix'!$G$16 -> 0 | AB5: ='HDPL Unit Mix'!$H$16 -> 0 | AC5: =IFERROR( CountyScoresTbl[[#This Row],[Affordable Single Family Homes Sold In Last Year (November 2024) (Zillow.com)]]/CountyScoresTbl[[#This Row],[CalHome Proposed Number of Loans (entered by Applicant)]], 0) -> 0 | AD5: =IFERROR( CountyScoresTbl[[#This Row],[Affordable Single Family Homes Sold In Last Year (November 2024) (Zillow.com)]]/CountyScoresTbl[[#This Row],[Serna Proposed Number of Loans (entered by Applicant)]], 0) -> 0 | AE5: 2 | AF5: 2 | AG5: =MIN(CountyScoresTbl[[#This Row],[Median Owner Renter Cost Ratio Points]]+CountyScoresTbl[[#This Row],[CalHome Proposed Loans to Sales Ratio Points]],15) -> 4 | AH5: =MIN(CountyScoresTbl[[#This Row],[Median Owner Renter Cost Ratio Points]]+CountyScoresTbl[[#This Row],[Serna Proposed Loans to Sales Ratio Points]],15) -> 4 | AI5: 0.625 | AJ5: 4 | AK5: 0.01126760563 | AL5: 6 | AM5: =MIN(SUM(CountyScoresTbl[[#This Row],[Points Awarded10]],CountyScoresTbl[[#This Row],[Points Awarded12]]),15) -> 10 | AN5: 0.1777777778 | AO5: 2 | AP5: 0.2727272727 | AQ5: 2 | AR5: =MIN(SUM(CountyScoresTbl[[#This Row],[Points Awarded11]],CountyScoresTbl[[#This Row],[Points Awarded13]]),15) -> 4 | AS5: 2.993740219 | AT5: 1 | AU5: =SUM(CountyScoresTbl[[#This Row],[Points Awarded5]],10) -> 11 | AV5: 0 | AW5: =IF(CountyScoresTbl[[#This Row],[OMS Migrant Family Housing Centers In County]]>=3,30,IF(CountyScoresTbl[[#This Row],[OMS Migrant Family Housing Centers In County]]=2,20,IF(CountyScoresTbl[[#This Row],[OMS Migrant Family Housing Centers In County]]=1,10,0))) -> 0
A6: Amador | B6: 4.317958783 | C6: 1 | D6: 0.6039156627 | E6: 3 | F6: 0.03765060241 | G6: 3 | H6: 0.04322766571 | I6: 2 | J6: =MIN(SUM(CountyScoresTbl[[#This Row],[Points Awarded]],CountyScoresTbl[[#This Row],[Points Awarded2]],CountyScoresTbl[[#This Row],[Points Awarded3]],CountyScoresTbl[[#This Row],[Points Awarded4]]),15) -> 9 | M6: 0.03836763167 | N6: 4 | Q6: 0.3407867495 | R6: 6 | S6: =MIN(SUM(CountyScoresTbl[[#This Row],[Points Awarded6]],CountyScoresTbl[[#This Row],[Points Awarded7]],CountyScoresTbl[[#This Row],[Points Awarded8]],CountyScoresTbl[[#This Row],[Points Awarded9]]),15) -> 10 | T6: 1.642004773 | U6: 4 | V6: 430000 | W6: 495000 | X6: 425058.6267 | Y6: =MIN( 500000, AVERAGE(CountyScoresTbl[[#This Row],[Redfin.com Median Sales Price (October 2024)]:[Zillow.com Median Sales Price (October 2024)]])) -> 450019.5422 | Z6: 504 | AA6: ='HDPL Unit Mix'!$G$16 -> 0 | AB6: ='HDPL Unit Mix'!$H$16 -> 0 | AC6: =IFERROR( CountyScoresTbl[[#This Row],[Affordable Single Family Homes Sold In Last Year (November 2024) (Zillow.com)]]/CountyScoresTbl[[#This Row],[CalHome Proposed Number of Loans (entered by Applicant)]], 0) -> 0 | AD6: =IFERROR( CountyScoresTbl[[#This Row],[Affordable Single Family Homes Sold In Last Year (November 2024) (Zillow.com)]]/CountyScoresTbl[[#This Row],[Serna Proposed Number of Loans (entered by Applicant)]], 0) -> 0 | AE6: 2 | AF6: 2 | AG6: =MIN(CountyScoresTbl[[#This Row],[Median Owner Renter Cost Ratio Points]]+CountyScoresTbl[[#This Row],[CalHome Proposed Loans to Sales Ratio Points]],15) -> 6 | AH6: =MIN(CountyScoresTbl[[#This Row],[Median Owner Renter Cost Ratio Points]]+CountyScoresTbl[[#This Row],[Serna Proposed Loans to Sales Ratio Points]],15) -> 6 | AI6: 0.578778135 | AJ6: 4 | AK6: 0.005797101449 | AL6: 4 | AM6: =MIN(SUM(CountyScoresTbl[[#This Row],[Points Awarded10]],CountyScoresTbl[[#This Row],[Points Awarded12]]),15) -> 8 | AN6: 0.246882793 | AO6: 2 | AP6: 0.04322766571 | AQ6: 4 | AR6: =MIN(SUM(CountyScoresTbl[[#This Row],[Points Awarded11]],CountyScoresTbl[[#This Row],[Points Awarded13]]),15) -> 6 | AS6: 1.648060549 | AT6: 2 | AU6: =SUM(CountyScoresTbl[[#This Row],[Points Awarded5]],10) -> 12 | AV6: 0 | AW6: =IF(CountyScoresTbl[[#This Row],[OMS Migrant Family Housing Centers In County]]>=3,30,IF(CountyScoresTbl[[#This Row],[OMS Migrant Family Housing Centers In County]]=2,20,IF(CountyScoresTbl[[#This Row],[OMS Migrant Family Housing Centers In County]]=1,10,0))) -> 0
A7: Butte | B7: 4.803312629 | C7: 2 | D7: 0.6065183942 | E7: 3 | F7: 0.0163659253 | G7: 2 | H7: 0.069140625 | I7: 1 | J7: =MIN(SUM(CountyScoresTbl[[#This Row],[Points Awarded]],CountyScoresTbl[[#This Row],[Points Awarded2]],CountyScoresTbl[[#This Row],[Points Awarded3]],CountyScoresTbl[[#This Row],[Points Awarded4]]),15) -> 8 | M7: 0.04802016906 | N7: 6 | Q7: 0.2968718466 | R7: 4 | S7: =MIN(SUM(CountyScoresTbl[[#This Row],[Points Awarded6]],CountyScoresTbl[[#This Row],[Points Awarded7]],CountyScoresTbl[[#This Row],[Points Awarded8]],CountyScoresTbl[[#This Row],[Points Awarded9]]),15) -> 10 | T7: 1.51015625 | U7: 6 | V7: 439000 | W7: 425750 | X7: 395066.7825 | Y7: =MIN( 500000, AVERAGE(CountyScoresTbl[[#This Row],[Redfin.com Median Sales Price (October 2024)]:[Zillow.com Median Sales Price (October 2024)]])) -> 419938.9275 | Z7: 1812 | AA7: ='HDPL Unit Mix'!$G$16 -> 0 | AB7: ='HDPL Unit Mix'!$H$16 -> 0 | AC7: =IFERROR( CountyScoresTbl[[#This Row],[Affordable Single Family Homes Sold In Last Year (November 2024) (Zillow.com)]]/CountyScoresTbl[[#This Row],[CalHome Proposed Number of Loans (entered by Applicant)]], 0) -> 0 | AD7: =IFERROR( CountyScoresTbl[[#This Row],[Affordable Single Family Homes Sold In Last Year (November 2024) (Zillow.com)]]/CountyScoresTbl[[#This Row],[Serna Proposed Number of Loans (entered by Applicant)]], 0) -> 0 | AE7: =IF(AC7>=167, 10, IF(AC7>=73, 8, IF(AC7>=34, 6, IF(AC7>=11, 4, 2)))) -> 2 | AF7: 2 | AG7: =MIN(CountyScoresTbl[[#This Row],[Median Owner Renter Cost Ratio Points]]+CountyScoresTbl[[#This Row],[CalHome Proposed Loans to Sales Ratio Points]],15) -> 8 | AH7: =MIN(CountyScoresTbl[[#This Row],[Median Owner Renter Cost Ratio Points]]+CountyScoresTbl[[#This Row],[Serna Proposed Loans to Sales Ratio Points]],15) -> 8 | AI7: 0.6534156617 | AJ7: 6 | AK7: 0.005146316852 | AL7: 4 | AM7: =MIN(SUM(CountyScoresTbl[[#This Row],[Points Awarded10]],CountyScoresTbl[[#This Row],[Points Awarded12]]),15) -> 10 | AN7: 0.4338099631 | AO7: 8 | AP7: 0.069140625 | AQ7: 2 | AR7: =MIN(SUM(CountyScoresTbl[[#This Row],[Points Awarded11]],CountyScoresTbl[[#This Row],[Points Awarded13]]),15) -> 10 | AS7: 1.597056118 | AT7: 3 | AU7: =SUM(CountyScoresTbl[[#This Row],[Points Awarded5]],10) -> 13 | AV7: 0 | AW7: =IF(CountyScoresTbl[[#This Row],[OMS Migrant Family Housing Centers In County]]>=3,30,IF(CountyScoresTbl[[#This Row],[OMS Migrant Family Housing Centers In County]]=2,20,IF(CountyScoresTbl[[#This Row],[OMS Migrant Family Housing Centers In County]]=1,10,0))) -> 0
A8: Calaveras | B8: 4.516632017 | C8: 1 | D8: 0.5643086817 | E8: 2 | F8: 0.006430868167 | G8: 1 | H8: 0.04747320061 | I8: 1 | J8: =MIN(SUM(CountyScoresTbl[[#This Row],[Points Awarded]],CountyScoresTbl[[#This Row],[Points Awarded2]],CountyScoresTbl[[#This Row],[Points Awarded3]],CountyScoresTbl[[#This Row],[Points Awarded4]]),15) -> 5 | M8: 0.06902535429 | N8: 8 | Q8: 0.3667883212 | R8: 8 | S8: =MIN(SUM(CountyScoresTbl[[#This Row],[Points Awarded6]],CountyScoresTbl[[#This Row],[Points Awarded7]],CountyScoresTbl[[#This Row],[Points Awarded8]],CountyScoresTbl[[#This Row],[Points Awarded9]]),15) -> 15 | T8: 1.299814929 | U8: 8 | V8: 435500 | W8: 532250 | X8: 443815.2935 | Y8: =MIN( 500000, AVERAGE(CountyScoresTbl[[#This Row],[Redfin.com Median Sales Price (October 2024)]:[Zillow.com Median Sales Price (October 2024)]])) -> 470521.7645 | Z8: 632 | AA8: ='HDPL Unit Mix'!$G$16 -> 0 | AB8: ='HDPL Unit Mix'!$H$16 -> 0 | AC8: =IFERROR( CountyScoresTbl[[#This Row],[Affordable Single Family Homes Sold In Last Year (November 2024) (Zillow.com)]]/CountyScoresTbl[[#This Row],[CalHome Proposed Number of Loans (entered by Applicant)]], 0) -> 0 | AD8: =IFERROR( CountyScoresTbl[[#This Row],[Affordable Single Family Homes Sold In Last Year (November 2024) (Zillow.com)]]/CountyScoresTbl[[#This Row],[Serna Proposed Number of Loans (entered by Applicant)]], 0) -> 0 | AE8: 2 | AF8: 2 | AG8: =MIN(CountyScoresTbl[[#This Row],[Median Owner Renter Cost Ratio Points]]+CountyScoresTbl[[#This Row],[CalHome Proposed Loans to Sales Ratio Points]],15) -> 10 | AH8: =MIN(CountyScoresTbl[[#This Row],[Median Owner Renter Cost Ratio Points]]+CountyScoresTbl[[#This Row],[Serna Proposed Loans to Sales Ratio Points]],15) -> 10 | AI8: 0.4948986822 | AJ8: 2 | AK8: 0.00802919708 | AL8: 6 | AM8: =MIN(SUM(CountyScoresTbl[[#This Row],[Points Awarded10]],CountyScoresTbl[[#This Row],[Points Awarded12]]),15) -> 8 | AN8: 0.4786324786 | AO8: 8 | AP8: 0.04747320061 | AQ8: 2 | AR8: =MIN(SUM(CountyScoresTbl[[#This Row],[Points Awarded11]],CountyScoresTbl[[#This Row],[Points Awarded13]]),15) -> 10 | AS8: 1.425406204 | AT8: 5 | AU8: =SUM(CountyScoresTbl[[#This Row],[Points Awarded5]],10) -> 15 | AV8: 0 | AW8: =IF(CountyScoresTbl[[#This Row],[OMS Migrant Family Housing Centers In County]]>=3,30,IF(CountyScoresTbl[[#This Row],[OMS Migrant Family Housing Centers In County]]=2,20,IF(CountyScoresTbl[[#This Row],[OMS Migrant Family Housing Centers In County]]=1,10,0))) -> 0
A9: Colusa | B9: 15 | C9: 4 | D9: 0.5918003565 | E9: 2 | F9: 0.02495543672 | G9: 2 | H9: 0.03773584906 | I9: 2 | J9: =MIN(SUM(CountyScoresTbl[[#This Row],[Points Awarded]],CountyScoresTbl[[#This Row],[Points Awarded2]],CountyScoresTbl[[#This Row],[Points Awarded3]],CountyScoresTbl[[#This Row],[Points Awarded4]]),15) -> 10 | M9: 0.04611128189 | N9: 6 | Q9: 0.3281423804 | R9: 6 | S9: =MIN(SUM(CountyScoresTbl[[#This Row],[Points Awarded6]],CountyScoresTbl[[#This Row],[Points Awarded7]],CountyScoresTbl[[#This Row],[Points Awarded8]],CountyScoresTbl[[#This Row],[Points Awarded9]]),15) -> 12 | T9: 1.746465598 | U9: 2 | V9: 487000 | W9: 525250 | X9: 365470.3907 | Y9: =MIN( 500000, AVERAGE(CountyScoresTbl[[#This Row],[Redfin.com Median Sales Price (October 2024)]:[Zillow.com Median Sales Price (October 2024)]])) -> 459240.1302 | Z9: 74 | AA9: ='HDPL Unit Mix'!$G$16 -> 0 | AB9: ='HDPL Unit Mix'!$H$16 -> 0 | AC9: =IFERROR( CountyScoresTbl[[#This Row],[Affordable Single Family Homes Sold In Last Year (November 2024) (Zillow.com)]]/CountyScoresTbl[[#This Row],[CalHome Proposed Number of Loans (entered by Applicant)]], 0) -> 0 | AD9: =IFERROR( CountyScoresTbl[[#This Row],[Affordable Single Family Homes Sold In Last Year (November 2024) (Zillow.com)]]/CountyScoresTbl[[#This Row],[Serna Proposed Number of Loans (entered by Applicant)]], 0) -> 0 | AE9: 2 | AF9: 2 | AG9: =MIN(CountyScoresTbl[[#This Row],[Median Owner Renter Cost Ratio Points]]+CountyScoresTbl[[#This Row],[CalHome Proposed Loans to Sales Ratio Points]],15) -> 4 | AH9: =MIN(CountyScoresTbl[[#This Row],[Median Owner Renter Cost Ratio Points]]+CountyScoresTbl[[#This Row],[Serna Proposed Loans to Sales Ratio Points]],15) -> 4 | AI9: 0.6519419548 | AJ9: 4 | AK9: 0.003337041157 | AL9: 2 | AM9: =MIN(SUM(CountyScoresTbl[[#This Row],[Points Awarded10]],CountyScoresTbl[[#This Row],[Points Awarded12]]),15) -> 6 | AN9: 0.2680722892 | AO9: 2 | AP9: 0.03773584906 | AQ9: 4 | AR9: =MIN(SUM(CountyScoresTbl[[#This Row],[Points Awarded11]],CountyScoresTbl[[#This Row],[Points Awarded13]]),15) -> 6 | AS9: 1.755991285 | AT9: 1 | AU9: =SUM(CountyScoresTbl[[#This Row],[Points Awarded5]],10) -> 11 | AV9: 1 | AW9: =IF(CountyScoresTbl[[#This Row],[OMS Migrant Family Housing Centers In County]]>=3,30,IF(CountyScoresTbl[[#This Row],[OMS Migrant Family Housing Centers In County]]=2,20,IF(CountyScoresTbl[[#This Row],[OMS Migrant Family Housing Centers In County]]=1,10,0))) -> 10
A10: Contra Costa | B10: 5.58445729 | C10: 3 | D10: 0.5771546083 | E10: 2 | F10: 0.04284913068 | G10: 3 | H10: 0.03080268165 | I10: 3 | J10: =MIN(SUM(CountyScoresTbl[[#This Row],[Points Awarded]],CountyScoresTbl[[#This Row],[Points Awarded2]],CountyScoresTbl[[#This Row],[Points Awarded3]],CountyScoresTbl[[#This Row],[Points Awarded4]]),15) -> 11 | M10: 0.02803751762 | N10: 2 | Q10: 0.2921180632 | R10: 4 | S10: =MIN(SUM(CountyScoresTbl[[#This Row],[Points Awarded6]],CountyScoresTbl[[#This Row],[Points Awarded7]],CountyScoresTbl[[#This Row],[Points Awarded8]],CountyScoresTbl[[#This Row],[Points Awarded9]]),15) -> 6 | T10: 1.439570278 | U10: 6 | V10: 860000 | W10: 797000 | X10: 807496.4118 | Y10: =MIN( 500000, AVERAGE(CountyScoresTbl[[#This Row],[Redfin.com Median Sales Price (October 2024)]:[Zillow.com Median Sales Price (October 2024)]])) -> 500000 | Z10: 1816 | AA10: ='HDPL Unit Mix'!$G$16 -> 0 | AB10: ='HDPL Unit Mix'!$H$16 -> 0 | AC10: =IFERROR( CountyScoresTbl[[#This Row],[Affordable Single Family Homes Sold In Last Year (November 2024) (Zillow.com)]]/CountyScoresTbl[[#This Row],[CalHome Proposed Number of Loans (entered by Applicant)]], 0) -> 0 | AD10: =IFERROR( CountyScoresTbl[[#This Row],[Affordable Single Family Homes Sold In Last Year (November 2024) (Zillow.com)]]/CountyScoresTbl[[#This Row],[Serna Proposed Number of Loans (entered by Applicant)]], 0) -> 0 | AE10: 2 | AF10: 2 | AG10: =MIN(CountyScoresTbl[[#This Row],[Median Owner Renter Cost Ratio Points]]+CountyScoresTbl[[#This Row],[CalHome Proposed Loans to Sales Ratio Points]],15) -> 8 | AH10: =MIN(CountyScoresTbl[[#This Row],[Median Owner Renter Cost Ratio Points]]+CountyScoresTbl[[#This Row],[Serna Proposed Loans to Sales Ratio Points]],15) -> 8 | AI10: 0.6921002376 | AJ10: 6 | AK10: 0.006172157123 | AL10: 4 | AM10: =MIN(SUM(CountyScoresTbl[[#This Row],[Points Awarded10]],CountyScoresTbl[[#This Row],[Points Awarded12]]),15) -> 10 | AN10: 0.4135786473 | AO10: 6 | AP10: 0.03080268165 | AQ10: 6 | AR10: =MIN(SUM(CountyScoresTbl[[#This Row],[Points Awarded11]],CountyScoresTbl[[#This Row],[Points Awarded13]]),15) -> 12 | AS10: 1.463692946 | AT10: 5 | AU10: =SUM(CountyScoresTbl[[#This Row],[Points Awarded5]],10) -> 15 | AV10: 0 | AW10: =IF(CountyScoresTbl[[#This Row],[OMS Migrant Family Housing Centers In County]]>=3,30,IF(CountyScoresTbl[[#This Row],[OMS Migrant Family Housing Centers In County]]=2,20,IF(CountyScoresTbl[[#This Row],[OMS Migrant Family Housing Centers In County]]=1,10,0))) -> 0
A11: Del Norte | B11: 4.544937429 | C11: 1 | D11: 0.7272727273 | E11: 4 | F11: 0.00826446281 | G11: 1 | H11: 0 | I11: 4 | J11: =MIN(SUM(CountyScoresTbl[[#This Row],[Points Awarded]],CountyScoresTbl[[#This Row],[Points Awarded2]],CountyScoresTbl[[#This Row],[Points Awarded3]],CountyScoresTbl[[#This Row],[Points Awarded4]]),15) -> 10 | M11: 0.02848242101 | N11: 2 | Q11: 0.3405073021 | R11: 6 | S11: =MIN(SUM(CountyScoresTbl[[#This Row],[Points Awarded6]],CountyScoresTbl[[#This Row],[Points Awarded7]],CountyScoresTbl[[#This Row],[Points Awarded8]],CountyScoresTbl[[#This Row],[Points Awarded9]]),15) -> 8 | T11: 1.353403141 | U11: 8 | V11: 399500 | W11: 449375 | X11: 360278.6491 | Y11: =MIN( 500000, AVERAGE(CountyScoresTbl[[#This Row],[Redfin.com Median Sales Price (October 2024)]:[Zillow.com Median Sales Price (October 2024)]])) -> 403051.2164 | Z11: 204 | AA11: ='HDPL Unit Mix'!$G$16 -> 0 | AB11: ='HDPL Unit Mix'!$H$16 -> 0 | AC11: =IFERROR( CountyScoresTbl[[#This Row],[Affordable Single Family Homes Sold In Last Year (November 2024) (Zillow.com)]]/CountyScoresTbl[[#This Row],[CalHome Proposed Number of Loans (entered by Applicant)]], 0) -> 0 | AD11: =IFERROR( CountyScoresTbl[[#This Row],[Affordable Single Family Homes Sold In Last Year (November 2024) (Zillow.com)]]/CountyScoresTbl[[#This Row],[Serna Proposed Number of Loans (entered by Applicant)]], 0) -> 0 | AE11: 2 | AF11: 2 | AG11: =MIN(CountyScoresTbl[[#This Row],[Median Owner Renter Cost Ratio Points]]+CountyScoresTbl[[#This Row],[CalHome Proposed Loans to Sales Ratio Points]],15) -> 10 | AH11: =MIN(CountyScoresTbl[[#This Row],[Median Owner Renter Cost Ratio Points]]+CountyScoresTbl[[#This Row],[Serna Proposed Loans to Sales Ratio Points]],15) -> 10 | AI11: 0.6159889094 | AJ11: 4 | AK11: 0.004611837048 | AL11: 2 | AM11: =MIN(SUM(CountyScoresTbl[[#This Row],[Points Awarded10]],CountyScoresTbl[[#This Row],[Points Awarded12]]),15) -> 6 | AN11: 0.4136363636 | AO11: 6 | AP11: 0 | AQ11: 8 | AR11: =MIN(SUM(CountyScoresTbl[[#This Row],[Points Awarded11]],CountyScoresTbl[[#This Row],[Points Awarded13]]),15) -> 14 | AS11: 1.479915433 | AT11: 4 | AU11: =SUM(CountyScoresTbl[[#This Row],[Points Awarded5]],10) -> 14 | AV11: 0 | AW11: =IF(CountyScoresTbl[[#This Row],[OMS Migrant Family Housing Centers In County]]>=3,30,IF(CountyScoresTbl[[#This Row],[OMS Migrant Family Housing Centers In County]]=2,20,IF(CountyScoresTbl[[#This Row],[OMS Migrant Family Housing Centers In County]]=1,10,0))) -> 0
A12: El Dorado | B12: 5.829675154 | C12: 3 | D12: 0.5990419837 | E12: 3 | F12: 0.01549732319 | G12: 1 | H12: 0.06703470032 | I12: 1 | J12: =MIN(SUM(CountyScoresTbl[[#This Row],[Points Awarded]],CountyScoresTbl[[#This Row],[Points Awarded2]],CountyScoresTbl[[#This Row],[Points Awarded3]],CountyScoresTbl[[#This Row],[Points Awarded4]]),15) -> 8 | M12: 0.03383112747 | N12: 2 | Q12: 0.2741679873 | R12: 2 | S12: =MIN(SUM(CountyScoresTbl[[#This Row],[Points Awarded6]],CountyScoresTbl[[#This Row],[Points Awarded7]],CountyScoresTbl[[#This Row],[Points Awarded8]],CountyScoresTbl[[#This Row],[Points Awarded9]]),15) -> 4 | T12: 1.710081403 | U12: 2 | V12: 664500 | W12: 697475 | X12: 656655.096 | Y12: =MIN( 500000, AVERAGE(CountyScoresTbl[[#This Row],[Redfin.com Median Sales Price (October 2024)]:[Zillow.com Median Sales Price (October 2024)]])) -> 500000 | Z12: 1048 | AA12: ='HDPL Unit Mix'!$G$16 -> 0 | AB12: ='HDPL Unit Mix'!$H$16 -> 0 | AC12: =IFERROR( CountyScoresTbl[[#This Row],[Affordable Single Family Homes Sold In Last Year (November 2024) (Zillow.com)]]/CountyScoresTbl[[#This Row],[CalHome Proposed Number of Loans (entered by Applicant)]], 0) -> 0 | AD12: =IFERROR( CountyScoresTbl[[#This Row],[Affordable Single Family Homes Sold In Last Year (November 2024) (Zillow.com)]]/CountyScoresTbl[[#This Row],[Serna Proposed Number of Loans (entered by Applicant)]], 0) -> 0 | AE12: 2 | AF12: 2 | AG12: =MIN(CountyScoresTbl[[#This Row],[Median Owner Renter Cost Ratio Points]]+CountyScoresTbl[[#This Row],[CalHome Proposed Loans to Sales Ratio Points]],15) -> 4 | AH12: =MIN(CountyScoresTbl[[#This Row],[Median Owner Renter Cost Ratio Points]]+CountyScoresTbl[[#This Row],[Serna Proposed Loans to Sales Ratio Points]],15) -> 4 | AI12: 0.5744387176 | AJ12: 2 | AK12: 0.003785877795 | AL12: 2 | AM12: =MIN(SUM(CountyScoresTbl[[#This Row],[Points Awarded10]],CountyScoresTbl[[#This Row],[Points Awarded12]]),15) -> 4 | AN12: 0.404985889 | AO12: 6 | AP12: 0.06703470032 | AQ12: 2 | AR12: =MIN(SUM(CountyScoresTbl[[#This Row],[Points Awarded11]],CountyScoresTbl[[#This Row],[Points Awarded13]]),15) -> 8 | AS12: 1.788636364 | AT12: 1 | AU12: =SUM(CountyScoresTbl[[#This Row],[Points Awarded5]],10) -> 11 | AV12: 0 | AW12: =IF(CountyScoresTbl[[#This Row],[OMS Migrant Family Housing Centers In County]]>=3,30,IF(CountyScoresTbl[[#This Row],[OMS Migrant Family Housing Centers In County]]=2,20,IF(CountyScoresTbl[[#This Row],[OMS Migrant Family Housing Centers In County]]=1,10,0))) -> 0
A13: Fresno | B13: 4.670079636 | C13: 2 | D13: 0.6269003013 | E13: 3 | F13: 0.07729334765 | G13: 4 | H13: 0.03136320945 | I13: 3 | J13: =MIN(SUM(CountyScoresTbl[[#This Row],[Points Awarded]],CountyScoresTbl[[#This Row],[Points Awarded2]],CountyScoresTbl[[#This Row],[Points Awarded3]],CountyScoresTbl[[#This Row],[Points Awarded4]]),15) -> 12 | M13: 0.06545795093 | N13: 8 | Q13: 0.2700326403 | R13: 2 | S13: =MIN(SUM(CountyScoresTbl[[#This Row],[Points Awarded6]],CountyScoresTbl[[#This Row],[Points Awarded7]],CountyScoresTbl[[#This Row],[Points Awarded8]],CountyScoresTbl[[#This Row],[Points Awarded9]]),15) -> 10 | T13: 1.571665286 | U13: 4 | V13: 410500 | W13: 460000 | X13: 395072.8216 | Y13: =MIN( 500000, AVERAGE(CountyScoresTbl[[#This Row],[Redfin.com Median Sales Price (October 2024)]:[Zillow.com Median Sales Price (October 2024)]])) -> 421857.6072 | Z13: 4623 | AA13: ='HDPL Unit Mix'!$G$16 -> 0 | AB13: ='HDPL Unit Mix'!$H$16 -> 0 | AC13: =IFERROR( CountyScoresTbl[[#This Row],[Affordable Single Family Homes Sold In Last Year (November 2024) (Zillow.com)]]/CountyScoresTbl[[#This Row],[CalHome Proposed Number of Loans (entered by Applicant)]], 0) -> 0 | AD13: =IFERROR( CountyScoresTbl[[#This Row],[Affordable Single Family Homes Sold In Last Year (November 2024) (Zillow.com)]]/CountyScoresTbl[[#This Row],[Serna Proposed Number of Loans (entered by Applicant)]], 0) -> 0 | AE13: 2 | AF13: 2 | AG13: =MIN(CountyScoresTbl[[#This Row],[Median Owner Renter Cost Ratio Points]]+CountyScoresTbl[[#This Row],[CalHome Proposed Loans to Sales Ratio Points]],15) -> 6 | AH13: =MIN(CountyScoresTbl[[#This Row],[Median Owner Renter Cost Ratio Points]]+CountyScoresTbl[[#This Row],[Serna Proposed Loans to Sales Ratio Points]],15) -> 6 | AI13: 0.5684091502 | AJ13: 2 | AK13: 0.01402652395 | AL13: 8 | AM13: =MIN(SUM(CountyScoresTbl[[#This Row],[Points Awarded10]],CountyScoresTbl[[#This Row],[Points Awarded12]]),15) -> 10 | AN13: 0.4007070651 | AO13: 6 | AP13: 0.03136320945 | AQ13: 6 | AR13: =MIN(SUM(CountyScoresTbl[[#This Row],[Points Awarded11]],CountyScoresTbl[[#This Row],[Points Awarded13]]),15) -> 12 | AS13: 1.613216715 | AT13: 2 | AU13: =SUM(CountyScoresTbl[[#This Row],[Points Awarded5]],10) -> 12 | AV13: 1 | AW13: =IF(CountyScoresTbl[[#This Row],[OMS Migrant Family Housing Centers In County]]>=3,30,IF(CountyScoresTbl[[#This Row],[OMS Migrant Family Housing Centers In County]]=2,20,IF(CountyScoresTbl[[#This Row],[OMS Migrant Family Housing Centers In County]]=1,10,0))) -> 10
A14: Glenn | B14: 4.021615472 | C14: 1 | D14: 0.6749672346 | E14: 4 | F14: 0.009174311927 | G14: 1 | H14: 0.07290400972 | I14: 1 | J14: =MIN(SUM(CountyScoresTbl[[#This Row],[Points Awarded]],CountyScoresTbl[[#This Row],[Points Awarded2]],CountyScoresTbl[[#This Row],[Points Awarded3]],CountyScoresTbl[[#This Row],[Points Awarded4]]),15) -> 7 | M14: 0.03592561285 | N14: 4 | Q14: 0.3226621735 | R14: 6 | S14: =MIN(SUM(CountyScoresTbl[[#This Row],[Points Awarded6]],CountyScoresTbl[[#This Row],[Points Awarded7]],CountyScoresTbl[[#This Row],[Points Awarded8]],CountyScoresTbl[[#This Row],[Points Awarded9]]),15) -> 10 | T14: 1.72597137 | U14: 2 | V14: 353500 | W14: 390750 | X14: 353746.7225 | Y14: =MIN( 500000, AVERAGE(CountyScoresTbl[[#This Row],[Redfin.com Median Sales Price (October 2024)]:[Zillow.com Median Sales Price (October 2024)]])) -> 365998.9075 | Z14: 147 | AA14: ='HDPL Unit Mix'!$G$16 -> 0 | AB14: ='HDPL Unit Mix'!$H$16 -> 0 | AC14: =IFERROR( CountyScoresTbl[[#This Row],[Affordable Single Family Homes Sold In Last Year (November 2024) (Zillow.com)]]/CountyScoresTbl[[#This Row],[CalHome Proposed Number of Loans (entered by Applicant)]], 0) -> 0 | AD14: =IFERROR( CountyScoresTbl[[#This Row],[Affordable Single Family Homes Sold In Last Year (November 2024) (Zillow.com)]]/CountyScoresTbl[[#This Row],[Serna Proposed Number of Loans (entered by Applicant)]], 0) -> 0 | AE14: 2 | AF14: 2 | AG14: =MIN(CountyScoresTbl[[#This Row],[Median Owner Renter Cost Ratio Points]]+CountyScoresTbl[[#This Row],[CalHome Proposed Loans to Sales Ratio Points]],15) -> 4 | AH14: =MIN(CountyScoresTbl[[#This Row],[Median Owner Renter Cost Ratio Points]]+CountyScoresTbl[[#This Row],[Serna Proposed Loans to Sales Ratio Points]],15) -> 4 | AI14: 0.6518794446 | AJ14: 4 | AK14: 0.006739679865 | AL14: 4 | AM14: =MIN(SUM(CountyScoresTbl[[#This Row],[Points Awarded10]],CountyScoresTbl[[#This Row],[Points Awarded12]]),15) -> 8 | AN14: 0.372815534 | AO14: 4 | AP14: 0.07290400972 | AQ14: 2 | AR14: =MIN(SUM(CountyScoresTbl[[#This Row],[Points Awarded11]],CountyScoresTbl[[#This Row],[Points Awarded13]]),15) -> 6 | AS14: 1.859259259 | AT14: 1 | AU14: =SUM(CountyScoresTbl[[#This Row],[Points Awarded5]],10) -> 11 | AV14: 0 | AW14: =IF(CountyScoresTbl[[#This Row],[OMS Migrant Family Housing Centers In County]]>=3,30,IF(CountyScoresTbl[[#This Row],[OMS Migrant Family Housing Centers In County]]=2,20,IF(CountyScoresTbl[[#This Row],[OMS Migrant Family Housing Centers In County]]=1,10,0))) -> 0
A15: Humboldt | B15: 4.926387316 | C15: 2 | D15: 0.6589912281 | E15: 4 | F15: 0.02719298246 | G15: 2 | H15: 0.02896081772 | I15: 3 | J15: =MIN(SUM(CountyScoresTbl[[#This Row],[Points Awarded]],CountyScoresTbl[[#This Row],[Points Awarded2]],CountyScoresTbl[[#This Row],[Points Awarded3]],CountyScoresTbl[[#This Row],[Points Awarded4]]),15) -> 11 | M15: 0.06865835961 | N15: 8 | Q15: 0.3228257355 | R15: 6 | S15: =MIN(SUM(CountyScoresTbl[[#This Row],[Points Awarded6]],CountyScoresTbl[[#This Row],[Points Awarded7]],CountyScoresTbl[[#This Row],[Points Awarded8]],CountyScoresTbl[[#This Row],[Points Awarded9]]),15) -> 14 | T15: 1.659109992 | U15: 4 | V15: 435000 | W15: 479250 | X15: 432568.1642 | Y15: =MIN( 500000, AVERAGE(CountyScoresTbl[[#This Row],[Redfin.com Median Sales Price (October 2024)]:[Zillow.com Median Sales Price (October 2024)]])) -> 448939.3881 | Z15: 914 | AA15: ='HDPL Unit Mix'!$G$16 -> 0 | AB15: ='HDPL Unit Mix'!$H$16 -> 0 | AC15: =IFERROR( CountyScoresTbl[[#This Row],[Affordable Single Family Homes Sold In Last Year (November 2024) (Zillow.com)]]/CountyScoresTbl[[#This Row],[CalHome Proposed Number of Loans (entered by Applicant)]], 0) -> 0 | AD15: =IFERROR( CountyScoresTbl[[#This Row],[Affordable Single Family Homes Sold In Last Year (November 2024) (Zillow.com)]]/CountyScoresTbl[[#This Row],[Serna Proposed Number of Loans (entered by Applicant)]], 0) -> 0 | AE15: 2 | AF15: 2 | AG15: =MIN(CountyScoresTbl[[#This Row],[Median Owner Renter Cost Ratio Points]]+CountyScoresTbl[[#This Row],[CalHome Proposed Loans to Sales Ratio Points]],15) -> 6 | AH15: =MIN(CountyScoresTbl[[#This Row],[Median Owner Renter Cost Ratio Points]]+CountyScoresTbl[[#This Row],[Serna Proposed Loans to Sales Ratio Points]],15) -> 6 | AI15: 0.7417729695 | AJ15: 8 | AK15: 0.009214354995 | AL15: 6 | AM15: =MIN(SUM(CountyScoresTbl[[#This Row],[Points Awarded10]],CountyScoresTbl[[#This Row],[Points Awarded12]]),15) -> 14 | AN15: 0.4885191348 | AO15: 8 | AP15: 0.02896081772 | AQ15: 6 | AR15: =MIN(SUM(CountyScoresTbl[[#This Row],[Points Awarded11]],CountyScoresTbl[[#This Row],[Points Awarded13]]),15) -> 14 | AS15: 1.775449102 | AT15: 1 | AU15: =SUM(CountyScoresTbl[[#This Row],[Points Awarded5]],10) -> 11 | AV15: 0 | AW15: =IF(CountyScoresTbl[[#This Row],[OMS Migrant Family Housing Centers In County]]>=3,30,IF(CountyScoresTbl[[#This Row],[OMS Migrant Family Housing Centers In County]]=2,20,IF(CountyScoresTbl[[#This Row],[OMS Migrant Family Housing Centers In County]]=1,10,0))) -> 0
A16: Imperial | B16: 4.436746303 | C16: 1 | D16: 0.7300261097 | E16: 4 | F16: 0.04464751958 | G16: 4 | H16: 0.03233956544 | I16: 3 | J16: =MIN(SUM(CountyScoresTbl[[#This Row],[Points Awarded]],CountyScoresTbl[[#This Row],[Points Awarded2]],CountyScoresTbl[[#This Row],[Points Awarded3]],CountyScoresTbl[[#This Row],[Points Awarded4]]),15) -> 12 | M16: 0.08318120114 | N16: 8 | Q16: 0.3832891247 | R16: 8 | S16: =MIN(SUM(CountyScoresTbl[[#This Row],[Points Awarded6]],CountyScoresTbl[[#This Row],[Points Awarded7]],CountyScoresTbl[[#This Row],[Points Awarded8]],CountyScoresTbl[[#This Row],[Points Awarded9]]),15) -> 15 | T16: 1.753381894 | U16: 2 | V16: 350000 | W16: 356175 | X16: 347153.3465 | Y16: =MIN( 500000, AVERAGE(CountyScoresTbl[[#This Row],[Redfin.com Median Sales Price (October 2024)]:[Zillow.com Median Sales Price (October 2024)]])) -> 351109.4488 | Z16: 1128 | AA16: ='HDPL Unit Mix'!$G$16 -> 0 | AB16: ='HDPL Unit Mix'!$H$16 -> 0 | AC16: =IFERROR( CountyScoresTbl[[#This Row],[Affordable Single Family Homes Sold In Last Year (November 2024) (Zillow.com)]]/CountyScoresTbl[[#This Row],[CalHome Proposed Number of Loans (entered by Applicant)]], 0) -> 0 | AD16: =IFERROR( CountyScoresTbl[[#This Row],[Affordable Single Family Homes Sold In Last Year (November 2024) (Zillow.com)]]/CountyScoresTbl[[#This Row],[Serna Proposed Number of Loans (entered by Applicant)]], 0) -> 0 | AE16: 2 | AF16: 2 | AG16: =MIN(CountyScoresTbl[[#This Row],[Median Owner Renter Cost Ratio Points]]+CountyScoresTbl[[#This Row],[CalHome Proposed Loans to Sales Ratio Points]],15) -> 4 | AH16: =MIN(CountyScoresTbl[[#This Row],[Median Owner Renter Cost Ratio Points]]+CountyScoresTbl[[#This Row],[Serna Proposed Loans to Sales Ratio Points]],15) -> 4 | AI16: 0.491741022 | AJ16: 2 | AK16: 0.02519893899 | AL16: 8 | AM16: =MIN(SUM(CountyScoresTbl[[#This Row],[Points Awarded10]],CountyScoresTbl[[#This Row],[Points Awarded12]]),15) -> 10 | AN16: 0.3440629471 | AO16: 2 | AP16: 0.03233956544 | AQ16: 6 | AR16: =MIN(SUM(CountyScoresTbl[[#This Row],[Points Awarded11]],CountyScoresTbl[[#This Row],[Points Awarded13]]),15) -> 8 | AS16: 1.727272727 | AT16: 1 | AU16: =SUM(CountyScoresTbl[[#This Row],[Points Awarded5]],10) -> 11 | AV16: 0 | AW16: =IF(CountyScoresTbl[[#This Row],[OMS Migrant Family Housing Centers In County]]>=3,30,IF(CountyScoresTbl[[#This Row],[OMS Migrant Family Housing Centers In County]]=2,20,IF(CountyScoresTbl[[#This Row],[OMS Migrant Family Housing Centers In County]]=1,10,0))) -> 0
A17: Inyo | B17: 15 | C17: 4 | D17: 0.4498207885 | E17: 1 | F17: 0.01075268817 | G17: 1 | H17: 0.03460207612 | I17: 3 | J17: =MIN(SUM(CountyScoresTbl[[#This Row],[Points Awarded]],CountyScoresTbl[[#This Row],[Points Awarded2]],CountyScoresTbl[[#This Row],[Points Awarded3]],CountyScoresTbl[[#This Row],[Points Awarded4]]),15) -> 9 | M17: 0.1008254717 | N17: 8 | Q17: 0.3696729435 | R17: 8 | S17: =MIN(SUM(CountyScoresTbl[[#This Row],[Points Awarded6]],CountyScoresTbl[[#This Row],[Points Awarded7]],CountyScoresTbl[[#This Row],[Points Awarded8]],CountyScoresTbl[[#This Row],[Points Awarded9]]),15) -> 15 | T17: 1.913351017 | U17: 2 | V17: 449000 | W17: 649900 | X17: 492278.1111 | Y17: =MIN( 500000, AVERAGE(CountyScoresTbl[[#This Row],[Redfin.com Median Sales Price (October 2024)]:[Zillow.com Median Sales Price (October 2024)]])) -> 500000 | Z17: 253 | AA17: ='HDPL Unit Mix'!$G$16 -> 0 | AB17: ='HDPL Unit Mix'!$H$16 -> 0 | AC17: =IFERROR( CountyScoresTbl[[#This Row],[Affordable Single Family Homes Sold In Last Year (November 2024) (Zillow.com)]]/CountyScoresTbl[[#This Row],[CalHome Proposed Number of Loans (entered by Applicant)]], 0) -> 0 | AD17: =IFERROR( CountyScoresTbl[[#This Row],[Affordable Single Family Homes Sold In Last Year (November 2024) (Zillow.com)]]/CountyScoresTbl[[#This Row],[Serna Proposed Number of Loans (entered by Applicant)]], 0) -> 0 | AE17: 2 | AF17: 2 | AG17: =MIN(CountyScoresTbl[[#This Row],[Median Owner Renter Cost Ratio Points]]+CountyScoresTbl[[#This Row],[CalHome Proposed Loans to Sales Ratio Points]],15) -> 4 | AH17: =MIN(CountyScoresTbl[[#This Row],[Median Owner Renter Cost Ratio Points]]+CountyScoresTbl[[#This Row],[Serna Proposed Loans to Sales Ratio Points]],15) -> 4 | AI17: 0.8194283507 | AJ17: 8 | AK17: 0.002973240833 | AL17: 2 | AM17: =MIN(SUM(CountyScoresTbl[[#This Row],[Points Awarded10]],CountyScoresTbl[[#This Row],[Points Awarded12]]),15) -> 10 | AN17: 0.2749003984 | AO17: 2 | AP17: 0.03460207612 | AQ17: 6 | AR17: =MIN(SUM(CountyScoresTbl[[#This Row],[Points Awarded11]],CountyScoresTbl[[#This Row],[Points Awarded13]]),15) -> 8 | AS17: 1.968017058 | AT17: 1 | AU17: =SUM(CountyScoresTbl[[#This Row],[Points Awarded5]],10) -> 11 | AV17: 0 | AW17: =IF(CountyScoresTbl[[#This Row],[OMS Migrant Family Housing Centers In County]]>=3,30,IF(CountyScoresTbl[[#This Row],[OMS Migrant Family Housing Centers In County]]=2,20,IF(CountyScoresTbl[[#This Row],[OMS Migrant Family Housing Centers In County]]=1,10,0))) -> 0
A18: Kern | B18: 4.544937429 | C18: 1 | D18: 0.6430422737 | E18: 4 | F18: 0.05134507105 | G18: 4 | H18: 0.04031220516 | I18: 2 | J18: =MIN(SUM(CountyScoresTbl[[#This Row],[Points Awarded]],CountyScoresTbl[[#This Row],[Points Awarded2]],CountyScoresTbl[[#This Row],[Points Awarded3]],CountyScoresTbl[[#This Row],[Points Awarded4]]),15) -> 11 | M18: 0.07814194108 | N18: 8 | Q18: 0.3227589596 | R18: 6 | S18: =MIN(SUM(CountyScoresTbl[[#This Row],[Points Awarded6]],CountyScoresTbl[[#This Row],[Points Awarded7]],CountyScoresTbl[[#This Row],[Points Awarded8]],CountyScoresTbl[[#This Row],[Points Awarded9]]),15) -> 14 | T18: 1.557278208 | U18: 4 | V18: 377000 | W18: 399995 | X18: 355449.7288 | Y18: =MIN( 500000, AVERAGE(CountyScoresTbl[[#This Row],[Redfin.com Median Sales Price (October 2024)]:[Zillow.com Median Sales Price (October 2024)]])) -> 377481.5763 | Z18: 4540 | AA18: ='HDPL Unit Mix'!$G$16 -> 0 | AB18: ='HDPL Unit Mix'!$H$16 -> 0 | AC18: =IFERROR( CountyScoresTbl[[#This Row],[Affordable Single Family Homes Sold In Last Year (November 2024) (Zillow.com)]]/CountyScoresTbl[[#This Row],[CalHome Proposed Number of Loans (entered by Applicant)]], 0) -> 0 | AD18: =IFERROR( CountyScoresTbl[[#This Row],[Affordable Single Family Homes Sold In Last Year (November 2024) (Zillow.com)]]/CountyScoresTbl[[#This Row],[Serna Proposed Number of Loans (entered by Applicant)]], 0) -> 0 | AE18: 2 | AF18: 2 | AG18: =MIN(CountyScoresTbl[[#This Row],[Median Owner Renter Cost Ratio Points]]+CountyScoresTbl[[#This Row],[CalHome Proposed Loans to Sales Ratio Points]],15) -> 6 | AH18: =MIN(CountyScoresTbl[[#This Row],[Median Owner Renter Cost Ratio Points]]+CountyScoresTbl[[#This Row],[Serna Proposed Loans to Sales Ratio Points]],15) -> 6 | AI18: 0.5492920295 | AJ18: 2 | AK18: 0.01510917299 | AL18: 8 | AM18: =MIN(SUM(CountyScoresTbl[[#This Row],[Points Awarded10]],CountyScoresTbl[[#This Row],[Points Awarded12]]),15) -> 10 | AN18: 0.3707435719 | AO18: 4 | AP18: 0.04031220516 | AQ18: 4 | AR18: =MIN(SUM(CountyScoresTbl[[#This Row],[Points Awarded11]],CountyScoresTbl[[#This Row],[Points Awarded13]]),15) -> 8 | AS18: 1.595573441 | AT18: 3 | AU18: =SUM(CountyScoresTbl[[#This Row],[Points Awarded5]],10) -> 13 | AV18: 2 | AW18: =IF(CountyScoresTbl[[#This Row],[OMS Migrant Family Housing Centers In County]]>=3,30,IF(CountyScoresTbl[[#This Row],[OMS Migrant Family Housing Centers In County]]=2,20,IF(CountyScoresTbl[[#This Row],[OMS Migrant Family Housing Centers In County]]=1,10,0))) -> 20
A19: Kings | B19: 3.868031854 | C19: 1 | D19: 0.5601016518 | E19: 1 | F19: 0.03481575604 | G19: 3 | H19: 0.01649587603 | I19: 4 | J19: =MIN(SUM(CountyScoresTbl[[#This Row],[Points Awarded]],CountyScoresTbl[[#This Row],[Points Awarded2]],CountyScoresTbl[[#This Row],[Points Awarded3]],CountyScoresTbl[[#This Row],[Points Awarded4]]),15) -> 9 | M19: 0.07423535511 | N19: 8 | Q19: 0.279330792 | R19: 2 | S19: =MIN(SUM(CountyScoresTbl[[#This Row],[Points Awarded6]],CountyScoresTbl[[#This Row],[Points Awarded7]],CountyScoresTbl[[#This Row],[Points Awarded8]],CountyScoresTbl[[#This Row],[Points Awarded9]]),15) -> 10 | T19: 1.432972523 | U19: 8 | V19: 345000 | W19: 367000 | X19: 346898.789 | Y19: =MIN( 500000, AVERAGE(CountyScoresTbl[[#This Row],[Redfin.com Median Sales Price (October 2024)]:[Zillow.com Median Sales Price (October 2024)]])) -> 352966.263 | Z19: 629 | AA19: ='HDPL Unit Mix'!$G$16 -> 0 | AB19: ='HDPL Unit Mix'!$H$16 -> 0 | AC19: =IFERROR( CountyScoresTbl[[#This Row],[Affordable Single Family Homes Sold In Last Year (November 2024) (Zillow.com)]]/CountyScoresTbl[[#This Row],[CalHome Proposed Number of Loans (entered by Applicant)]], 0) -> 0 | AD19: =IFERROR( CountyScoresTbl[[#This Row],[Affordable Single Family Homes Sold In Last Year (November 2024) (Zillow.com)]]/CountyScoresTbl[[#This Row],[Serna Proposed Number of Loans (entered by Applicant)]], 0) -> 0 | AE19: 2 | AF19: 2 | AG19: =MIN(CountyScoresTbl[[#This Row],[Median Owner Renter Cost Ratio Points]]+CountyScoresTbl[[#This Row],[CalHome Proposed Loans to Sales Ratio Points]],15) -> 10 | AH19: =MIN(CountyScoresTbl[[#This Row],[Median Owner Renter Cost Ratio Points]]+CountyScoresTbl[[#This Row],[Serna Proposed Loans to Sales Ratio Points]],15) -> 10 | AI19: 0.5145460625 | AJ19: 2 | AK19: 0.01101228293 | AL19: 6 | AM19: =MIN(SUM(CountyScoresTbl[[#This Row],[Points Awarded10]],CountyScoresTbl[[#This Row],[Points Awarded12]]),15) -> 8 | AN19: 0.3262250454 | AO19: 2 | AP19: 0.01649587603 | AQ19: 8 | AR19: =MIN(SUM(CountyScoresTbl[[#This Row],[Points Awarded11]],CountyScoresTbl[[#This Row],[Points Awarded13]]),15) -> 10 | AS19: 1.434951456 | AT19: 5 | AU19: =SUM(CountyScoresTbl[[#This Row],[Points Awarded5]],10) -> 15 | AV19: 0 | AW19: =IF(CountyScoresTbl[[#This Row],[OMS Migrant Family Housing Centers In County]]>=3,30,IF(CountyScoresTbl[[#This Row],[OMS Migrant Family Housing Centers In County]]=2,20,IF(CountyScoresTbl[[#This Row],[OMS Migrant Family Housing Centers In County]]=1,10,0))) -> 0
A20: Lake | B20: 3.868031854 | C20: 1 | D20: 0.6127842655 | E20: 3 | F20: 0.02397049785 | G20: 2 | H20: 0.02865671642 | I20: 4 | J20: =MIN(SUM(CountyScoresTbl[[#This Row],[Points Awarded]],CountyScoresTbl[[#This Row],[Points Awarded2]],CountyScoresTbl[[#This Row],[Points Awarded3]],CountyScoresTbl[[#This Row],[Points Awarded4]]),15) -> 10 | M20: 0.04839982464 | N20: 6 | Q20: 0.3760660248 | R20: 8 | S20: =MIN(SUM(CountyScoresTbl[[#This Row],[Points Awarded6]],CountyScoresTbl[[#This Row],[Points Awarded7]],CountyScoresTbl[[#This Row],[Points Awarded8]],CountyScoresTbl[[#This Row],[Points Awarded9]]),15) -> 14 | T20: 1.50331675 | U20: 6 | V20: 345000 | W20: 397500 | X20: 316496.9035 | Y20: =MIN( 500000, AVERAGE(CountyScoresTbl[[#This Row],[Redfin.com Median Sales Price (October 2024)]:[Zillow.com Median Sales Price (October 2024)]])) -> 352998.9678 | Z20: 1108 | AA20: ='HDPL Unit Mix'!$G$16 -> 0 | AB20: ='HDPL Unit Mix'!$H$16 -> 0 | AC20: =IFERROR( CountyScoresTbl[[#This Row],[Affordable Single Family Homes Sold In Last Year (November 2024) (Zillow.com)]]/CountyScoresTbl[[#This Row],[CalHome Proposed Number of Loans (entered by Applicant)]], 0) -> 0 | AD20: =IFERROR( CountyScoresTbl[[#This Row],[Affordable Single Family Homes Sold In Last Year (November 2024) (Zillow.com)]]/CountyScoresTbl[[#This Row],[Serna Proposed Number of Loans (entered by Applicant)]], 0) -> 0 | AE20: 2 | AF20: 2 | AG20: =MIN(CountyScoresTbl[[#This Row],[Median Owner Renter Cost Ratio Points]]+CountyScoresTbl[[#This Row],[CalHome Proposed Loans to Sales Ratio Points]],15) -> 8 | AH20: =MIN(CountyScoresTbl[[#This Row],[Median Owner Renter Cost Ratio Points]]+CountyScoresTbl[[#This Row],[Serna Proposed Loans to Sales Ratio Points]],15) -> 8 | AI20: 0.6664495114 | AJ20: 6 | AK20: 0.01127922971 | AL20: 6 | AM20: =MIN(SUM(CountyScoresTbl[[#This Row],[Points Awarded10]],CountyScoresTbl[[#This Row],[Points Awarded12]]),15) -> 12 | AN20: 0.3520561685 | AO20: 2 | AP20: 0.02865671642 | AQ20: 8 | AR20: =MIN(SUM(CountyScoresTbl[[#This Row],[Points Awarded11]],CountyScoresTbl[[#This Row],[Points Awarded13]]),15) -> 10 | AS20: 1.553501946 | AT20: 3 | AU20: =SUM(CountyScoresTbl[[#This Row],[Points Awarded5]],10) -> 13 | AV20: 0 | AW20: =IF(CountyScoresTbl[[#This Row],[OMS Migrant Family Housing Centers In County]]>=3,30,IF(CountyScoresTbl[[#This Row],[OMS Migrant Family Housing Centers In County]]=2,20,IF(CountyScoresTbl[[#This Row],[OMS Migrant Family Housing Centers In County]]=1,10,0))) -> 0
A21: Lassen | B21: 3.213879408 | C21: 1 | D21: 0.6373831776 | E21: 3 | F21: 0.005607476636 | G21: 1 | H21: 0.05141843972 | I21: 1 | J21: =MIN(SUM(CountyScoresTbl[[#This Row],[Points Awarded]],CountyScoresTbl[[#This Row],[Points Awarded2]],CountyScoresTbl[[#This Row],[Points Awarded3]],CountyScoresTbl[[#This Row],[Points Awarded4]]),15) -> 6 | M21: 0.08793849111 | N21: 8 | Q21: 0.3159582999 | R21: 4 | S21: =MIN(SUM(CountyScoresTbl[[#This Row],[Points Awarded6]],CountyScoresTbl[[#This Row],[Points Awarded7]],CountyScoresTbl[[#This Row],[Points Awarded8]],CountyScoresTbl[[#This Row],[Points Awarded9]]),15) -> 12 | T21: 1.55973025 | U21: 4 | V21: 227500 | W21: 299450 | X21: 229647.8321 | Y21: =MIN( 500000, AVERAGE(CountyScoresTbl[[#This Row],[Redfin.com Median Sales Price (October 2024)]:[Zillow.com Median Sales Price (October 2024)]])) -> 252199.2774 | Z21: 261 | AA21: ='HDPL Unit Mix'!$G$16 -> 0 | AB21: ='HDPL Unit Mix'!$H$16 -> 0 | AC21: =IFERROR( CountyScoresTbl[[#This Row],[Affordable Single Family Homes Sold In Last Year (November 2024) (Zillow.com)]]/CountyScoresTbl[[#This Row],[CalHome Proposed Number of Loans (entered by Applicant)]], 0) -> 0 | AD21: =IFERROR( CountyScoresTbl[[#This Row],[Affordable Single Family Homes Sold In Last Year (November 2024) (Zillow.com)]]/CountyScoresTbl[[#This Row],[Serna Proposed Number of Loans (entered by Applicant)]], 0) -> 0 | AE21: 2 | AF21: 2 | AG21: =MIN(CountyScoresTbl[[#This Row],[Median Owner Renter Cost Ratio Points]]+CountyScoresTbl[[#This Row],[CalHome Proposed Loans to Sales Ratio Points]],15) -> 6 | AH21: =MIN(CountyScoresTbl[[#This Row],[Median Owner Renter Cost Ratio Points]]+CountyScoresTbl[[#This Row],[Serna Proposed Loans to Sales Ratio Points]],15) -> 6 | AI21: 0.6938509215 | AJ21: 6 | AK21: 0.001603849238 | AL21: 2 | AM21: =MIN(SUM(CountyScoresTbl[[#This Row],[Points Awarded10]],CountyScoresTbl[[#This Row],[Points Awarded12]]),15) -> 8 | AN21: 0.2815249267 | AO21: 2 | AP21: 0.05141843972 | AQ21: 2 | AR21: =MIN(SUM(CountyScoresTbl[[#This Row],[Points Awarded11]],CountyScoresTbl[[#This Row],[Points Awarded13]]),15) -> 4 | AS21: 1.567887931 | AT21: 3 | AU21: =SUM(CountyScoresTbl[[#This Row],[Points Awarded5]],10) -> 13 | AV21: 0 | AW21: =IF(CountyScoresTbl[[#This Row],[OMS Migrant Family Housing Centers In County]]>=3,30,IF(CountyScoresTbl[[#This Row],[OMS Migrant Family Housing Centers In County]]=2,20,IF(CountyScoresTbl[[#This Row],[OMS Migrant Family Housing Centers In County]]=1,10,0))) -> 0
A22: Los Angeles | B22: 9.737372709 | C22: 4 | D22: 0.6450569877 | E22: 4 | F22: 0.07351353457 | G22: 4 | H22: 0.03988715115 | I22: 2 | J22: =MIN(SUM(CountyScoresTbl[[#This Row],[Points Awarded]],CountyScoresTbl[[#This Row],[Points Awarded2]],CountyScoresTbl[[#This Row],[Points Awarded3]],CountyScoresTbl[[#This Row],[Points Awarded4]]),15) -> 14 | M22: 0.04328926923 | N22: 4 | Q22: 0.3574353302 | R22: 8 | S22: =MIN(SUM(CountyScoresTbl[[#This Row],[Points Awarded6]],CountyScoresTbl[[#This Row],[Points Awarded7]],CountyScoresTbl[[#This Row],[Points Awarded8]],CountyScoresTbl[[#This Row],[Points Awarded9]]),15) -> 12 | T22: 1.631578947 | U22: 4 | V22: 985000 | W22: 1050000 | X22: 873790.4001 | Y22: =MIN( 500000, AVERAGE(CountyScoresTbl[[#This Row],[Redfin.com Median Sales Price (October 2024)]:[Zillow.com Median Sales Price (October 2024)]])) -> 500000 | Z22: 7173 | AA22: ='HDPL Unit Mix'!$G$16 -> 0 | AB22: ='HDPL Unit Mix'!$H$16 -> 0 | AC22: =IFERROR( CountyScoresTbl[[#This Row],[Affordable Single Family Homes Sold In Last Year (November 2024) (Zillow.com)]]/CountyScoresTbl[[#This Row],[CalHome Proposed Number of Loans (entered by Applicant)]], 0) -> 0 | AD22: =IFERROR( CountyScoresTbl[[#This Row],[Affordable Single Family Homes Sold In Last Year (November 2024) (Zillow.com)]]/CountyScoresTbl[[#This Row],[Serna Proposed Number of Loans (entered by Applicant)]], 0) -> 0 | AE22: =IF(AC22>=167, 10, IF(AC22>=73, 8, IF(AC22>=34, 6, IF(AC22>=11, 4, 0)))) -> 0 | AF22: =IF(AD22>=167, 10, IF(AD22>=73, 8, IF(AD22>=34, 6, IF(AD22>=11, 4, 2)))) -> 2 | AG22: =MIN(CountyScoresTbl[[#This Row],[Median Owner Renter Cost Ratio Points]]+CountyScoresTbl[[#This Row],[CalHome Proposed Loans to Sales Ratio Points]],15) -> 4 | AH22: =MIN(CountyScoresTbl[[#This Row],[Median Owner Renter Cost Ratio Points]]+CountyScoresTbl[[#This Row],[Serna Proposed Loans to Sales Ratio Points]],15) -> 6 | AI22: 0.8579634626 | AJ22: 8 | AK22: 0.01640759931 | AL22: 8 | AM22: =MIN(SUM(CountyScoresTbl[[#This Row],[Points Awarded10]],CountyScoresTbl[[#This Row],[Points Awarded12]]),15) -> 15 | AN22: 0.4280642573 | AO22: 6 | AP22: 0.03988715115 | AQ22: 4 | AR22: =MIN(SUM(CountyScoresTbl[[#This Row],[Points Awarded11]],CountyScoresTbl[[#This Row],[Points Awarded13]]),15) -> 10 | AS22: 1.685788787 | AT22: 2 | AU22: =SUM(CountyScoresTbl[[#This Row],[Points Awarded5]],10) -> 12 | AV22: 0 | AW22: =IF(CountyScoresTbl[[#This Row],[OMS Migrant Family Housing Centers In County]]>=3,30,IF(CountyScoresTbl[[#This Row],[OMS Migrant Family Housing Centers In County]]=2,20,IF(CountyScoresTbl[[#This Row],[OMS Migrant Family Housing Centers In County]]=1,10,0))) -> 0
A23: Madera | B23: 4.982935154 | C23: 2 | D23: 0.632846963 | E23: 3 | F23: 0.06243637598 | G23: 4 | H23: 0.03535188216 | I23: 2 | J23: =MIN(SUM(CountyScoresTbl[[#This Row],[Points Awarded]],CountyScoresTbl[[#This Row],[Points Awarded2]],CountyScoresTbl[[#This Row],[Points Awarded3]],CountyScoresTbl[[#This Row],[Points Awarded4]]),15) -> 11 | M23: 0.06896084541 | N23: 8 | Q23: 0.2919556172 | R23: 4 | S23: =MIN(SUM(CountyScoresTbl[[#This Row],[Points Awarded6]],CountyScoresTbl[[#This Row],[Points Awarded7]],CountyScoresTbl[[#This Row],[Points Awarded8]],CountyScoresTbl[[#This Row],[Points Awarded9]]),15) -> 12 | T23: 1.597468354 | U23: 4 | V23: 432000 | W23: 505000 | X23: 409332.0482 | Y23: =MIN( 500000, AVERAGE(CountyScoresTbl[[#This Row],[Redfin.com Median Sales Price (October 2024)]:[Zillow.com Median Sales Price (October 2024)]])) -> 448777.3494 | Z23: 1195 | AA23: ='HDPL Unit Mix'!$G$16 -> 0 | AB23: ='HDPL Unit Mix'!$H$16 -> 0 | AC23: =IFERROR( CountyScoresTbl[[#This Row],[Affordable Single Family Homes Sold In Last Year (November 2024) (Zillow.com)]]/CountyScoresTbl[[#This Row],[CalHome Proposed Number of Loans (entered by Applicant)]], 0) -> 0 | AD23: =IFERROR( CountyScoresTbl[[#This Row],[Affordable Single Family Homes Sold In Last Year (November 2024) (Zillow.com)]]/CountyScoresTbl[[#This Row],[Serna Proposed Number of Loans (entered by Applicant)]], 0) -> 0 | AE23: 2 | AF23: 2 | AG23: =MIN(CountyScoresTbl[[#This Row],[Median Owner Renter Cost Ratio Points]]+CountyScoresTbl[[#This Row],[CalHome Proposed Loans to Sales Ratio Points]],15) -> 6 | AH23: =MIN(CountyScoresTbl[[#This Row],[Median Owner Renter Cost Ratio Points]]+CountyScoresTbl[[#This Row],[Serna Proposed Loans to Sales Ratio Points]],15) -> 6 | AI23: 0.4967443156 | AJ23: 2 | AK23: 0.01785714286 | AL23: 8 | AM23: =MIN(SUM(CountyScoresTbl[[#This Row],[Points Awarded10]],CountyScoresTbl[[#This Row],[Points Awarded12]]),15) -> 10 | AN23: 0.3506702413 | AO23: 2 | AP23: 0.03535188216 | AQ23: 4 | AR23: =MIN(SUM(CountyScoresTbl[[#This Row],[Points Awarded11]],CountyScoresTbl[[#This Row],[Points Awarded13]]),15) -> 6 | AS23: 1.47752809 | AT23: 4 | AU23: =SUM(CountyScoresTbl[[#This Row],[Points Awarded5]],10) -> 14 | AV23: 1 | AW23: =IF(CountyScoresTbl[[#This Row],[OMS Migrant Family Housing Centers In County]]>=3,30,IF(CountyScoresTbl[[#This Row],[OMS Migrant Family Housing Centers In County]]=2,20,IF(CountyScoresTbl[[#This Row],[OMS Migrant Family Housing Centers In County]]=1,10,0))) -> 10
A24: Marin | B24: 9.11039657 | C24: 4 | D24: 0.6110077107 | E24: 3 | F24: 0.04214304706 | G24: 3 | H24: 0.0233705531 | I24: 4 | J24: =MIN(SUM(CountyScoresTbl[[#This Row],[Points Awarded]],CountyScoresTbl[[#This Row],[Points Awarded2]],CountyScoresTbl[[#This Row],[Points Awarded3]],CountyScoresTbl[[#This Row],[Points Awarded4]]),15) -> 14 | M24: 0.01989642954 | N24: 2 | Q24: 0.321868622 | R24: 4 | S24: =MIN(SUM(CountyScoresTbl[[#This Row],[Points Awarded6]],CountyScoresTbl[[#This Row],[Points Awarded7]],CountyScoresTbl[[#This Row],[Points Awarded8]],CountyScoresTbl[[#This Row],[Points Awarded9]]),15) -> 6 | T24: 1.608765581 | U24: 4 | V24: 1720000 | W24: 1507225 | X24: 1449890.889 | Y24: =MIN( 500000, AVERAGE(CountyScoresTbl[[#This Row],[Redfin.com Median Sales Price (October 2024)]:[Zillow.com Median Sales Price (October 2024)]])) -> 500000 | Z24: 218 | AA24: ='HDPL Unit Mix'!$G$16 -> 0 | AB24: ='HDPL Unit Mix'!$H$16 -> 0 | AC24: =IFERROR( CountyScoresTbl[[#This Row],[Affordable Single Family Homes Sold In Last Year (November 2024) (Zillow.com)]]/CountyScoresTbl[[#This Row],[CalHome Proposed Number of Loans (entered by Applicant)]], 0) -> 0 | AD24: =IFERROR( CountyScoresTbl[[#This Row],[Affordable Single Family Homes Sold In Last Year (November 2024) (Zillow.com)]]/CountyScoresTbl[[#This Row],[Serna Proposed Number of Loans (entered by Applicant)]], 0) -> 0 | AE24: 2 | AF24: 2 | AG24: =MIN(CountyScoresTbl[[#This Row],[Median Owner Renter Cost Ratio Points]]+CountyScoresTbl[[#This Row],[CalHome Proposed Loans to Sales Ratio Points]],15) -> 6 | AH24: =MIN(CountyScoresTbl[[#This Row],[Median Owner Renter Cost Ratio Points]]+CountyScoresTbl[[#This Row],[Serna Proposed Loans to Sales Ratio Points]],15) -> 6 | AI24: 0.8736078502 | AJ24: 8 | AK24: 0.002040970595 | AL24: 2 | AM24: =MIN(SUM(CountyScoresTbl[[#This Row],[Points Awarded10]],CountyScoresTbl[[#This Row],[Points Awarded12]]),15) -> 10 | AN24: 0.385770235 | AO24: 4 | AP24: 0.0233705531 | AQ24: 8 | AR24: =MIN(SUM(CountyScoresTbl[[#This Row],[Points Awarded11]],CountyScoresTbl[[#This Row],[Points Awarded13]]),15) -> 12 | AS24: 1.762211982 | AT24: 1 | AU24: =SUM(CountyScoresTbl[[#This Row],[Points Awarded5]],10) -> 11 | AV24: 0 | AW24: =IF(CountyScoresTbl[[#This Row],[OMS Migrant Family Housing Centers In County]]>=3,30,IF(CountyScoresTbl[[#This Row],[OMS Migrant Family Housing Centers In County]]=2,20,IF(CountyScoresTbl[[#This Row],[OMS Migrant Family Housing Centers In County]]=1,10,0))) -> 0
A25: Mariposa | B25: 5.290102389 | C25: 2 | D25: 0.662037037 | E25: 4 | F25: 0.006944444444 | G25: 1 | H25: 0.1055900621 | I25: 1 | J25: =MIN(SUM(CountyScoresTbl[[#This Row],[Points Awarded]],CountyScoresTbl[[#This Row],[Points Awarded2]],CountyScoresTbl[[#This Row],[Points Awarded3]],CountyScoresTbl[[#This Row],[Points Awarded4]]),15) -> 8 | M25: 0.03468042419 | N25: 4 | Q25: 0.3554327808 | R25: 8 | S25: =MIN(SUM(CountyScoresTbl[[#This Row],[Points Awarded6]],CountyScoresTbl[[#This Row],[Points Awarded7]],CountyScoresTbl[[#This Row],[Points Awarded8]],CountyScoresTbl[[#This Row],[Points Awarded9]]),15) -> 12 | T25: 1.721340388 | U25: 2 | V25: 432000 | W25: 499975 | X25: 389195.6768 | Y25: =MIN( 500000, AVERAGE(CountyScoresTbl[[#This Row],[Redfin.com Median Sales Price (October 2024)]:[Zillow.com Median Sales Price (October 2024)]])) -> 440390.2256 | Z25: 220 | AA25: ='HDPL Unit Mix'!$G$16 -> 0 | AB25: ='HDPL Unit Mix'!$H$16 -> 0 | AC25: =IFERROR( CountyScoresTbl[[#This Row],[Affordable Single Family Homes Sold In Last Year (November 2024) (Zillow.com)]]/CountyScoresTbl[[#This Row],[CalHome Proposed Number of Loans (entered by Applicant)]], 0) -> 0 | AD25: =IFERROR( CountyScoresTbl[[#This Row],[Affordable Single Family Homes Sold In Last Year (November 2024) (Zillow.com)]]/CountyScoresTbl[[#This Row],[Serna Proposed Number of Loans (entered by Applicant)]], 0) -> 0 | AE25: 2 | AF25: 2 | AG25: =MIN(CountyScoresTbl[[#This Row],[Median Owner Renter Cost Ratio Points]]+CountyScoresTbl[[#This Row],[CalHome Proposed Loans to Sales Ratio Points]],15) -> 4 | AH25: =MIN(CountyScoresTbl[[#This Row],[Median Owner Renter Cost Ratio Points]]+CountyScoresTbl[[#This Row],[Serna Proposed Loans to Sales Ratio Points]],15) -> 4 | AI25: 0.6309778729 | AJ25: 4 | AK25: 0.002762430939 | AL25: 2 | AM25: =MIN(SUM(CountyScoresTbl[[#This Row],[Points Awarded10]],CountyScoresTbl[[#This Row],[Points Awarded12]]),15) -> 6 | AN25: 0.3671328671 | AO25: 4 | AP25: 0.1055900621 | AQ25: 2 | AR25: =MIN(SUM(CountyScoresTbl[[#This Row],[Points Awarded11]],CountyScoresTbl[[#This Row],[Points Awarded13]]),15) -> 6 | AS25: 1.686138614 | AT25: 2 | AU25: =SUM(CountyScoresTbl[[#This Row],[Points Awarded5]],10) -> 12 | AV25: 0 | AW25: =IF(CountyScoresTbl[[#This Row],[OMS Migrant Family Housing Centers In County]]>=3,30,IF(CountyScoresTbl[[#This Row],[OMS Migrant Family Housing Centers In County]]=2,20,IF(CountyScoresTbl[[#This Row],[OMS Migrant Family Housing Centers In County]]=1,10,0))) -> 0
A26: Mendocino | B26: 5.707964602 | C26: 3 | D26: 0.6174521355 | E26: 3 | F26: 0.02761413844 | G26: 2 | H26: 0.02337288745 | I26: 4 | J26: =MIN(SUM(CountyScoresTbl[[#This Row],[Points Awarded]],CountyScoresTbl[[#This Row],[Points Awarded2]],CountyScoresTbl[[#This Row],[Points Awarded3]],CountyScoresTbl[[#This Row],[Points Awarded4]]),15) -> 12 | M26: 0.05752799057 | N26: 6 | Q26: 0.3368114535 | R26: 6 | S26: =MIN(SUM(CountyScoresTbl[[#This Row],[Points Awarded6]],CountyScoresTbl[[#This Row],[Points Awarded7]],CountyScoresTbl[[#This Row],[Points Awarded8]],CountyScoresTbl[[#This Row],[Points Awarded9]]),15) -> 12 | T26: 1.785483871 | U26: 2 | V26: 525000 | W26: 679250 | X26: 493022.986 | Y26: =MIN( 500000, AVERAGE(CountyScoresTbl[[#This Row],[Redfin.com Median Sales Price (October 2024)]:[Zillow.com Median Sales Price (October 2024)]])) -> 500000 | Z26: 529 | AA26: ='HDPL Unit Mix'!$G$16 -> 0 | AB26: ='HDPL Unit Mix'!$H$16 -> 0 | AC26: =IFERROR( CountyScoresTbl[[#This Row],[Affordable Single Family Homes Sold In Last Year (November 2024) (Zillow.com)]]/CountyScoresTbl[[#This Row],[CalHome Proposed Number of Loans (entered by Applicant)]], 0) -> 0 | AD26: =IFERROR( CountyScoresTbl[[#This Row],[Affordable Single Family Homes Sold In Last Year (November 2024) (Zillow.com)]]/CountyScoresTbl[[#This Row],[Serna Proposed Number of Loans (entered by Applicant)]], 0) -> 0 | AE26: 2 | AF26: 2 | AG26: =MIN(CountyScoresTbl[[#This Row],[Median Owner Renter Cost Ratio Points]]+CountyScoresTbl[[#This Row],[CalHome Proposed Loans to Sales Ratio Points]],15) -> 4 | AH26: =MIN(CountyScoresTbl[[#This Row],[Median Owner Renter Cost Ratio Points]]+CountyScoresTbl[[#This Row],[Serna Proposed Loans to Sales Ratio Points]],15) -> 4 | AI26: 0.729138947 | AJ26: 6 | AK26: 0.007765105557 | AL26: 4 | AM26: =MIN(SUM(CountyScoresTbl[[#This Row],[Points Awarded10]],CountyScoresTbl[[#This Row],[Points Awarded12]]),15) -> 10 | AN26: 0.3655336911 | AO26: 4 | AP26: 0.02337288745 | AQ26: 8 | AR26: =MIN(SUM(CountyScoresTbl[[#This Row],[Points Awarded11]],CountyScoresTbl[[#This Row],[Points Awarded13]]),15) -> 12 | AS26: 1.720458554 | AT26: 2 | AU26: =SUM(CountyScoresTbl[[#This Row],[Points Awarded5]],10) -> 12 | AV26: 0 | AW26: =IF(CountyScoresTbl[[#This Row],[OMS Migrant Family Housing Centers In County]]>=3,30,IF(CountyScoresTbl[[#This Row],[OMS Migrant Family Housing Centers In County]]=2,20,IF(CountyScoresTbl[[#This Row],[OMS Migrant Family Housing Centers In County]]=1,10,0))) -> 0
A27: Merced | B27: 4.687144482 | C27: 2 | D27: 0.5696731695 | E27: 2 | F27: 0.03445654928 | G27: 3 | H27: 0.03188619083 | I27: 3 | J27: =MIN(SUM(CountyScoresTbl[[#This Row],[Points Awarded]],CountyScoresTbl[[#This Row],[Points Awarded2]],CountyScoresTbl[[#This Row],[Points Awarded3]],CountyScoresTbl[[#This Row],[Points Awarded4]]),15) -> 10 | M27: 0.07649379932 | N27: 8 | Q27: 0.3241191126 | R27: 6 | S27: =MIN(SUM(CountyScoresTbl[[#This Row],[Points Awarded6]],CountyScoresTbl[[#This Row],[Points Awarded7]],CountyScoresTbl[[#This Row],[Points Awarded8]],CountyScoresTbl[[#This Row],[Points Awarded9]]),15) -> 14 | T27: 1.475833333 | U27: 6 | V27: 420000 | W27: 468995 | X27: 411848.9574 | Y27: =MIN( 500000, AVERAGE(CountyScoresTbl[[#This Row],[Redfin.com Median Sales Price (October 2024)]:[Zillow.com Median Sales Price (October 2024)]])) -> 433614.6525 | Z27: 1281 | AA27: ='HDPL Unit Mix'!$G$16 -> 0 | AB27: ='HDPL Unit Mix'!$H$16 -> 0 | AC27: =IFERROR( CountyScoresTbl[[#This Row],[Affordable Single Family Homes Sold In Last Year (November 2024) (Zillow.com)]]/CountyScoresTbl[[#This Row],[CalHome Proposed Number of Loans (entered by Applicant)]], 0) -> 0 | AD27: =IFERROR( CountyScoresTbl[[#This Row],[Affordable Single Family Homes Sold In Last Year (November 2024) (Zillow.com)]]/CountyScoresTbl[[#This Row],[Serna Proposed Number of Loans (entered by Applicant)]], 0) -> 0 | AE27: 2 | AF27: 2 | AG27: =MIN(CountyScoresTbl[[#This Row],[Median Owner Renter Cost Ratio Points]]+CountyScoresTbl[[#This Row],[CalHome Proposed Loans to Sales Ratio Points]],15) -> 8 | AH27: =MIN(CountyScoresTbl[[#This Row],[Median Owner Renter Cost Ratio Points]]+CountyScoresTbl[[#This Row],[Serna Proposed Loans to Sales Ratio Points]],15) -> 8 | AI27: 0.5366428118 | AJ27: 2 | AK27: 0.01305018389 | AL27: 8 | AM27: =MIN(SUM(CountyScoresTbl[[#This Row],[Points Awarded10]],CountyScoresTbl[[#This Row],[Points Awarded12]]),15) -> 10 | AN27: 0.3582388259 | AO27: 4 | AP27: 0.03188619083 | AQ27: 6 | AR27: =MIN(SUM(CountyScoresTbl[[#This Row],[Points Awarded11]],CountyScoresTbl[[#This Row],[Points Awarded13]]),15) -> 10 | AS27: 1.457305503 | AT27: 5 | AU27: =SUM(CountyScoresTbl[[#This Row],[Points Awarded5]],10) -> 15 | AV27: 4 | AW27: =IF(CountyScoresTbl[[#This Row],[OMS Migrant Family Housing Centers In County]]>=3,30,IF(CountyScoresTbl[[#This Row],[OMS Migrant Family Housing Centers In County]]=2,20,IF(CountyScoresTbl[[#This Row],[OMS Migrant Family Housing Centers In County]]=1,10,0))) -> 30
A28: Modoc | B28: 15 | C28: 4 | D28: 0.6609195402 | E28: 4 | F28: 0 | G28: 1 | H28: 0 | I28: 4 | J28: =MIN(SUM(CountyScoresTbl[[#This Row],[Points Awarded]],CountyScoresTbl[[#This Row],[Points Awarded2]],CountyScoresTbl[[#This Row],[Points Awarded3]],CountyScoresTbl[[#This Row],[Points Awarded4]]),15) -> 13 | M28: 0.06038374718 | N28: 8 | Q28: 0.4066797642 | R28: 8 | S28: =MIN(SUM(CountyScoresTbl[[#This Row],[Points Awarded6]],CountyScoresTbl[[#This Row],[Points Awarded7]],CountyScoresTbl[[#This Row],[Points Awarded8]],CountyScoresTbl[[#This Row],[Points Awarded9]]),15) -> 15 | T28: 1.57160804 | U28: 4 | V28: 100000 | W28: 249750 | X28: 190117.4471 | Y28: =MIN( 500000, AVERAGE(CountyScoresTbl[[#This Row],[Redfin.com Median Sales Price (October 2024)]:[Zillow.com Median Sales Price (October 2024)]])) -> 179955.8157 | Z28: 61 | AA28: ='HDPL Unit Mix'!$G$16 -> 0 | AB28: ='HDPL Unit Mix'!$H$16 -> 0 | AC28: =IFERROR( CountyScoresTbl[[#This Row],[Affordable Single Family Homes Sold In Last Year (November 2024) (Zillow.com)]]/CountyScoresTbl[[#This Row],[CalHome Proposed Number of Loans (entered by Applicant)]], 0) -> 0 | AD28: =IFERROR( CountyScoresTbl[[#This Row],[Affordable Single Family Homes Sold In Last Year (November 2024) (Zillow.com)]]/CountyScoresTbl[[#This Row],[Serna Proposed Number of Loans (entered by Applicant)]], 0) -> 0 | AE28: 2 | AF28: 2 | AG28: =MIN(CountyScoresTbl[[#This Row],[Median Owner Renter Cost Ratio Points]]+CountyScoresTbl[[#This Row],[CalHome Proposed Loans to Sales Ratio Points]],15) -> 6 | AH28: =MIN(CountyScoresTbl[[#This Row],[Median Owner Renter Cost Ratio Points]]+CountyScoresTbl[[#This Row],[Serna Proposed Loans to Sales Ratio Points]],15) -> 6 | AI28: 0.7070786077 | AJ28: 6 | AK28: 0.003929273084 | AL28: 2 | AM28: =MIN(SUM(CountyScoresTbl[[#This Row],[Points Awarded10]],CountyScoresTbl[[#This Row],[Points Awarded12]]),15) -> 8 | AN28: 0.3130434783 | AO28: 2 | AP28: 0 | AQ28: 8 | AR28: =MIN(SUM(CountyScoresTbl[[#This Row],[Points Awarded11]],CountyScoresTbl[[#This Row],[Points Awarded13]]),15) -> 10 | AS28: 1.554821664 | AT28: 3 | AU28: =SUM(CountyScoresTbl[[#This Row],[Points Awarded5]],10) -> 13 | AV28: 1 | AW28: =IF(CountyScoresTbl[[#This Row],[OMS Migrant Family Housing Centers In County]]>=3,30,IF(CountyScoresTbl[[#This Row],[OMS Migrant Family Housing Centers In County]]=2,20,IF(CountyScoresTbl[[#This Row],[OMS Migrant Family Housing Centers In County]]=1,10,0))) -> 10
A29: Mono | B29: 9.159584514 | C29: 4 | D29: 0.3324250681 | E29: 1 | F29: 0 | G29: 1 | H29: 0.2570850202 | I29: 1 | J29: =MIN(SUM(CountyScoresTbl[[#This Row],[Points Awarded]],CountyScoresTbl[[#This Row],[Points Awarded2]],CountyScoresTbl[[#This Row],[Points Awarded3]],CountyScoresTbl[[#This Row],[Points Awarded4]]),15) -> 7 | M29: 0.0667876588 | N29: 8 | Q29: 0.1957446809 | R29: 2 | S29: =MIN(SUM(CountyScoresTbl[[#This Row],[Points Awarded6]],CountyScoresTbl[[#This Row],[Points Awarded7]],CountyScoresTbl[[#This Row],[Points Awarded8]],CountyScoresTbl[[#This Row],[Points Awarded9]]),15) -> 10 | T29: 1.9324861 | U29: 2 | V29: 867000 | W29: 833250 | X29: 737583.6042 | Y29: =MIN( 500000, AVERAGE(CountyScoresTbl[[#This Row],[Redfin.com Median Sales Price (October 2024)]:[Zillow.com Median Sales Price (October 2024)]])) -> 500000 | Z29: 114 | AA29: ='HDPL Unit Mix'!$G$16 -> 0 | AB29: ='HDPL Unit Mix'!$H$16 -> 0 | AC29: =IFERROR( CountyScoresTbl[[#This Row],[Affordable Single Family Homes Sold In Last Year (November 2024) (Zillow.com)]]/CountyScoresTbl[[#This Row],[CalHome Proposed Number of Loans (entered by Applicant)]], 0) -> 0 | AD29: =IFERROR( CountyScoresTbl[[#This Row],[Affordable Single Family Homes Sold In Last Year (November 2024) (Zillow.com)]]/CountyScoresTbl[[#This Row],[Serna Proposed Number of Loans (entered by Applicant)]], 0) -> 0 | AE29: 2 | AF29: 2 | AG29: =MIN(CountyScoresTbl[[#This Row],[Median Owner Renter Cost Ratio Points]]+CountyScoresTbl[[#This Row],[CalHome Proposed Loans to Sales Ratio Points]],15) -> 4 | AH29: =MIN(CountyScoresTbl[[#This Row],[Median Owner Renter Cost Ratio Points]]+CountyScoresTbl[[#This Row],[Serna Proposed Loans to Sales Ratio Points]],15) -> 4 | AI29: 0.7280256479 | AJ29: 6 | AK29: 0 | AL29: 2 | AM29: =MIN(SUM(CountyScoresTbl[[#This Row],[Points Awarded10]],CountyScoresTbl[[#This Row],[Points Awarded12]]),15) -> 8 | AN29: 0.131147541 | AO29: 2 | AP29: 0.2570850202 | AQ29: 2 | AR29: =MIN(SUM(CountyScoresTbl[[#This Row],[Points Awarded11]],CountyScoresTbl[[#This Row],[Points Awarded13]]),15) -> 4 | AS29: 1.630608974 | AT29: 2 | AU29: =SUM(CountyScoresTbl[[#This Row],[Points Awarded5]],10) -> 12 | AV29: 0 | AW29: =IF(CountyScoresTbl[[#This Row],[OMS Migrant Family Housing Centers In County]]>=3,30,IF(CountyScoresTbl[[#This Row],[OMS Migrant Family Housing Centers In County]]=2,20,IF(CountyScoresTbl[[#This Row],[OMS Migrant Family Housing Centers In County]]=1,10,0))) -> 0
A30: Monterey | B30: 8.913178295 | C30: 4 | D30: 0.5964646867 | E30: 2 | F30: 0.07580221355 | G30: 4 | H30: 0.03221083455 | I30: 3 | J30: =MIN(SUM(CountyScoresTbl[[#This Row],[Points Awarded]],CountyScoresTbl[[#This Row],[Points Awarded2]],CountyScoresTbl[[#This Row],[Points Awarded3]],CountyScoresTbl[[#This Row],[Points Awarded4]]),15) -> 13 | M30: 0.0395622736 | N30: 4 | Q30: 0.3041083656 | R30: 4 | S30: =MIN(SUM(CountyScoresTbl[[#This Row],[Points Awarded6]],CountyScoresTbl[[#This Row],[Points Awarded7]],CountyScoresTbl[[#This Row],[Points Awarded8]],CountyScoresTbl[[#This Row],[Points Awarded9]]),15) -> 8 | T30: 1.42071543 | U30: 8 | V30: 892500 | W30: 1298250 | X30: 828448.305 | Y30: =MIN( 500000, AVERAGE(CountyScoresTbl[[#This Row],[Redfin.com Median Sales Price (October 2024)]:[Zillow.com Median Sales Price (October 2024)]])) -> 500000 | Z30: 395 | AA30: ='HDPL Unit Mix'!$G$16 -> 0 | AB30: ='HDPL Unit Mix'!$H$16 -> 0 | AC30: =IFERROR( CountyScoresTbl[[#This Row],[Affordable Single Family Homes Sold In Last Year (November 2024) (Zillow.com)]]/CountyScoresTbl[[#This Row],[CalHome Proposed Number of Loans (entered by Applicant)]], 0) -> 0 | AD30: =IFERROR( CountyScoresTbl[[#This Row],[Affordable Single Family Homes Sold In Last Year (November 2024) (Zillow.com)]]/CountyScoresTbl[[#This Row],[Serna Proposed Number of Loans (entered by Applicant)]], 0) -> 0 | AE30: 2 | AF30: 2 | AG30: =MIN(CountyScoresTbl[[#This Row],[Median Owner Renter Cost Ratio Points]]+CountyScoresTbl[[#This Row],[CalHome Proposed Loans to Sales Ratio Points]],15) -> 10 | AH30: =MIN(CountyScoresTbl[[#This Row],[Median Owner Renter Cost Ratio Points]]+CountyScoresTbl[[#This Row],[Serna Proposed Loans to Sales Ratio Points]],15) -> 10 | AI30: 0.7382495355 | AJ30: 6 | AK30: 0.01696933611 | AL30: 8 | AM30: =MIN(SUM(CountyScoresTbl[[#This Row],[Points Awarded10]],CountyScoresTbl[[#This Row],[Points Awarded12]]),15) -> 14 | AN30: 0.3930049393 | AO30: 6 | AP30: 0.03221083455 | AQ30: 6 | AR30: =MIN(SUM(CountyScoresTbl[[#This Row],[Points Awarded11]],CountyScoresTbl[[#This Row],[Points Awarded13]]),15) -> 12 | AS30: 1.47 | AT30: 5 | AU30: =SUM(CountyScoresTbl[[#This Row],[Points Awarded5]],10) -> 15 | AV30: 1 | AW30: =IF(CountyScoresTbl[[#This Row],[OMS Migrant Family Housing Centers In County]]>=3,30,IF(CountyScoresTbl[[#This Row],[OMS Migrant Family Housing Centers In County]]=2,20,IF(CountyScoresTbl[[#This Row],[OMS Migrant Family Housing Centers In County]]=1,10,0))) -> 10
A31: Napa | B31: 7.021604938 | C31: 3 | D31: 0.5864326093 | E31: 2 | F31: 0.03064564118 | G31: 3 | H31: 0.04571266326 | I31: 1 | J31: =MIN(SUM(CountyScoresTbl[[#This Row],[Points Awarded]],CountyScoresTbl[[#This Row],[Points Awarded2]],CountyScoresTbl[[#This Row],[Points Awarded3]],CountyScoresTbl[[#This Row],[Points Awarded4]]),15) -> 9 | M31: 0.03384628875 | N31: 4 | Q31: 0.3257670632 | R31: 6 | S31: =MIN(SUM(CountyScoresTbl[[#This Row],[Points Awarded6]],CountyScoresTbl[[#This Row],[Points Awarded7]],CountyScoresTbl[[#This Row],[Points Awarded8]],CountyScoresTbl[[#This Row],[Points Awarded9]]),15) -> 10 | T31: 1.525773196 | U31: 4 | V31: 865000 | W31: 1506000 | X31: 897716.4179 | Y31: =MIN( 500000, AVERAGE(CountyScoresTbl[[#This Row],[Redfin.com Median Sales Price (October 2024)]:[Zillow.com Median Sales Price (October 2024)]])) -> 500000 | Z31: 236 | AA31: ='HDPL Unit Mix'!$G$16 -> 0 | AB31: ='HDPL Unit Mix'!$H$16 -> 0 | AC31: =IFERROR( CountyScoresTbl[[#This Row],[Affordable Single Family Homes Sold In Last Year (November 2024) (Zillow.com)]]/CountyScoresTbl[[#This Row],[CalHome Proposed Number of Loans (entered by Applicant)]], 0) -> 0 | AD31: =IFERROR( CountyScoresTbl[[#This Row],[Affordable Single Family Homes Sold In Last Year (November 2024) (Zillow.com)]]/CountyScoresTbl[[#This Row],[Serna Proposed Number of Loans (entered by Applicant)]], 0) -> 0 | AE31: 2 | AF31: 2 | AG31: =MIN(CountyScoresTbl[[#This Row],[Median Owner Renter Cost Ratio Points]]+CountyScoresTbl[[#This Row],[CalHome Proposed Loans to Sales Ratio Points]],15) -> 6 | AH31: =MIN(CountyScoresTbl[[#This Row],[Median Owner Renter Cost Ratio Points]]+CountyScoresTbl[[#This Row],[Serna Proposed Loans to Sales Ratio Points]],15) -> 6 | AI31: 0.739805462 | AJ31: 8 | AK31: 0.007827175955 | AL31: 6 | AM31: =MIN(SUM(CountyScoresTbl[[#This Row],[Points Awarded10]],CountyScoresTbl[[#This Row],[Points Awarded12]]),15) -> 14 | AN31: 0.398782344 | AO31: 6 | AP31: 0.04571266326 | AQ31: 2 | AR31: =MIN(SUM(CountyScoresTbl[[#This Row],[Points Awarded11]],CountyScoresTbl[[#This Row],[Points Awarded13]]),15) -> 8 | AS31: 1.527323944 | AT31: 3 | AU31: =SUM(CountyScoresTbl[[#This Row],[Points Awarded5]],10) -> 13 | AV31: 0 | AW31: =IF(CountyScoresTbl[[#This Row],[OMS Migrant Family Housing Centers In County]]>=3,30,IF(CountyScoresTbl[[#This Row],[OMS Migrant Family Housing Centers In County]]=2,20,IF(CountyScoresTbl[[#This Row],[OMS Migrant Family Housing Centers In County]]=1,10,0))) -> 0
A32: Nevada | B32: 4.688888889 | C32: 2 | D32: 0.6484607746 | E32: 4 | F32: 0.02184707051 | G32: 2 | H32: 0.04504504505 | I32: 2 | J32: =MIN(SUM(CountyScoresTbl[[#This Row],[Points Awarded]],CountyScoresTbl[[#This Row],[Points Awarded2]],CountyScoresTbl[[#This Row],[Points Awarded3]],CountyScoresTbl[[#This Row],[Points Awarded4]]),15) -> 10 | M32: 0.04415296508 | N32: 6 | Q32: 0.3437753611 | R32: 8 | S32: =MIN(SUM(CountyScoresTbl[[#This Row],[Points Awarded6]],CountyScoresTbl[[#This Row],[Points Awarded7]],CountyScoresTbl[[#This Row],[Points Awarded8]],CountyScoresTbl[[#This Row],[Points Awarded9]]),15) -> 14 | T32: 1.721587088 | U32: 2 | V32: 610000 | W32: 672450 | X32: 620006.4137 | Y32: =MIN( 500000, AVERAGE(CountyScoresTbl[[#This Row],[Redfin.com Median Sales Price (October 2024)]:[Zillow.com Median Sales Price (October 2024)]])) -> 500000 | Z32: 783 | AA32: ='HDPL Unit Mix'!$G$16 -> 0 | AB32: ='HDPL Unit Mix'!$H$16 -> 0 | AC32: =IFERROR( CountyScoresTbl[[#This Row],[Affordable Single Family Homes Sold In Last Year (November 2024) (Zillow.com)]]/CountyScoresTbl[[#This Row],[CalHome Proposed Number of Loans (entered by Applicant)]], 0) -> 0 | AD32: =IFERROR( CountyScoresTbl[[#This Row],[Affordable Single Family Homes Sold In Last Year (November 2024) (Zillow.com)]]/CountyScoresTbl[[#This Row],[Serna Proposed Number of Loans (entered by Applicant)]], 0) -> 0 | AE32: 2 | AF32: 2 | AG32: =MIN(CountyScoresTbl[[#This Row],[Median Owner Renter Cost Ratio Points]]+CountyScoresTbl[[#This Row],[CalHome Proposed Loans to Sales Ratio Points]],15) -> 4 | AH32: =MIN(CountyScoresTbl[[#This Row],[Median Owner Renter Cost Ratio Points]]+CountyScoresTbl[[#This Row],[Serna Proposed Loans to Sales Ratio Points]],15) -> 4 | AI32: 0.6473870968 | AJ32: 4 | AK32: 0.00470702808 | AL32: 4 | AM32: =MIN(SUM(CountyScoresTbl[[#This Row],[Points Awarded10]],CountyScoresTbl[[#This Row],[Points Awarded12]]),15) -> 8 | AN32: 0.4793261868 | AO32: 8 | AP32: 0.04504504505 | AQ32: 4 | AR32: =MIN(SUM(CountyScoresTbl[[#This Row],[Points Awarded11]],CountyScoresTbl[[#This Row],[Points Awarded13]]),15) -> 12 | AS32: 1.657794677 | AT32: 2 | AU32: =SUM(CountyScoresTbl[[#This Row],[Points Awarded5]],10) -> 12 | AV32: 0 | AW32: =IF(CountyScoresTbl[[#This Row],[OMS Migrant Family Housing Centers In County]]>=3,30,IF(CountyScoresTbl[[#This Row],[OMS Migrant Family Housing Centers In County]]=2,20,IF(CountyScoresTbl[[#This Row],[OMS Migrant Family Housing Centers In County]]=1,10,0))) -> 0
A33: Orange | B33: 10.46511628 | C33: 4 | D33: 0.6031418214 | E33: 3 | F33: 0.05985938702 | G33: 4 | H33: 0.04094146403 | I33: 2 | J33: =MIN(SUM(CountyScoresTbl[[#This Row],[Points Awarded]],CountyScoresTbl[[#This Row],[Points Awarded2]],CountyScoresTbl[[#This Row],[Points Awarded3]],CountyScoresTbl[[#This Row],[Points Awarded4]]),15) -> 13 | M33: 0.03429551239 | N33: 4 | Q33: 0.3261735609 | R33: 6 | S33: =MIN(SUM(CountyScoresTbl[[#This Row],[Points Awarded6]],CountyScoresTbl[[#This Row],[Points Awarded7]],CountyScoresTbl[[#This Row],[Points Awarded8]],CountyScoresTbl[[#This Row],[Points Awarded9]]),15) -> 10 | T33: 1.430604982 | U33: 8 | V33: 1325000 | W33: 1397000 | X33: 1143639.582 | Y33: =MIN( 500000, AVERAGE(CountyScoresTbl[[#This Row],[Redfin.com Median Sales Price (October 2024)]:[Zillow.com Median Sales Price (October 2024)]])) -> 500000 | Z33: 2693 | AA33: ='HDPL Unit Mix'!$G$16 -> 0 | AB33: ='HDPL Unit Mix'!$H$16 -> 0 | AC33: =IFERROR( CountyScoresTbl[[#This Row],[Affordable Single Family Homes Sold In Last Year (November 2024) (Zillow.com)]]/CountyScoresTbl[[#This Row],[CalHome Proposed Number of Loans (entered by Applicant)]], 0) -> 0 | AD33: =IFERROR( CountyScoresTbl[[#This Row],[Affordable Single Family Homes Sold In Last Year (November 2024) (Zillow.com)]]/CountyScoresTbl[[#This Row],[Serna Proposed Number of Loans (entered by Applicant)]], 0) -> 0 | AE33: 2 | AF33: 2 | AG33: =MIN(CountyScoresTbl[[#This Row],[Median Owner Renter Cost Ratio Points]]+CountyScoresTbl[[#This Row],[CalHome Proposed Loans to Sales Ratio Points]],15) -> 10 | AH33: =MIN(CountyScoresTbl[[#This Row],[Median Owner Renter Cost Ratio Points]]+CountyScoresTbl[[#This Row],[Serna Proposed Loans to Sales Ratio Points]],15) -> 10 | AI33: 0.7483875355 | AJ33: 8 | AK33: 0.01038277671 | AL33: 6 | AM33: =MIN(SUM(CountyScoresTbl[[#This Row],[Points Awarded10]],CountyScoresTbl[[#This Row],[Points Awarded12]]),15) -> 14 | AN33: 0.4366894944 | AO33: 8 | AP33: 0.04094146403 | AQ33: 4 | AR33: =MIN(SUM(CountyScoresTbl[[#This Row],[Points Awarded11]],CountyScoresTbl[[#This Row],[Points Awarded13]]),15) -> 12 | AS33: 1.471473029 | AT33: 5 | AU33: =SUM(CountyScoresTbl[[#This Row],[Points Awarded5]],10) -> 15 | AV33: 0 | AW33: =IF(CountyScoresTbl[[#This Row],[OMS Migrant Family Housing Centers In County]]>=3,30,IF(CountyScoresTbl[[#This Row],[OMS Migrant Family Housing Centers In County]]=2,20,IF(CountyScoresTbl[[#This Row],[OMS Migrant Family Housing Centers In County]]=1,10,0))) -> 0
A34: Placer | B34: 5.699736611 | C34: 3 | D34: 0.5042649272 | E34: 1 | F34: 0.01956848971 | G34: 2 | H34: 0.03346265761 | I34: 3 | J34: =MIN(SUM(CountyScoresTbl[[#This Row],[Points Awarded]],CountyScoresTbl[[#This Row],[Points Awarded2]],CountyScoresTbl[[#This Row],[Points Awarded3]],CountyScoresTbl[[#This Row],[Points Awarded4]]),15) -> 9 | M34: 0.02780121894 | N34: 2 | Q34: 0.2383596559 | R34: 2 | S34: =MIN(SUM(CountyScoresTbl[[#This Row],[Points Awarded6]],CountyScoresTbl[[#This Row],[Points Awarded7]],CountyScoresTbl[[#This Row],[Points Awarded8]],CountyScoresTbl[[#This Row],[Points Awarded9]]),15) -> 4 | T34: 1.496264674 | U34: 6 | V34: 660000 | W34: 737000 | X34: 680893.0088 | Y34: =MIN( 500000, AVERAGE(CountyScoresTbl[[#This Row],[Redfin.com Median Sales Price (October 2024)]:[Zillow.com Median Sales Price (October 2024)]])) -> 500000 | Z34: 1220 | AA34: ='HDPL Unit Mix'!$G$16 -> 0 | AB34: ='HDPL Unit Mix'!$H$16 -> 0 | AC34: =IFERROR( CountyScoresTbl[[#This Row],[Affordable Single Family Homes Sold In Last Year (November 2024) (Zillow.com)]]/CountyScoresTbl[[#This Row],[CalHome Proposed Number of Loans (entered by Applicant)]], 0) -> 0 | AD34: =IFERROR( CountyScoresTbl[[#This Row],[Affordable Single Family Homes Sold In Last Year (November 2024) (Zillow.com)]]/CountyScoresTbl[[#This Row],[Serna Proposed Number of Loans (entered by Applicant)]], 0) -> 0 | AE34: 2 | AF34: 2 | AG34: =MIN(CountyScoresTbl[[#This Row],[Median Owner Renter Cost Ratio Points]]+CountyScoresTbl[[#This Row],[CalHome Proposed Loans to Sales Ratio Points]],15) -> 8 | AH34: =MIN(CountyScoresTbl[[#This Row],[Median Owner Renter Cost Ratio Points]]+CountyScoresTbl[[#This Row],[Serna Proposed Loans to Sales Ratio Points]],15) -> 8 | AI34: 0.3932076343 | AJ34: 2 | AK34: 0.002048154385 | AL34: 2 | AM34: =MIN(SUM(CountyScoresTbl[[#This Row],[Points Awarded10]],CountyScoresTbl[[#This Row],[Points Awarded12]]),15) -> 4 | AN34: 0.4417910448 | AO34: 8 | AP34: 0.03346265761 | AQ34: 6 | AR34: =MIN(SUM(CountyScoresTbl[[#This Row],[Points Awarded11]],CountyScoresTbl[[#This Row],[Points Awarded13]]),15) -> 14 | AS34: 1.523514851 | AT34: 4 | AU34: =SUM(CountyScoresTbl[[#This Row],[Points Awarded5]],10) -> 14 | AV34: 0 | AW34: =IF(CountyScoresTbl[[#This Row],[OMS Migrant Family Housing Centers In County]]>=3,30,IF(CountyScoresTbl[[#This Row],[OMS Migrant Family Housing Centers In County]]=2,20,IF(CountyScoresTbl[[#This Row],[OMS Migrant Family Housing Centers In County]]=1,10,0))) -> 0
A35: Plumas | B35: 4.085497835 | C35: 1 | D35: 0.5921052632 | E35: 2 | F35: 0.01973684211 | G35: 2 | H35: 0.03797468354 | I35: 2 | J35: =MIN(SUM(CountyScoresTbl[[#This Row],[Points Awarded]],CountyScoresTbl[[#This Row],[Points Awarded2]],CountyScoresTbl[[#This Row],[Points Awarded3]],CountyScoresTbl[[#This Row],[Points Awarded4]]),15) -> 7 | M35: 0.02242808386 | N35: 2 | Q35: 0.3554621849 | R35: 8 | S35: =MIN(SUM(CountyScoresTbl[[#This Row],[Points Awarded6]],CountyScoresTbl[[#This Row],[Points Awarded7]],CountyScoresTbl[[#This Row],[Points Awarded8]],CountyScoresTbl[[#This Row],[Points Awarded9]]),15) -> 10 | T35: 1.574410163 | U35: 4 | V35: 366500 | W35: 492000 | X35: 381948.1657 | Y35: =MIN( 500000, AVERAGE(CountyScoresTbl[[#This Row],[Redfin.com Median Sales Price (October 2024)]:[Zillow.com Median Sales Price (October 2024)]])) -> 413482.7219 | Z35: 409 | AA35: ='HDPL Unit Mix'!$G$16 -> 0 | AB35: ='HDPL Unit Mix'!$H$16 -> 0 | AC35: =IFERROR( CountyScoresTbl[[#This Row],[Affordable Single Family Homes Sold In Last Year (November 2024) (Zillow.com)]]/CountyScoresTbl[[#This Row],[CalHome Proposed Number of Loans (entered by Applicant)]], 0) -> 0 | AD35: =IFERROR( CountyScoresTbl[[#This Row],[Affordable Single Family Homes Sold In Last Year (November 2024) (Zillow.com)]]/CountyScoresTbl[[#This Row],[Serna Proposed Number of Loans (entered by Applicant)]], 0) -> 0 | AE35: 2 | AF35: 2 | AG35: =MIN(CountyScoresTbl[[#This Row],[Median Owner Renter Cost Ratio Points]]+CountyScoresTbl[[#This Row],[CalHome Proposed Loans to Sales Ratio Points]],15) -> 6 | AH35: =MIN(CountyScoresTbl[[#This Row],[Median Owner Renter Cost Ratio Points]]+CountyScoresTbl[[#This Row],[Serna Proposed Loans to Sales Ratio Points]],15) -> 6 | AI35: 0.6365598539 | AJ35: 4 | AK35: 0 | AL35: 2 | AM35: =MIN(SUM(CountyScoresTbl[[#This Row],[Points Awarded10]],CountyScoresTbl[[#This Row],[Points Awarded12]]),15) -> 6 | AN35: 0.3555555556 | AO35: 4 | AP35: 0.03797468354 | AQ35: 4 | AR35: =MIN(SUM(CountyScoresTbl[[#This Row],[Points Awarded11]],CountyScoresTbl[[#This Row],[Points Awarded13]]),15) -> 8 | AS35: 1.694915254 | AT35: 2 | AU35: =SUM(CountyScoresTbl[[#This Row],[Points Awarded5]],10) -> 12 | AV35: 0 | AW35: =IF(CountyScoresTbl[[#This Row],[OMS Migrant Family Housing Centers In County]]>=3,30,IF(CountyScoresTbl[[#This Row],[OMS Migrant Family Housing Centers In County]]=2,20,IF(CountyScoresTbl[[#This Row],[OMS Migrant Family Housing Centers In County]]=1,10,0))) -> 0
A36: Riverside | B36: 6.512820513 | C36: 3 | D36: 0.5641748046 | E36: 2 | F36: 0.04086258394 | G36: 3 | H36: 0.04670840065 | I36: 1 | J36: =MIN(SUM(CountyScoresTbl[[#This Row],[Points Awarded]],CountyScoresTbl[[#This Row],[Points Awarded2]],CountyScoresTbl[[#This Row],[Points Awarded3]],CountyScoresTbl[[#This Row],[Points Awarded4]]),15) -> 9 | M36: 0.05185867711 | N36: 6 | Q36: 0.3066882074 | R36: 4 | S36: =MIN(SUM(CountyScoresTbl[[#This Row],[Points Awarded6]],CountyScoresTbl[[#This Row],[Points Awarded7]],CountyScoresTbl[[#This Row],[Points Awarded8]],CountyScoresTbl[[#This Row],[Points Awarded9]]),15) -> 10 | T36: 1.39333723 | U36: 8 | V36: 630000 | W36: 647000 | X36: 602466.3638 | Y36: =MIN( 500000, AVERAGE(CountyScoresTbl[[#This Row],[Redfin.com Median Sales Price (October 2024)]:[Zillow.com Median Sales Price (October 2024)]])) -> 500000 | Z36: 12052 | AA36: ='HDPL Unit Mix'!$G$16 -> 0 | AB36: ='HDPL Unit Mix'!$H$16 -> 0 | AC36: =IFERROR( CountyScoresTbl[[#This Row],[Affordable Single Family Homes Sold In Last Year (November 2024) (Zillow.com)]]/CountyScoresTbl[[#This Row],[CalHome Proposed Number of Loans (entered by Applicant)]], 0) -> 0 | AD36: =IFERROR( CountyScoresTbl[[#This Row],[Affordable Single Family Homes Sold In Last Year (November 2024) (Zillow.com)]]/CountyScoresTbl[[#This Row],[Serna Proposed Number of Loans (entered by Applicant)]], 0) -> 0 | AE36: =IF(AC36>=167, 10, IF(AC36>=73, 8, IF(AC36>=34, 6, IF(AC36>=11, 4, 2)))) -> 2 | AF36: 2 | AG36: =MIN(CountyScoresTbl[[#This Row],[Median Owner Renter Cost Ratio Points]]+CountyScoresTbl[[#This Row],[CalHome Proposed Loans to Sales Ratio Points]],15) -> 10 | AH36: =MIN(CountyScoresTbl[[#This Row],[Median Owner Renter Cost Ratio Points]]+CountyScoresTbl[[#This Row],[Serna Proposed Loans to Sales Ratio Points]],15) -> 10 | AI36: 0.4780108248 | AJ36: 2 | AK36: 0.01221083513 | AL36: 6 | AM36: =MIN(SUM(CountyScoresTbl[[#This Row],[Points Awarded10]],CountyScoresTbl[[#This Row],[Points Awarded12]]),15) -> 8 | AN36: 0.4673525326 | AO36: 8 | AP36: 0.04670840065 | AQ36: 2 | AR36: =MIN(SUM(CountyScoresTbl[[#This Row],[Points Awarded11]],CountyScoresTbl[[#This Row],[Points Awarded13]]),15) -> 10 | AS36: 1.436074637 | AT36: 5 | AU36: =SUM(CountyScoresTbl[[#This Row],[Points Awarded5]],10) -> 15 | AV36: 0 | AW36: =IF(CountyScoresTbl[[#This Row],[OMS Migrant Family Housing Centers In County]]>=3,30,IF(CountyScoresTbl[[#This Row],[OMS Migrant Family Housing Centers In County]]=2,20,IF(CountyScoresTbl[[#This Row],[OMS Migrant Family Housing Centers In County]]=1,10,0))) -> 0
A37: Sacramento | B37: 4.828797191 | C37: 2 | D37: 0.6072366749 | E37: 3 | F37: 0.03120498263 | G37: 3 | H37: 0.03036029744 | I37: 3 | J37: =MIN(SUM(CountyScoresTbl[[#This Row],[Points Awarded]],CountyScoresTbl[[#This Row],[Points Awarded2]],CountyScoresTbl[[#This Row],[Points Awarded3]],CountyScoresTbl[[#This Row],[Points Awarded4]]),15) -> 11 | M37: 0.04334294571 | N37: 4 | Q37: 0.2960497802 | R37: 4 | S37: =MIN(SUM(CountyScoresTbl[[#This Row],[Points Awarded6]],CountyScoresTbl[[#This Row],[Points Awarded7]],CountyScoresTbl[[#This Row],[Points Awarded8]],CountyScoresTbl[[#This Row],[Points Awarded9]]),15) -> 8 | T37: 1.423389619 | U37: 8 | V37: 547000 | W37: 550000 | X37: 526859.4816 | Y37: =MIN( 500000, AVERAGE(CountyScoresTbl[[#This Row],[Redfin.com Median Sales Price (October 2024)]:[Zillow.com Median Sales Price (October 2024)]])) -> 500000 | Z37: 5928 | AA37: ='HDPL Unit Mix'!$G$16 -> 0 | AB37: ='HDPL Unit Mix'!$H$16 -> 0 | AC37: =IFERROR( CountyScoresTbl[[#This Row],[Affordable Single Family Homes Sold In Last Year (November 2024) (Zillow.com)]]/CountyScoresTbl[[#This Row],[CalHome Proposed Number of Loans (entered by Applicant)]], 0) -> 0 | AD37: =IFERROR( CountyScoresTbl[[#This Row],[Affordable Single Family Homes Sold In Last Year (November 2024) (Zillow.com)]]/CountyScoresTbl[[#This Row],[Serna Proposed Number of Loans (entered by Applicant)]], 0) -> 0 | AE37: 2 | AF37: 2 | AG37: =MIN(CountyScoresTbl[[#This Row],[Median Owner Renter Cost Ratio Points]]+CountyScoresTbl[[#This Row],[CalHome Proposed Loans to Sales Ratio Points]],15) -> 10 | AH37: =MIN(CountyScoresTbl[[#This Row],[Median Owner Renter Cost Ratio Points]]+CountyScoresTbl[[#This Row],[Serna Proposed Loans to Sales Ratio Points]],15) -> 10 | AI37: 0.6402344035 | AJ37: 4 | AK37: 0.00724413349 | AL37: 4 | AM37: =MIN(SUM(CountyScoresTbl[[#This Row],[Points Awarded10]],CountyScoresTbl[[#This Row],[Points Awarded12]]),15) -> 8 | AN37: 0.405944739 | AO37: 6 | AP37: 0.03036029744 | AQ37: 6 | AR37: =MIN(SUM(CountyScoresTbl[[#This Row],[Points Awarded11]],CountyScoresTbl[[#This Row],[Points Awarded13]]),15) -> 12 | AS37: 1.482370593 | AT37: 4 | AU37: =SUM(CountyScoresTbl[[#This Row],[Points Awarded5]],10) -> 14 | AV37: 0 | AW37: =IF(CountyScoresTbl[[#This Row],[OMS Migrant Family Housing Centers In County]]>=3,30,IF(CountyScoresTbl[[#This Row],[OMS Migrant Family Housing Centers In County]]=2,20,IF(CountyScoresTbl[[#This Row],[OMS Migrant Family Housing Centers In County]]=1,10,0))) -> 0
A38: San Benito | B38: 5.848787447 | C38: 3 | D38: 0.575 | E38: 2 | F38: 0.0564516129 | G38: 4 | H38: 0.008792965627 | I38: 4 | J38: =MIN(SUM(CountyScoresTbl[[#This Row],[Points Awarded]],CountyScoresTbl[[#This Row],[Points Awarded2]],CountyScoresTbl[[#This Row],[Points Awarded3]],CountyScoresTbl[[#This Row],[Points Awarded4]]),15) -> 13 | M38: 0.02433503113 | N38: 2 | Q38: 0.2491309386 | R38: 2 | S38: =MIN(SUM(CountyScoresTbl[[#This Row],[Points Awarded6]],CountyScoresTbl[[#This Row],[Points Awarded7]],CountyScoresTbl[[#This Row],[Points Awarded8]],CountyScoresTbl[[#This Row],[Points Awarded9]]),15) -> 4 | T38: 1.689617486 | U38: 2 | V38: 820000 | W38: 846268 | X38: 768596.0395 | Y38: =MIN( 500000, AVERAGE(CountyScoresTbl[[#This Row],[Redfin.com Median Sales Price (October 2024)]:[Zillow.com Median Sales Price (October 2024)]])) -> 500000 | Z38: 52 | AA38: ='HDPL Unit Mix'!$G$16 -> 0 | AB38: ='HDPL Unit Mix'!$H$16 -> 0 | AC38: =IFERROR( CountyScoresTbl[[#This Row],[Affordable Single Family Homes Sold In Last Year (November 2024) (Zillow.com)]]/CountyScoresTbl[[#This Row],[CalHome Proposed Number of Loans (entered by Applicant)]], 0) -> 0 | AD38: =IFERROR( CountyScoresTbl[[#This Row],[Affordable Single Family Homes Sold In Last Year (November 2024) (Zillow.com)]]/CountyScoresTbl[[#This Row],[Serna Proposed Number of Loans (entered by Applicant)]], 0) -> 0 | AE38: 2 | AF38: 2 | AG38: =MIN(CountyScoresTbl[[#This Row],[Median Owner Renter Cost Ratio Points]]+CountyScoresTbl[[#This Row],[CalHome Proposed Loans to Sales Ratio Points]],15) -> 4 | AH38: =MIN(CountyScoresTbl[[#This Row],[Median Owner Renter Cost Ratio Points]]+CountyScoresTbl[[#This Row],[Serna Proposed Loans to Sales Ratio Points]],15) -> 4 | AI38: 0.48544357 | AJ38: 2 | AK38: 0.009269988413 | AL38: 6 | AM38: =MIN(SUM(CountyScoresTbl[[#This Row],[Points Awarded10]],CountyScoresTbl[[#This Row],[Points Awarded12]]),15) -> 8 | AN38: 0.3646563815 | AO38: 4 | AP38: 0.008792965627 | AQ38: 8 | AR38: =MIN(SUM(CountyScoresTbl[[#This Row],[Points Awarded11]],CountyScoresTbl[[#This Row],[Points Awarded13]]),15) -> 12 | AS38: 1.714285714 | AT38: 2 | AU38: =SUM(CountyScoresTbl[[#This Row],[Points Awarded5]],10) -> 12 | AV38: 0 | AW38: =IF(CountyScoresTbl[[#This Row],[OMS Migrant Family Housing Centers In County]]>=3,30,IF(CountyScoresTbl[[#This Row],[OMS Migrant Family Housing Centers In County]]=2,20,IF(CountyScoresTbl[[#This Row],[OMS Migrant Family Housing Centers In County]]=1,10,0))) -> 0
A39: San Bernardino | B39: 5.117948718 | C39: 2 | D39: 0.5900114565 | E39: 2 | F39: 0.04244742616 | G39: 3 | H39: 0.0338079961 | I39: 3 | J39: =MIN(SUM(CountyScoresTbl[[#This Row],[Points Awarded]],CountyScoresTbl[[#This Row],[Points Awarded2]],CountyScoresTbl[[#This Row],[Points Awarded3]],CountyScoresTbl[[#This Row],[Points Awarded4]]),15) -> 10 | M39: 0.05700252232 | N39: 6 | Q39: 0.3104755866 | R39: 4 | S39: =MIN(SUM(CountyScoresTbl[[#This Row],[Points Awarded6]],CountyScoresTbl[[#This Row],[Points Awarded7]],CountyScoresTbl[[#This Row],[Points Awarded8]],CountyScoresTbl[[#This Row],[Points Awarded9]]),15) -> 10 | T39: 1.371843434 | U39: 8 | V39: 550000 | W39: 530000 | X39: 541542.9844 | Y39: =MIN( 500000, AVERAGE(CountyScoresTbl[[#This Row],[Redfin.com Median Sales Price (October 2024)]:[Zillow.com Median Sales Price (October 2024)]])) -> 500000 | Z39: 10772 | AA39: ='HDPL Unit Mix'!$G$16 -> 0 | AB39: ='HDPL Unit Mix'!$H$16 -> 0 | AC39: =IFERROR( CountyScoresTbl[[#This Row],[Affordable Single Family Homes Sold In Last Year (November 2024) (Zillow.com)]]/CountyScoresTbl[[#This Row],[CalHome Proposed Number of Loans (entered by Applicant)]], 0) -> 0 | AD39: =IFERROR( CountyScoresTbl[[#This Row],[Affordable Single Family Homes Sold In Last Year (November 2024) (Zillow.com)]]/CountyScoresTbl[[#This Row],[Serna Proposed Number of Loans (entered by Applicant)]], 0) -> 0 | AE39: 2 | AF39: 2 | AG39: =MIN(CountyScoresTbl[[#This Row],[Median Owner Renter Cost Ratio Points]]+CountyScoresTbl[[#This Row],[CalHome Proposed Loans to Sales Ratio Points]],15) -> 10 | AH39: =MIN(CountyScoresTbl[[#This Row],[Median Owner Renter Cost Ratio Points]]+CountyScoresTbl[[#This Row],[Serna Proposed Loans to Sales Ratio Points]],15) -> 10 | AI39: 0.6537304176 | AJ39: 6 | AK39: 0.01401395054 | AL39: 8 | AM39: =MIN(SUM(CountyScoresTbl[[#This Row],[Points Awarded10]],CountyScoresTbl[[#This Row],[Points Awarded12]]),15) -> 14 | AN39: 0.4477209149 | AO39: 8 | AP39: 0.0338079961 | AQ39: 6 | AR39: =MIN(SUM(CountyScoresTbl[[#This Row],[Points Awarded11]],CountyScoresTbl[[#This Row],[Points Awarded13]]),15) -> 14 | AS39: 1.399850523 | AT39: 5 | AU39: =SUM(CountyScoresTbl[[#This Row],[Points Awarded5]],10) -> 15 | AV39: 1 | AW39: =IF(CountyScoresTbl[[#This Row],[OMS Migrant Family Housing Centers In County]]>=3,30,IF(CountyScoresTbl[[#This Row],[OMS Migrant Family Housing Centers In County]]=2,20,IF(CountyScoresTbl[[#This Row],[OMS Migrant Family Housing Centers In County]]=1,10,0))) -> 10
A40: San Diego | B40: 8.451882845 | C40: 3 | D40: 0.6151841208 | E40: 3 | F40: 0.04203702466 | G40: 3 | H40: 0.03774919614 | I40: 2 | J40: =MIN(SUM(CountyScoresTbl[[#This Row],[Points Awarded]],CountyScoresTbl[[#This Row],[Points Awarded2]],CountyScoresTbl[[#This Row],[Points Awarded3]],CountyScoresTbl[[#This Row],[Points Awarded4]]),15) -> 11 | M40: 0.03312874758 | N40: 2 | Q40: 0.3273314454 | R40: 6 | S40: =MIN(SUM(CountyScoresTbl[[#This Row],[Points Awarded6]],CountyScoresTbl[[#This Row],[Points Awarded7]],CountyScoresTbl[[#This Row],[Points Awarded8]],CountyScoresTbl[[#This Row],[Points Awarded9]]),15) -> 8 | T40: 1.488314272 | U40: 6 | V40: 1005000 | W40: 979200 | X40: 935062.1651 | Y40: =MIN( 500000, AVERAGE(CountyScoresTbl[[#This Row],[Redfin.com Median Sales Price (October 2024)]:[Zillow.com Median Sales Price (October 2024)]])) -> 500000 | Z40: 3441 | AA40: ='HDPL Unit Mix'!$G$16 -> 0 | AB40: ='HDPL Unit Mix'!$H$16 -> 0 | AC40: =IFERROR( CountyScoresTbl[[#This Row],[Affordable Single Family Homes Sold In Last Year (November 2024) (Zillow.com)]]/CountyScoresTbl[[#This Row],[CalHome Proposed Number of Loans (entered by Applicant)]], 0) -> 0 | AD40: =IFERROR( CountyScoresTbl[[#This Row],[Affordable Single Family Homes Sold In Last Year (November 2024) (Zillow.com)]]/CountyScoresTbl[[#This Row],[Serna Proposed Number of Loans (entered by Applicant)]], 0) -> 0 | AE40: 2 | AF40: 2 | AG40: =MIN(CountyScoresTbl[[#This Row],[Median Owner Renter Cost Ratio Points]]+CountyScoresTbl[[#This Row],[CalHome Proposed Loans to Sales Ratio Points]],15) -> 8 | AH40: =MIN(CountyScoresTbl[[#This Row],[Median Owner Renter Cost Ratio Points]]+CountyScoresTbl[[#This Row],[Serna Proposed Loans to Sales Ratio Points]],15) -> 8 | AI40: 0.7027291089 | AJ40: 6 | AK40: 0.009031231996 | AL40: 6 | AM40: =MIN(SUM(CountyScoresTbl[[#This Row],[Points Awarded10]],CountyScoresTbl[[#This Row],[Points Awarded12]]),15) -> 12 | AN40: 0.4332272833 | AO40: 8 | AP40: 0.03774919614 | AQ40: 4 | AR40: =MIN(SUM(CountyScoresTbl[[#This Row],[Points Awarded11]],CountyScoresTbl[[#This Row],[Points Awarded13]]),15) -> 12 | AS40: 1.531755196 | AT40: 3 | AU40: =SUM(CountyScoresTbl[[#This Row],[Points Awarded5]],10) -> 13 | AV40: 0 | AW40: =IF(CountyScoresTbl[[#This Row],[OMS Migrant Family Housing Centers In County]]>=3,30,IF(CountyScoresTbl[[#This Row],[OMS Migrant Family Housing Centers In County]]=2,20,IF(CountyScoresTbl[[#This Row],[OMS Migrant Family Housing Centers In County]]=1,10,0))) -> 0
A41: San Francisco | B41: 9.378349411 | C41: 4 | D41: 0.5003696651 | E41: 1 | F41: 0.05589783802 | G41: 4 | H41: 0.04906472368 | I41: 1 | J41: =MIN(SUM(CountyScoresTbl[[#This Row],[Points Awarded]],CountyScoresTbl[[#This Row],[Points Awarded2]],CountyScoresTbl[[#This Row],[Points Awarded3]],CountyScoresTbl[[#This Row],[Points Awarded4]]),15) -> 10 | M41: 0.02912485765 | N41: 2 | Q41: 0.3626946758 | R41: 8 | S41: =MIN(SUM(CountyScoresTbl[[#This Row],[Points Awarded6]],CountyScoresTbl[[#This Row],[Points Awarded7]],CountyScoresTbl[[#This Row],[Points Awarded8]],CountyScoresTbl[[#This Row],[Points Awarded9]]),15) -> 10 | T41: 1.727547496 | U41: 2 | V41: 1750000 | W41: 1195000 | X41: 1262427.329 | Y41: =MIN( 500000, AVERAGE(CountyScoresTbl[[#This Row],[Redfin.com Median Sales Price (October 2024)]:[Zillow.com Median Sales Price (October 2024)]])) -> 500000 | Z41: 276 | AA41: ='HDPL Unit Mix'!$G$16 -> 0 | AB41: ='HDPL Unit Mix'!$H$16 -> 0 | AC41: =IFERROR( CountyScoresTbl[[#This Row],[Affordable Single Family Homes Sold In Last Year (November 2024) (Zillow.com)]]/CountyScoresTbl[[#This Row],[CalHome Proposed Number of Loans (entered by Applicant)]], 0) -> 0 | AD41: =IFERROR( CountyScoresTbl[[#This Row],[Affordable Single Family Homes Sold In Last Year (November 2024) (Zillow.com)]]/CountyScoresTbl[[#This Row],[Serna Proposed Number of Loans (entered by Applicant)]], 0) -> 0 | AE41: 2 | AF41: 2 | AG41: =MIN(CountyScoresTbl[[#This Row],[Median Owner Renter Cost Ratio Points]]+CountyScoresTbl[[#This Row],[CalHome Proposed Loans to Sales Ratio Points]],15) -> 4 | AH41: =MIN(CountyScoresTbl[[#This Row],[Median Owner Renter Cost Ratio Points]]+CountyScoresTbl[[#This Row],[Serna Proposed Loans to Sales Ratio Points]],15) -> 4 | AI41: 0.8476606022 | AJ41: 8 | AK41: 0.01513944223 | AL41: 8 | AM41: =MIN(SUM(CountyScoresTbl[[#This Row],[Points Awarded10]],CountyScoresTbl[[#This Row],[Points Awarded12]]),15) -> 15 | AN41: 0.3252887973 | AO41: 2 | AP41: 0.04906472368 | AQ41: 2 | AR41: =MIN(SUM(CountyScoresTbl[[#This Row],[Points Awarded11]],CountyScoresTbl[[#This Row],[Points Awarded13]]),15) -> 4 | AS41: 1.901492537 | AT41: 1 | AU41: =SUM(CountyScoresTbl[[#This Row],[Points Awarded5]],10) -> 11 | AV41: 0 | AW41: =IF(CountyScoresTbl[[#This Row],[OMS Migrant Family Housing Centers In County]]>=3,30,IF(CountyScoresTbl[[#This Row],[OMS Migrant Family Housing Centers In County]]=2,20,IF(CountyScoresTbl[[#This Row],[OMS Migrant Family Housing Centers In County]]=1,10,0))) -> 0
A42: San Joaquin | B42: 5.336705202 | C42: 3 | D42: 0.5466770915 | E42: 1 | F42: 0.03784206411 | G42: 3 | H42: 0.03631705847 | I42: 2 | J42: =MIN(SUM(CountyScoresTbl[[#This Row],[Points Awarded]],CountyScoresTbl[[#This Row],[Points Awarded2]],CountyScoresTbl[[#This Row],[Points Awarded3]],CountyScoresTbl[[#This Row],[Points Awarded4]]),15) -> 9 | M42: 0.04717117247 | N42: 6 | Q42: 0.2489998919 | R42: 2 | S42: =MIN(SUM(CountyScoresTbl[[#This Row],[Points Awarded6]],CountyScoresTbl[[#This Row],[Points Awarded7]],CountyScoresTbl[[#This Row],[Points Awarded8]],CountyScoresTbl[[#This Row],[Points Awarded9]]),15) -> 8 | T42: 1.476653696 | U42: 6 | V42: 563750 | W42: 571079 | X42: 536865.5955 | Y42: =MIN( 500000, AVERAGE(CountyScoresTbl[[#This Row],[Redfin.com Median Sales Price (October 2024)]:[Zillow.com Median Sales Price (October 2024)]])) -> 500000 | Z42: 2977 | AA42: ='HDPL Unit Mix'!$G$16 -> 0 | AB42: ='HDPL Unit Mix'!$H$16 -> 0 | AC42: =IFERROR( CountyScoresTbl[[#This Row],[Affordable Single Family Homes Sold In Last Year (November 2024) (Zillow.com)]]/CountyScoresTbl[[#This Row],[CalHome Proposed Number of Loans (entered by Applicant)]], 0) -> 0 | AD42: =IFERROR( CountyScoresTbl[[#This Row],[Affordable Single Family Homes Sold In Last Year (November 2024) (Zillow.com)]]/CountyScoresTbl[[#This Row],[Serna Proposed Number of Loans (entered by Applicant)]], 0) -> 0 | AE42: 2 | AF42: 2 | AG42: =MIN(CountyScoresTbl[[#This Row],[Median Owner Renter Cost Ratio Points]]+CountyScoresTbl[[#This Row],[CalHome Proposed Loans to Sales Ratio Points]],15) -> 8 | AH42: =MIN(CountyScoresTbl[[#This Row],[Median Owner Renter Cost Ratio Points]]+CountyScoresTbl[[#This Row],[Serna Proposed Loans to Sales Ratio Points]],15) -> 8 | AI42: 0.534809082 | AJ42: 2 | AK42: 0.0134068548 | AL42: 8 | AM42: =MIN(SUM(CountyScoresTbl[[#This Row],[Points Awarded10]],CountyScoresTbl[[#This Row],[Points Awarded12]]),15) -> 10 | AN42: 0.4148550725 | AO42: 6 | AP42: 0.03631705847 | AQ42: 4 | AR42: =MIN(SUM(CountyScoresTbl[[#This Row],[Points Awarded11]],CountyScoresTbl[[#This Row],[Points Awarded13]]),15) -> 10 | AS42: 1.532659409 | AT42: 3 | AU42: =SUM(CountyScoresTbl[[#This Row],[Points Awarded5]],10) -> 13 | AV42: 3 | AW42: =IF(CountyScoresTbl[[#This Row],[OMS Migrant Family Housing Centers In County]]>=3,30,IF(CountyScoresTbl[[#This Row],[OMS Migrant Family Housing Centers In County]]=2,20,IF(CountyScoresTbl[[#This Row],[OMS Migrant Family Housing Centers In County]]=1,10,0))) -> 30
A43: San Luis Obispo | B43: 7.507961783 | C43: 3 | D43: 0.591429995 | E43: 2 | F43: 0.01718983558 | G43: 2 | H43: 0.04269019795 | I43: 2 | J43: =MIN(SUM(CountyScoresTbl[[#This Row],[Points Awarded]],CountyScoresTbl[[#This Row],[Points Awarded2]],CountyScoresTbl[[#This Row],[Points Awarded3]],CountyScoresTbl[[#This Row],[Points Awarded4]]),15) -> 9 | M43: 0.0360601139 | N43: 4 | Q43: 0.3145536384 | R43: 4 | S43: =MIN(SUM(CountyScoresTbl[[#This Row],[Points Awarded6]],CountyScoresTbl[[#This Row],[Points Awarded7]],CountyScoresTbl[[#This Row],[Points Awarded8]],CountyScoresTbl[[#This Row],[Points Awarded9]]),15) -> 8 | T43: 1.511666667 | U43: 6 | V43: 926500 | W43: 1160000 | X43: 883347.3162 | Y43: =MIN( 500000, AVERAGE(CountyScoresTbl[[#This Row],[Redfin.com Median Sales Price (October 2024)]:[Zillow.com Median Sales Price (October 2024)]])) -> 500000 | Z43: 686 | AA43: ='HDPL Unit Mix'!$G$16 -> 0 | AB43: ='HDPL Unit Mix'!$H$16 -> 0 | AC43: =IFERROR( CountyScoresTbl[[#This Row],[Affordable Single Family Homes Sold In Last Year (November 2024) (Zillow.com)]]/CountyScoresTbl[[#This Row],[CalHome Proposed Number of Loans (entered by Applicant)]], 0) -> 0 | AD43: =IFERROR( CountyScoresTbl[[#This Row],[Affordable Single Family Homes Sold In Last Year (November 2024) (Zillow.com)]]/CountyScoresTbl[[#This Row],[Serna Proposed Number of Loans (entered by Applicant)]], 0) -> 0 | AE43: 2 | AF43: 2 | AG43: =MIN(CountyScoresTbl[[#This Row],[Median Owner Renter Cost Ratio Points]]+CountyScoresTbl[[#This Row],[CalHome Proposed Loans to Sales Ratio Points]],15) -> 8 | AH43: =MIN(CountyScoresTbl[[#This Row],[Median Owner Renter Cost Ratio Points]]+CountyScoresTbl[[#This Row],[Serna Proposed Loans to Sales Ratio Points]],15) -> 8 | AI43: 0.6214139726 | AJ43: 4 | AK43: 0.005326331583 | AL43: 4 | AM43: =MIN(SUM(CountyScoresTbl[[#This Row],[Points Awarded10]],CountyScoresTbl[[#This Row],[Points Awarded12]]),15) -> 8 | AN43: 0.4441870261 | AO43: 8 | AP43: 0.04269019795 | AQ43: 4 | AR43: =MIN(SUM(CountyScoresTbl[[#This Row],[Points Awarded11]],CountyScoresTbl[[#This Row],[Points Awarded13]]),15) -> 12 | AS43: 1.562214984 | AT43: 3 | AU43: =SUM(CountyScoresTbl[[#This Row],[Points Awarded5]],10) -> 13 | AV43: 0 | AW43: =IF(CountyScoresTbl[[#This Row],[OMS Migrant Family Housing Centers In County]]>=3,30,IF(CountyScoresTbl[[#This Row],[OMS Migrant Family Housing Centers In County]]=2,20,IF(CountyScoresTbl[[#This Row],[OMS Migrant Family Housing Centers In County]]=1,10,0))) -> 0
A44: San Mateo | B44: 10.71811361 | C44: 4 | D44: 0.541694025 | E44: 1 | F44: 0.06505018291 | G44: 4 | H44: 0.05925435694 | I44: 1 | J44: =MIN(SUM(CountyScoresTbl[[#This Row],[Points Awarded]],CountyScoresTbl[[#This Row],[Points Awarded2]],CountyScoresTbl[[#This Row],[Points Awarded3]],CountyScoresTbl[[#This Row],[Points Awarded4]]),15) -> 10 | M44: 0.02044878755 | N44: 2 | Q44: 0.3359552691 | R44: 6 | S44: =MIN(SUM(CountyScoresTbl[[#This Row],[Points Awarded6]],CountyScoresTbl[[#This Row],[Points Awarded7]],CountyScoresTbl[[#This Row],[Points Awarded8]],CountyScoresTbl[[#This Row],[Points Awarded9]]),15) -> 8 | T44: 1.426381462 | U44: 8 | V44: 1950000 | W44: 1569444 | X44: 1553138.362 | Y44: =MIN( 500000, AVERAGE(CountyScoresTbl[[#This Row],[Redfin.com Median Sales Price (October 2024)]:[Zillow.com Median Sales Price (October 2024)]])) -> 500000 | Z44: 251 | AA44: ='HDPL Unit Mix'!$G$16 -> 0 | AB44: ='HDPL Unit Mix'!$H$16 -> 0 | AC44: =IFERROR( CountyScoresTbl[[#This Row],[Affordable Single Family Homes Sold In Last Year (November 2024) (Zillow.com)]]/CountyScoresTbl[[#This Row],[CalHome Proposed Number of Loans (entered by Applicant)]], 0) -> 0 | AD44: =IFERROR( CountyScoresTbl[[#This Row],[Affordable Single Family Homes Sold In Last Year (November 2024) (Zillow.com)]]/CountyScoresTbl[[#This Row],[Serna Proposed Number of Loans (entered by Applicant)]], 0) -> 0 | AE44: 2 | AF44: 2 | AG44: =MIN(CountyScoresTbl[[#This Row],[Median Owner Renter Cost Ratio Points]]+CountyScoresTbl[[#This Row],[CalHome Proposed Loans to Sales Ratio Points]],15) -> 10 | AH44: =MIN(CountyScoresTbl[[#This Row],[Median Owner Renter Cost Ratio Points]]+CountyScoresTbl[[#This Row],[Serna Proposed Loans to Sales Ratio Points]],15) -> 10 | AI44: 0.8704692186 | AJ44: 8 | AK44: 0.008339651251 | AL44: 6 | AM44: =MIN(SUM(CountyScoresTbl[[#This Row],[Points Awarded10]],CountyScoresTbl[[#This Row],[Points Awarded12]]),15) -> 14 | AN44: 0.4327272727 | AO44: 8 | AP44: 0.05925435694 | AQ44: 2 | AR44: =MIN(SUM(CountyScoresTbl[[#This Row],[Points Awarded11]],CountyScoresTbl[[#This Row],[Points Awarded13]]),15) -> 10 | AS44: 1.499794661 | AT44: 4 | AU44: =SUM(CountyScoresTbl[[#This Row],[Points Awarded5]],10) -> 14 | AV44: 0 | AW44: =IF(CountyScoresTbl[[#This Row],[OMS Migrant Family Housing Centers In County]]>=3,30,IF(CountyScoresTbl[[#This Row],[OMS Migrant Family Housing Centers In County]]=2,20,IF(CountyScoresTbl[[#This Row],[OMS Migrant Family Housing Centers In County]]=1,10,0))) -> 0
A45: Santa Barbara | B45: 8.795130143 | C45: 4 | D45: 0.574443729 | E45: 2 | F45: 0.06846962868 | G45: 4 | H45: 0.02822776889 | I45: 4 | J45: =MIN(SUM(CountyScoresTbl[[#This Row],[Points Awarded]],CountyScoresTbl[[#This Row],[Points Awarded2]],CountyScoresTbl[[#This Row],[Points Awarded3]],CountyScoresTbl[[#This Row],[Points Awarded4]]),15) -> 14 | M45: 0.03427078531 | N45: 4 | Q45: 0.282730613 | R45: 2 | S45: =MIN(SUM(CountyScoresTbl[[#This Row],[Points Awarded6]],CountyScoresTbl[[#This Row],[Points Awarded7]],CountyScoresTbl[[#This Row],[Points Awarded8]],CountyScoresTbl[[#This Row],[Points Awarded9]]),15) -> 6 | T45: 1.415478615 | U45: 8 | V45: 826750 | W45: 1935000 | X45: 966400.7916 | Y45: =MIN( 500000, AVERAGE(CountyScoresTbl[[#This Row],[Redfin.com Median Sales Price (October 2024)]:[Zillow.com Median Sales Price (October 2024)]])) -> 500000 | Z45: 607 | AA45: ='HDPL Unit Mix'!$G$16 -> 0 | AB45: ='HDPL Unit Mix'!$H$16 -> 0 | AC45: =IFERROR( CountyScoresTbl[[#This Row],[Affordable Single Family Homes Sold In Last Year (November 2024) (Zillow.com)]]/CountyScoresTbl[[#This Row],[CalHome Proposed Number of Loans (entered by Applicant)]], 0) -> 0 | AD45: =IFERROR( CountyScoresTbl[[#This Row],[Affordable Single Family Homes Sold In Last Year (November 2024) (Zillow.com)]]/CountyScoresTbl[[#This Row],[Serna Proposed Number of Loans (entered by Applicant)]], 0) -> 0 | AE45: 2 | AF45: 2 | AG45: =MIN(CountyScoresTbl[[#This Row],[Median Owner Renter Cost Ratio Points]]+CountyScoresTbl[[#This Row],[CalHome Proposed Loans to Sales Ratio Points]],15) -> 10 | AH45: =MIN(CountyScoresTbl[[#This Row],[Median Owner Renter Cost Ratio Points]]+CountyScoresTbl[[#This Row],[Serna Proposed Loans to Sales Ratio Points]],15) -> 10 | AI45: 0.7847712619 | AJ45: 8 | AK45: 0.01617997808 | AL45: 8 | AM45: =MIN(SUM(CountyScoresTbl[[#This Row],[Points Awarded10]],CountyScoresTbl[[#This Row],[Points Awarded12]]),15) -> 15 | AN45: 0.4240876822 | AO45: 6 | AP45: 0.02822776889 | AQ45: 8 | AR45: =MIN(SUM(CountyScoresTbl[[#This Row],[Points Awarded11]],CountyScoresTbl[[#This Row],[Points Awarded13]]),15) -> 14 | AS45: 1.441956394 | AT45: 5 | AU45: =SUM(CountyScoresTbl[[#This Row],[Points Awarded5]],10) -> 15 | AV45: 0 | AW45: =IF(CountyScoresTbl[[#This Row],[OMS Migrant Family Housing Centers In County]]>=3,30,IF(CountyScoresTbl[[#This Row],[OMS Migrant Family Housing Centers In County]]=2,20,IF(CountyScoresTbl[[#This Row],[OMS Migrant Family Housing Centers In County]]=1,10,0))) -> 0
A46: Santa Clara | B46: 10.79761259 | C46: 4 | D46: 0.4982819081 | E46: 1 | F46: 0.0546441347 | G46: 4 | H46: 0.04868154158 | I46: 1 | J46: =MIN(SUM(CountyScoresTbl[[#This Row],[Points Awarded]],CountyScoresTbl[[#This Row],[Points Awarded2]],CountyScoresTbl[[#This Row],[Points Awarded3]],CountyScoresTbl[[#This Row],[Points Awarded4]]),15) -> 10 | M46: 0.02183980214 | N46: 2 | Q46: 0.2933586704 | R46: 4 | S46: =MIN(SUM(CountyScoresTbl[[#This Row],[Points Awarded6]],CountyScoresTbl[[#This Row],[Points Awarded7]],CountyScoresTbl[[#This Row],[Points Awarded8]],CountyScoresTbl[[#This Row],[Points Awarded9]]),15) -> 6 | T46: 1.471496874 | U46: 6 | V46: 1960000 | W46: 1449944 | X46: 1613015.684 | Y46: =MIN( 500000, AVERAGE(CountyScoresTbl[[#This Row],[Redfin.com Median Sales Price (October 2024)]:[Zillow.com Median Sales Price (October 2024)]])) -> 500000 | Z46: 946 | AA46: ='HDPL Unit Mix'!$G$16 -> 0 | AB46: ='HDPL Unit Mix'!$H$16 -> 0 | AC46: =IFERROR( CountyScoresTbl[[#This Row],[Affordable Single Family Homes Sold In Last Year (November 2024) (Zillow.com)]]/CountyScoresTbl[[#This Row],[CalHome Proposed Number of Loans (entered by Applicant)]], 0) -> 0 | AD46: =IFERROR( CountyScoresTbl[[#This Row],[Affordable Single Family Homes Sold In Last Year (November 2024) (Zillow.com)]]/CountyScoresTbl[[#This Row],[Serna Proposed Number of Loans (entered by Applicant)]], 0) -> 0 | AE46: 2 | AF46: 2 | AG46: =MIN(CountyScoresTbl[[#This Row],[Median Owner Renter Cost Ratio Points]]+CountyScoresTbl[[#This Row],[CalHome Proposed Loans to Sales Ratio Points]],15) -> 8 | AH46: =MIN(CountyScoresTbl[[#This Row],[Median Owner Renter Cost Ratio Points]]+CountyScoresTbl[[#This Row],[Serna Proposed Loans to Sales Ratio Points]],15) -> 8 | AI46: 0.7793146748 | AJ46: 8 | AK46: 0.008124371738 | AL46: 6 | AM46: =MIN(SUM(CountyScoresTbl[[#This Row],[Points Awarded10]],CountyScoresTbl[[#This Row],[Points Awarded12]]),15) -> 14 | AN46: 0.390812321 | AO46: 4 | AP46: 0.04868154158 | AQ46: 2 | AR46: =MIN(SUM(CountyScoresTbl[[#This Row],[Points Awarded11]],CountyScoresTbl[[#This Row],[Points Awarded13]]),15) -> 6 | AS46: 1.487007544 | AT46: 4 | AU46: =SUM(CountyScoresTbl[[#This Row],[Points Awarded5]],10) -> 14 | AV46: 1 | AW46: =IF(CountyScoresTbl[[#This Row],[OMS Migrant Family Housing Centers In County]]>=3,30,IF(CountyScoresTbl[[#This Row],[OMS Migrant Family Housing Centers In County]]=2,20,IF(CountyScoresTbl[[#This Row],[OMS Migrant Family Housing Centers In County]]=1,10,0))) -> 10
A47: Santa Cruz | B47: 9.977409639 | C47: 4 | D47: 0.6596776307 | E47: 4 | F47: 0.05726641331 | G47: 4 | H47: 0.02703047303 | I47: 4 | J47: =MIN(SUM(CountyScoresTbl[[#This Row],[Points Awarded]],CountyScoresTbl[[#This Row],[Points Awarded2]],CountyScoresTbl[[#This Row],[Points Awarded3]],CountyScoresTbl[[#This Row],[Points Awarded4]]),15) -> 15 | M47: 0.03559791263 | N47: 4 | Q47: 0.3493655693 | R47: 8 | S47: =MIN(SUM(CountyScoresTbl[[#This Row],[Points Awarded6]],CountyScoresTbl[[#This Row],[Points Awarded7]],CountyScoresTbl[[#This Row],[Points Awarded8]],CountyScoresTbl[[#This Row],[Points Awarded9]]),15) -> 12 | T47: 1.599808978 | U47: 4 | V47: 1325000 | W47: 1295000 | X47: 1143225.091 | Y47: =MIN( 500000, AVERAGE(CountyScoresTbl[[#This Row],[Redfin.com Median Sales Price (October 2024)]:[Zillow.com Median Sales Price (October 2024)]])) -> 500000 | Z47: 318 | AA47: ='HDPL Unit Mix'!$G$16 -> 0 | AB47: ='HDPL Unit Mix'!$H$16 -> 0 | AC47: =IFERROR( CountyScoresTbl[[#This Row],[Affordable Single Family Homes Sold In Last Year (November 2024) (Zillow.com)]]/CountyScoresTbl[[#This Row],[CalHome Proposed Number of Loans (entered by Applicant)]], 0) -> 0 | AD47: =IFERROR( CountyScoresTbl[[#This Row],[Affordable Single Family Homes Sold In Last Year (November 2024) (Zillow.com)]]/CountyScoresTbl[[#This Row],[Serna Proposed Number of Loans (entered by Applicant)]], 0) -> 0 | AE47: 2 | AF47: 2 | AG47: =MIN(CountyScoresTbl[[#This Row],[Median Owner Renter Cost Ratio Points]]+CountyScoresTbl[[#This Row],[CalHome Proposed Loans to Sales Ratio Points]],15) -> 6 | AH47: =MIN(CountyScoresTbl[[#This Row],[Median Owner Renter Cost Ratio Points]]+CountyScoresTbl[[#This Row],[Serna Proposed Loans to Sales Ratio Points]],15) -> 6 | AI47: 0.812314181 | AJ47: 8 | AK47: 0.007201646091 | AL47: 4 | AM47: =MIN(SUM(CountyScoresTbl[[#This Row],[Points Awarded10]],CountyScoresTbl[[#This Row],[Points Awarded12]]),15) -> 12 | AN47: 0.4032578466 | AO47: 6 | AP47: 0.02703047303 | AQ47: 8 | AR47: =MIN(SUM(CountyScoresTbl[[#This Row],[Points Awarded11]],CountyScoresTbl[[#This Row],[Points Awarded13]]),15) -> 14 | AS47: 1.591969615 | AT47: 3 | AU47: =SUM(CountyScoresTbl[[#This Row],[Points Awarded5]],10) -> 13 | AV47: 1 | AW47: =IF(CountyScoresTbl[[#This Row],[OMS Migrant Family Housing Centers In County]]>=3,30,IF(CountyScoresTbl[[#This Row],[OMS Migrant Family Housing Centers In County]]=2,20,IF(CountyScoresTbl[[#This Row],[OMS Migrant Family Housing Centers In County]]=1,10,0))) -> 10
A48: Shasta | B48: 4.220489978 | C48: 1 | D48: 0.5568518885 | E48: 1 | F48: 0.01226023334 | G48: 1 | H48: 0.05441286462 | I48: 1 | J48: =MIN(SUM(CountyScoresTbl[[#This Row],[Points Awarded]],CountyScoresTbl[[#This Row],[Points Awarded2]],CountyScoresTbl[[#This Row],[Points Awarded3]],CountyScoresTbl[[#This Row],[Points Awarded4]]),15) -> 4 | M48: 0.04534982418 | N48: 6 | Q48: 0.3180534434 | R48: 4 | S48: =MIN(SUM(CountyScoresTbl[[#This Row],[Points Awarded6]],CountyScoresTbl[[#This Row],[Points Awarded7]],CountyScoresTbl[[#This Row],[Points Awarded8]],CountyScoresTbl[[#This Row],[Points Awarded9]]),15) -> 10 | T48: 1.50974026 | U48: 6 | V48: 380510 | W48: 429900 | X48: 369540.6222 | Y48: =MIN( 500000, AVERAGE(CountyScoresTbl[[#This Row],[Redfin.com Median Sales Price (October 2024)]:[Zillow.com Median Sales Price (October 2024)]])) -> 393316.8741 | Z48: 1575 | AA48: ='HDPL Unit Mix'!$G$16 -> 0 | AB48: ='HDPL Unit Mix'!$H$16 -> 0 | AC48: =IFERROR( CountyScoresTbl[[#This Row],[Affordable Single Family Homes Sold In Last Year (November 2024) (Zillow.com)]]/CountyScoresTbl[[#This Row],[CalHome Proposed Number of Loans (entered by Applicant)]], 0) -> 0 | AD48: =IFERROR( CountyScoresTbl[[#This Row],[Affordable Single Family Homes Sold In Last Year (November 2024) (Zillow.com)]]/CountyScoresTbl[[#This Row],[Serna Proposed Number of Loans (entered by Applicant)]], 0) -> 0 | AE48: 2 | AF48: 2 | AG48: =MIN(CountyScoresTbl[[#This Row],[Median Owner Renter Cost Ratio Points]]+CountyScoresTbl[[#This Row],[CalHome Proposed Loans to Sales Ratio Points]],15) -> 8 | AH48: =MIN(CountyScoresTbl[[#This Row],[Median Owner Renter Cost Ratio Points]]+CountyScoresTbl[[#This Row],[Serna Proposed Loans to Sales Ratio Points]],15) -> 8 | AI48: 0.6346282725 | AJ48: 4 | AK48: 0.004888116446 | AL48: 4 | AM48: =MIN(SUM(CountyScoresTbl[[#This Row],[Points Awarded10]],CountyScoresTbl[[#This Row],[Points Awarded12]]),15) -> 8 | AN48: 0.4360795455 | AO48: 8 | AP48: 0.05441286462 | AQ48: 2 | AR48: =MIN(SUM(CountyScoresTbl[[#This Row],[Points Awarded11]],CountyScoresTbl[[#This Row],[Points Awarded13]]),15) -> 10 | AS48: 1.502325581 | AT48: 4 | AU48: =SUM(CountyScoresTbl[[#This Row],[Points Awarded5]],10) -> 14 | AV48: 0 | AW48: =IF(CountyScoresTbl[[#This Row],[OMS Migrant Family Housing Centers In County]]>=3,30,IF(CountyScoresTbl[[#This Row],[OMS Migrant Family Housing Centers In County]]=2,20,IF(CountyScoresTbl[[#This Row],[OMS Migrant Family Housing Centers In County]]=1,10,0))) -> 0
A49: Sierra | B49: 15 | C49: 4 | D49: 0.4285714286 | E49: 1 | F49: 0 | G49: 1 | H49: 0 | I49: 4 | J49: =MIN(SUM(CountyScoresTbl[[#This Row],[Points Awarded]],CountyScoresTbl[[#This Row],[Points Awarded2]],CountyScoresTbl[[#This Row],[Points Awarded3]],CountyScoresTbl[[#This Row],[Points Awarded4]]),15) -> 10 | M49: 0.07446808511 | N49: 8 | Q49: 0.3461538462 | R49: 8 | S49: =MIN(SUM(CountyScoresTbl[[#This Row],[Points Awarded6]],CountyScoresTbl[[#This Row],[Points Awarded7]],CountyScoresTbl[[#This Row],[Points Awarded8]],CountyScoresTbl[[#This Row],[Points Awarded9]]),15) -> 15 | T49: 1.436655405 | U49: 8 | V49: 360000 | W49: 536250 | X49: 335074.7739 | Y49: =MIN( 500000, AVERAGE(CountyScoresTbl[[#This Row],[Redfin.com Median Sales Price (October 2024)]:[Zillow.com Median Sales Price (October 2024)]])) -> 410441.5913 | Z49: 49 | AA49: ='HDPL Unit Mix'!$G$16 -> 0 | AB49: ='HDPL Unit Mix'!$H$16 -> 0 | AC49: =IFERROR( CountyScoresTbl[[#This Row],[Affordable Single Family Homes Sold In Last Year (November 2024) (Zillow.com)]]/CountyScoresTbl[[#This Row],[CalHome Proposed Number of Loans (entered by Applicant)]], 0) -> 0 | AD49: =IFERROR( CountyScoresTbl[[#This Row],[Affordable Single Family Homes Sold In Last Year (November 2024) (Zillow.com)]]/CountyScoresTbl[[#This Row],[Serna Proposed Number of Loans (entered by Applicant)]], 0) -> 0 | AE49: 2 | AF49: 2 | AG49: =MIN(CountyScoresTbl[[#This Row],[Median Owner Renter Cost Ratio Points]]+CountyScoresTbl[[#This Row],[CalHome Proposed Loans to Sales Ratio Points]],15) -> 10 | AH49: =MIN(CountyScoresTbl[[#This Row],[Median Owner Renter Cost Ratio Points]]+CountyScoresTbl[[#This Row],[Serna Proposed Loans to Sales Ratio Points]],15) -> 10 | AI49: 0.7957446809 | AJ49: 8 | AK49: 0 | AL49: 2 | AM49: =MIN(SUM(CountyScoresTbl[[#This Row],[Points Awarded10]],CountyScoresTbl[[#This Row],[Points Awarded12]]),15) -> 10 | AN49: 0.3333333333 | AO49: 2 | AP49: 0 | AQ49: 8 | AR49: =MIN(SUM(CountyScoresTbl[[#This Row],[Points Awarded11]],CountyScoresTbl[[#This Row],[Points Awarded13]]),15) -> 10 | AS49: 1.511627907 | AT49: 4 | AU49: =SUM(CountyScoresTbl[[#This Row],[Points Awarded5]],10) -> 14 | AV49: 0 | AW49: =IF(CountyScoresTbl[[#This Row],[OMS Migrant Family Housing Centers In County]]>=3,30,IF(CountyScoresTbl[[#This Row],[OMS Migrant Family Housing Centers In County]]=2,20,IF(CountyScoresTbl[[#This Row],[OMS Migrant Family Housing Centers In County]]=1,10,0))) -> 0
A50: Siskiyou | B50: 3.427189989 | C50: 1 | D50: 0.6626115166 | E50: 4 | F50: 0.01378751014 | G50: 1 | H50: 0.03596559812 | I50: 2 | J50: =MIN(SUM(CountyScoresTbl[[#This Row],[Points Awarded]],CountyScoresTbl[[#This Row],[Points Awarded2]],CountyScoresTbl[[#This Row],[Points Awarded3]],CountyScoresTbl[[#This Row],[Points Awarded4]]),15) -> 8 | M50: 0.05652607936 | N50: 6 | Q50: 0.4016887817 | R50: 8 | S50: =MIN(SUM(CountyScoresTbl[[#This Row],[Points Awarded6]],CountyScoresTbl[[#This Row],[Points Awarded7]],CountyScoresTbl[[#This Row],[Points Awarded8]],CountyScoresTbl[[#This Row],[Points Awarded9]]),15) -> 14 | T50: 1.651422764 | U50: 4 | V50: 287500 | W50: 370000 | X50: 287333.7689 | Y50: =MIN( 500000, AVERAGE(CountyScoresTbl[[#This Row],[Redfin.com Median Sales Price (October 2024)]:[Zillow.com Median Sales Price (October 2024)]])) -> 314944.5896 | Z50: 357 | AA50: ='HDPL Unit Mix'!$G$16 -> 0 | AB50: ='HDPL Unit Mix'!$H$16 -> 0 | AC50: =IFERROR( CountyScoresTbl[[#This Row],[Affordable Single Family Homes Sold In Last Year (November 2024) (Zillow.com)]]/CountyScoresTbl[[#This Row],[CalHome Proposed Number of Loans (entered by Applicant)]], 0) -> 0 | AD50: =IFERROR( CountyScoresTbl[[#This Row],[Affordable Single Family Homes Sold In Last Year (November 2024) (Zillow.com)]]/CountyScoresTbl[[#This Row],[Serna Proposed Number of Loans (entered by Applicant)]], 0) -> 0 | AE50: 2 | AF50: 2 | AG50: =MIN(CountyScoresTbl[[#This Row],[Median Owner Renter Cost Ratio Points]]+CountyScoresTbl[[#This Row],[CalHome Proposed Loans to Sales Ratio Points]],15) -> 6 | AH50: =MIN(CountyScoresTbl[[#This Row],[Median Owner Renter Cost Ratio Points]]+CountyScoresTbl[[#This Row],[Serna Proposed Loans to Sales Ratio Points]],15) -> 6 | AI50: 0.7284212178 | AJ50: 6 | AK50: 0.006031363088 | AL50: 4 | AM50: =MIN(SUM(CountyScoresTbl[[#This Row],[Points Awarded10]],CountyScoresTbl[[#This Row],[Points Awarded12]]),15) -> 10 | AN50: 0.3696450428 | AO50: 4 | AP50: 0.03596559812 | AQ50: 4 | AR50: =MIN(SUM(CountyScoresTbl[[#This Row],[Points Awarded11]],CountyScoresTbl[[#This Row],[Points Awarded13]]),15) -> 8 | AS50: 1.602505695 | AT50: 3 | AU50: =SUM(CountyScoresTbl[[#This Row],[Points Awarded5]],10) -> 13 | AV50: 0 | AW50: =IF(CountyScoresTbl[[#This Row],[OMS Migrant Family Housing Centers In County]]>=3,30,IF(CountyScoresTbl[[#This Row],[OMS Migrant Family Housing Centers In County]]=2,20,IF(CountyScoresTbl[[#This Row],[OMS Migrant Family Housing Centers In County]]=1,10,0))) -> 0
A51: Solano | B51: 5.326855124 | C51: 3 | D51: 0.5398506685 | E51: 1 | F51: 0.03620420212 | G51: 3 | H51: 0.03079771121 | I51: 3 | J51: =MIN(SUM(CountyScoresTbl[[#This Row],[Points Awarded]],CountyScoresTbl[[#This Row],[Points Awarded2]],CountyScoresTbl[[#This Row],[Points Awarded3]],CountyScoresTbl[[#This Row],[Points Awarded4]]),15) -> 10 | M51: 0.03433482259 | N51: 4 | Q51: 0.2813931695 | R51: 2 | S51: =MIN(SUM(CountyScoresTbl[[#This Row],[Points Awarded6]],CountyScoresTbl[[#This Row],[Points Awarded7]],CountyScoresTbl[[#This Row],[Points Awarded8]],CountyScoresTbl[[#This Row],[Points Awarded9]]),15) -> 6 | T51: 1.29429581 | U51: 8 | V51: 602000 | W51: 595988 | X51: 586183.7996 | Y51: =MIN( 500000, AVERAGE(CountyScoresTbl[[#This Row],[Redfin.com Median Sales Price (October 2024)]:[Zillow.com Median Sales Price (October 2024)]])) -> 500000 | Z51: 1433 | AA51: ='HDPL Unit Mix'!$G$16 -> 0 | AB51: ='HDPL Unit Mix'!$H$16 -> 0 | AC51: =IFERROR( CountyScoresTbl[[#This Row],[Affordable Single Family Homes Sold In Last Year (November 2024) (Zillow.com)]]/CountyScoresTbl[[#This Row],[CalHome Proposed Number of Loans (entered by Applicant)]], 0) -> 0 | AD51: =IFERROR( CountyScoresTbl[[#This Row],[Affordable Single Family Homes Sold In Last Year (November 2024) (Zillow.com)]]/CountyScoresTbl[[#This Row],[Serna Proposed Number of Loans (entered by Applicant)]], 0) -> 0 | AE51: 2 | AF51: 2 | AG51: =MIN(CountyScoresTbl[[#This Row],[Median Owner Renter Cost Ratio Points]]+CountyScoresTbl[[#This Row],[CalHome Proposed Loans to Sales Ratio Points]],15) -> 10 | AH51: =MIN(CountyScoresTbl[[#This Row],[Median Owner Renter Cost Ratio Points]]+CountyScoresTbl[[#This Row],[Serna Proposed Loans to Sales Ratio Points]],15) -> 10 | AI51: 0.6535642632 | AJ51: 6 | AK51: 0.007809246147 | AL51: 6 | AM51: =MIN(SUM(CountyScoresTbl[[#This Row],[Points Awarded10]],CountyScoresTbl[[#This Row],[Points Awarded12]]),15) -> 12 | AN51: 0.4392087488 | AO51: 8 | AP51: 0.03079771121 | AQ51: 6 | AR51: =MIN(SUM(CountyScoresTbl[[#This Row],[Points Awarded11]],CountyScoresTbl[[#This Row],[Points Awarded13]]),15) -> 14 | AS51: 1.32719715 | AT51: 5 | AU51: =SUM(CountyScoresTbl[[#This Row],[Points Awarded5]],10) -> 15 | AV51: 2 | AW51: =IF(CountyScoresTbl[[#This Row],[OMS Migrant Family Housing Centers In County]]>=3,30,IF(CountyScoresTbl[[#This Row],[OMS Migrant Family Housing Centers In County]]=2,20,IF(CountyScoresTbl[[#This Row],[OMS Migrant Family Housing Centers In County]]=1,10,0))) -> 20
A52: Sonoma | B52: 6.438551402 | C52: 3 | D52: 0.5628730191 | E52: 2 | F52: 0.0289497153 | G52: 2 | H52: 0.03020424456 | I52: 3 | J52: =MIN(SUM(CountyScoresTbl[[#This Row],[Points Awarded]],CountyScoresTbl[[#This Row],[Points Awarded2]],CountyScoresTbl[[#This Row],[Points Awarded3]],CountyScoresTbl[[#This Row],[Points Awarded4]]),15) -> 10 | M52: 0.02724374574 | N52: 2 | Q52: 0.3005045061 | R52: 4 | S52: =MIN(SUM(CountyScoresTbl[[#This Row],[Points Awarded6]],CountyScoresTbl[[#This Row],[Points Awarded7]],CountyScoresTbl[[#This Row],[Points Awarded8]],CountyScoresTbl[[#This Row],[Points Awarded9]]),15) -> 6 | T52: 1.43666831 | U52: 8 | V52: 819500 | W52: 1018498 | X52: 791146.3529 | Y52: =MIN( 500000, AVERAGE(CountyScoresTbl[[#This Row],[Redfin.com Median Sales Price (October 2024)]:[Zillow.com Median Sales Price (October 2024)]])) -> 500000 | Z52: 1090 | AA52: ='HDPL Unit Mix'!$G$16 -> 0 | AB52: ='HDPL Unit Mix'!$H$16 -> 0 | AC52: =IFERROR( CountyScoresTbl[[#This Row],[Affordable Single Family Homes Sold In Last Year (November 2024) (Zillow.com)]]/CountyScoresTbl[[#This Row],[CalHome Proposed Number of Loans (entered by Applicant)]], 0) -> 0 | AD52: =IFERROR( CountyScoresTbl[[#This Row],[Affordable Single Family Homes Sold In Last Year (November 2024) (Zillow.com)]]/CountyScoresTbl[[#This Row],[Serna Proposed Number of Loans (entered by Applicant)]], 0) -> 0 | AE52: 2 | AF52: 2 | AG52: =MIN(CountyScoresTbl[[#This Row],[Median Owner Renter Cost Ratio Points]]+CountyScoresTbl[[#This Row],[CalHome Proposed Loans to Sales Ratio Points]],15) -> 10 | AH52: =MIN(CountyScoresTbl[[#This Row],[Median Owner Renter Cost Ratio Points]]+CountyScoresTbl[[#This Row],[Serna Proposed Loans to Sales Ratio Points]],15) -> 10 | AI52: 0.7273543675 | AJ52: 6 | AK52: 0.006683627269 | AL52: 4 | AM52: =MIN(SUM(CountyScoresTbl[[#This Row],[Points Awarded10]],CountyScoresTbl[[#This Row],[Points Awarded12]]),15) -> 10 | AN52: 0.4138939671 | AO52: 6 | AP52: 0.03020424456 | AQ52: 6 | AR52: =MIN(SUM(CountyScoresTbl[[#This Row],[Points Awarded11]],CountyScoresTbl[[#This Row],[Points Awarded13]]),15) -> 12 | AS52: 1.477911647 | AT52: 4 | AU52: =SUM(CountyScoresTbl[[#This Row],[Points Awarded5]],10) -> 14 | AV52: 0 | AW52: =IF(CountyScoresTbl[[#This Row],[OMS Migrant Family Housing Centers In County]]>=3,30,IF(CountyScoresTbl[[#This Row],[OMS Migrant Family Housing Centers In County]]=2,20,IF(CountyScoresTbl[[#This Row],[OMS Migrant Family Housing Centers In County]]=1,10,0))) -> 0
A53: Stanislaus | B53: 5.237580994 | C53: 2 | D53: 0.5491566095 | E53: 1 | F53: 0.02703084198 | G53: 2 | H53: 0.02551581843 | I53: 4 | J53: =MIN(SUM(CountyScoresTbl[[#This Row],[Points Awarded]],CountyScoresTbl[[#This Row],[Points Awarded2]],CountyScoresTbl[[#This Row],[Points Awarded3]],CountyScoresTbl[[#This Row],[Points Awarded4]]),15) -> 9 | M53: 0.04536363198 | N53: 6 | Q53: 0.2818556899 | R53: 2 | S53: =MIN(SUM(CountyScoresTbl[[#This Row],[Points Awarded6]],CountyScoresTbl[[#This Row],[Points Awarded7]],CountyScoresTbl[[#This Row],[Points Awarded8]],CountyScoresTbl[[#This Row],[Points Awarded9]]),15) -> 8 | T53: 1.401953943 | U53: 8 | V53: 480000 | W53: 524950 | X53: 463389.1351 | Y53: =MIN( 500000, AVERAGE(CountyScoresTbl[[#This Row],[Redfin.com Median Sales Price (October 2024)]:[Zillow.com Median Sales Price (October 2024)]])) -> 489446.3784 | Z53: 2841 | AA53: ='HDPL Unit Mix'!$G$16 -> 0 | AB53: ='HDPL Unit Mix'!$H$16 -> 0 | AC53: =IFERROR( CountyScoresTbl[[#This Row],[Affordable Single Family Homes Sold In Last Year (November 2024) (Zillow.com)]]/CountyScoresTbl[[#This Row],[CalHome Proposed Number of Loans (entered by Applicant)]], 0) -> 0 | AD53: =IFERROR( CountyScoresTbl[[#This Row],[Affordable Single Family Homes Sold In Last Year (November 2024) (Zillow.com)]]/CountyScoresTbl[[#This Row],[Serna Proposed Number of Loans (entered by Applicant)]], 0) -> 0 | AE53: 2 | AF53: 2 | AG53: =MIN(CountyScoresTbl[[#This Row],[Median Owner Renter Cost Ratio Points]]+CountyScoresTbl[[#This Row],[CalHome Proposed Loans to Sales Ratio Points]],15) -> 10 | AH53: =MIN(CountyScoresTbl[[#This Row],[Median Owner Renter Cost Ratio Points]]+CountyScoresTbl[[#This Row],[Serna Proposed Loans to Sales Ratio Points]],15) -> 10 | AI53: 0.6121719836 | AJ53: 4 | AK53: 0.01252158895 | AL53: 8 | AM53: =MIN(SUM(CountyScoresTbl[[#This Row],[Points Awarded10]],CountyScoresTbl[[#This Row],[Points Awarded12]]),15) -> 12 | AN53: 0.4448014394 | AO53: 8 | AP53: 0.02551581843 | AQ53: 8 | AR53: =MIN(SUM(CountyScoresTbl[[#This Row],[Points Awarded11]],CountyScoresTbl[[#This Row],[Points Awarded13]]),15) -> 15 | AS53: 1.431404959 | AT53: 5 | AU53: =SUM(CountyScoresTbl[[#This Row],[Points Awarded5]],10) -> 15 | AV53: 3 | AW53: =IF(CountyScoresTbl[[#This Row],[OMS Migrant Family Housing Centers In County]]>=3,30,IF(CountyScoresTbl[[#This Row],[OMS Migrant Family Housing Centers In County]]=2,20,IF(CountyScoresTbl[[#This Row],[OMS Migrant Family Housing Centers In County]]=1,10,0))) -> 30
A54: Sutter | B54: 4.994311718 | C54: 2 | D54: 0.5386666667 | E54: 1 | F54: 0.02438095238 | G54: 2 | H54: 0.03172261158 | I54: 3 | J54: =MIN(SUM(CountyScoresTbl[[#This Row],[Points Awarded]],CountyScoresTbl[[#This Row],[Points Awarded2]],CountyScoresTbl[[#This Row],[Points Awarded3]],CountyScoresTbl[[#This Row],[Points Awarded4]]),15) -> 8 | M54: 0.0429671666 | N54: 4 | Q54: 0.2545965271 | R54: 2 | S54: =MIN(SUM(CountyScoresTbl[[#This Row],[Points Awarded6]],CountyScoresTbl[[#This Row],[Points Awarded7]],CountyScoresTbl[[#This Row],[Points Awarded8]],CountyScoresTbl[[#This Row],[Points Awarded9]]),15) -> 6 | T54: 1.502715283 | U54: 6 | V54: 434500 | W54: 485000 | X54: 432014.462 | Y54: =MIN( 500000, AVERAGE(CountyScoresTbl[[#This Row],[Redfin.com Median Sales Price (October 2024)]:[Zillow.com Median Sales Price (October 2024)]])) -> 450504.8207 | Z54: 508 | AA54: ='HDPL Unit Mix'!$G$16 -> 0 | AB54: ='HDPL Unit Mix'!$H$16 -> 0 | AC54: =IFERROR( CountyScoresTbl[[#This Row],[Affordable Single Family Homes Sold In Last Year (November 2024) (Zillow.com)]]/CountyScoresTbl[[#This Row],[CalHome Proposed Number of Loans (entered by Applicant)]], 0) -> 0 | AD54: =IFERROR( CountyScoresTbl[[#This Row],[Affordable Single Family Homes Sold In Last Year (November 2024) (Zillow.com)]]/CountyScoresTbl[[#This Row],[Serna Proposed Number of Loans (entered by Applicant)]], 0) -> 0 | AE54: 2 | AF54: 2 | AG54: =MIN(CountyScoresTbl[[#This Row],[Median Owner Renter Cost Ratio Points]]+CountyScoresTbl[[#This Row],[CalHome Proposed Loans to Sales Ratio Points]],15) -> 8 | AH54: =MIN(CountyScoresTbl[[#This Row],[Median Owner Renter Cost Ratio Points]]+CountyScoresTbl[[#This Row],[Serna Proposed Loans to Sales Ratio Points]],15) -> 8 | AI54: 0.5608739837 | AJ54: 2 | AK54: 0.01276813075 | AL54: 8 | AM54: =MIN(SUM(CountyScoresTbl[[#This Row],[Points Awarded10]],CountyScoresTbl[[#This Row],[Points Awarded12]]),15) -> 10 | AN54: 0.328854314 | AO54: 2 | AP54: 0.03172261158 | AQ54: 6 | AR54: =MIN(SUM(CountyScoresTbl[[#This Row],[Points Awarded11]],CountyScoresTbl[[#This Row],[Points Awarded13]]),15) -> 8 | AS54: 1.570776256 | AT54: 3 | AU54: =SUM(CountyScoresTbl[[#This Row],[Points Awarded5]],10) -> 13 | AV54: 1 | AW54: =IF(CountyScoresTbl[[#This Row],[OMS Migrant Family Housing Centers In County]]>=3,30,IF(CountyScoresTbl[[#This Row],[OMS Migrant Family Housing Centers In County]]=2,20,IF(CountyScoresTbl[[#This Row],[OMS Migrant Family Housing Centers In County]]=1,10,0))) -> 10
A55: Tehama | B55: 3.924914676 | C55: 1 | D55: 0.6579764122 | E55: 4 | F55: 0.01117318436 | G55: 1 | H55: 0 | I55: 4 | J55: =MIN(SUM(CountyScoresTbl[[#This Row],[Points Awarded]],CountyScoresTbl[[#This Row],[Points Awarded2]],CountyScoresTbl[[#This Row],[Points Awarded3]],CountyScoresTbl[[#This Row],[Points Awarded4]]),15) -> 10 | M55: 0.05067306868 | N55: 6 | Q55: 0.3834495302 | R55: 8 | S55: =MIN(SUM(CountyScoresTbl[[#This Row],[Points Awarded6]],CountyScoresTbl[[#This Row],[Points Awarded7]],CountyScoresTbl[[#This Row],[Points Awarded8]],CountyScoresTbl[[#This Row],[Points Awarded9]]),15) -> 14 | T55: 1.464700626 | U55: 6 | V55: 325000 | W55: 420000 | X55: 313509.9775 | Y55: =MIN( 500000, AVERAGE(CountyScoresTbl[[#This Row],[Redfin.com Median Sales Price (October 2024)]:[Zillow.com Median Sales Price (October 2024)]])) -> 352836.6592 | Z55: 578 | AA55: ='HDPL Unit Mix'!$G$16 -> 0 | AB55: ='HDPL Unit Mix'!$H$16 -> 0 | AC55: =IFERROR( CountyScoresTbl[[#This Row],[Affordable Single Family Homes Sold In Last Year (November 2024) (Zillow.com)]]/CountyScoresTbl[[#This Row],[CalHome Proposed Number of Loans (entered by Applicant)]], 0) -> 0 | AD55: =IFERROR( CountyScoresTbl[[#This Row],[Affordable Single Family Homes Sold In Last Year (November 2024) (Zillow.com)]]/CountyScoresTbl[[#This Row],[Serna Proposed Number of Loans (entered by Applicant)]], 0) -> 0 | AE55: 2 | AF55: 2 | AG55: =MIN(CountyScoresTbl[[#This Row],[Median Owner Renter Cost Ratio Points]]+CountyScoresTbl[[#This Row],[CalHome Proposed Loans to Sales Ratio Points]],15) -> 8 | AH55: =MIN(CountyScoresTbl[[#This Row],[Median Owner Renter Cost Ratio Points]]+CountyScoresTbl[[#This Row],[Serna Proposed Loans to Sales Ratio Points]],15) -> 8 | AI55: 0.5932808717 | AJ55: 4 | AK55: 0.0166717187 | AL55: 8 | AM55: =MIN(SUM(CountyScoresTbl[[#This Row],[Points Awarded10]],CountyScoresTbl[[#This Row],[Points Awarded12]]),15) -> 12 | AN55: 0.3783018868 | AO55: 4 | AP55: 0 | AQ55: 8 | AR55: =MIN(SUM(CountyScoresTbl[[#This Row],[Points Awarded11]],CountyScoresTbl[[#This Row],[Points Awarded13]]),15) -> 12 | AS55: 1.486625514 | AT55: 4 | AU55: =SUM(CountyScoresTbl[[#This Row],[Points Awarded5]],10) -> 14 | AV55: 0 | AW55: =IF(CountyScoresTbl[[#This Row],[OMS Migrant Family Housing Centers In County]]>=3,30,IF(CountyScoresTbl[[#This Row],[OMS Migrant Family Housing Centers In County]]=2,20,IF(CountyScoresTbl[[#This Row],[OMS Migrant Family Housing Centers In County]]=1,10,0))) -> 0
A56: Trinity | B56: 2.332195677 | C56: 1 | D56: 0.7484662577 | E56: 4 | F56: 0 | G56: 1 | H56: 0.01212121212 | I56: 4 | J56: =MIN(SUM(CountyScoresTbl[[#This Row],[Points Awarded]],CountyScoresTbl[[#This Row],[Points Awarded2]],CountyScoresTbl[[#This Row],[Points Awarded3]],CountyScoresTbl[[#This Row],[Points Awarded4]]),15) -> 10 | M56: 0.05285714286 | N56: 6 | Q56: 0.4896373057 | R56: 8 | S56: =MIN(SUM(CountyScoresTbl[[#This Row],[Points Awarded6]],CountyScoresTbl[[#This Row],[Points Awarded7]],CountyScoresTbl[[#This Row],[Points Awarded8]],CountyScoresTbl[[#This Row],[Points Awarded9]]),15) -> 14 | T56: 1.90625 | U56: 2 | V56: 197500 | W56: 425000 | X56: 280584.9021 | Y56: =MIN( 500000, AVERAGE(CountyScoresTbl[[#This Row],[Redfin.com Median Sales Price (October 2024)]:[Zillow.com Median Sales Price (October 2024)]])) -> 301028.3007 | Z56: 181 | AA56: ='HDPL Unit Mix'!$G$16 -> 0 | AB56: ='HDPL Unit Mix'!$H$16 -> 0 | AC56: =IFERROR( CountyScoresTbl[[#This Row],[Affordable Single Family Homes Sold In Last Year (November 2024) (Zillow.com)]]/CountyScoresTbl[[#This Row],[CalHome Proposed Number of Loans (entered by Applicant)]], 0) -> 0 | AD56: =IFERROR( CountyScoresTbl[[#This Row],[Affordable Single Family Homes Sold In Last Year (November 2024) (Zillow.com)]]/CountyScoresTbl[[#This Row],[Serna Proposed Number of Loans (entered by Applicant)]], 0) -> 0 | AE56: 2 | AF56: 2 | AG56: =MIN(CountyScoresTbl[[#This Row],[Median Owner Renter Cost Ratio Points]]+CountyScoresTbl[[#This Row],[CalHome Proposed Loans to Sales Ratio Points]],15) -> 4 | AH56: =MIN(CountyScoresTbl[[#This Row],[Median Owner Renter Cost Ratio Points]]+CountyScoresTbl[[#This Row],[Serna Proposed Loans to Sales Ratio Points]],15) -> 4 | AI56: 0.7597218645 | AJ56: 8 | AK56: 0.00518134715 | AL56: 4 | AM56: =MIN(SUM(CountyScoresTbl[[#This Row],[Points Awarded10]],CountyScoresTbl[[#This Row],[Points Awarded12]]),15) -> 12 | AN56: 0.2131147541 | AO56: 2 | AP56: 0.01212121212 | AQ56: 8 | AR56: =MIN(SUM(CountyScoresTbl[[#This Row],[Points Awarded11]],CountyScoresTbl[[#This Row],[Points Awarded13]]),15) -> 10 | AS56: 1.80196802 | AT56: 1 | AU56: =SUM(CountyScoresTbl[[#This Row],[Points Awarded5]],10) -> 11 | AV56: 0 | AW56: =IF(CountyScoresTbl[[#This Row],[OMS Migrant Family Housing Centers In County]]>=3,30,IF(CountyScoresTbl[[#This Row],[OMS Migrant Family Housing Centers In County]]=2,20,IF(CountyScoresTbl[[#This Row],[OMS Migrant Family Housing Centers In County]]=1,10,0))) -> 0
A57: Tulare | B57: 4.456769056 | C57: 1 | D57: 0.6418788337 | E57: 4 | F57: 0.03755986892 | G57: 3 | H57: 0.02186241473 | I57: 4 | J57: =MIN(SUM(CountyScoresTbl[[#This Row],[Points Awarded]],CountyScoresTbl[[#This Row],[Points Awarded2]],CountyScoresTbl[[#This Row],[Points Awarded3]],CountyScoresTbl[[#This Row],[Points Awarded4]]),15) -> 12 | M57: 0.07273752037 | N57: 8 | Q57: 0.3333541342 | R57: 6 | S57: =MIN(SUM(CountyScoresTbl[[#This Row],[Points Awarded6]],CountyScoresTbl[[#This Row],[Points Awarded7]],CountyScoresTbl[[#This Row],[Points Awarded8]],CountyScoresTbl[[#This Row],[Points Awarded9]]),15) -> 14 | T57: 1.495162709 | U57: 6 | V57: 391565 | W57: 419900 | X57: 344877.004 | Y57: =MIN( 500000, AVERAGE(CountyScoresTbl[[#This Row],[Redfin.com Median Sales Price (October 2024)]:[Zillow.com Median Sales Price (October 2024)]])) -> 385447.3347 | Z57: 2372 | AA57: ='HDPL Unit Mix'!$G$16 -> 0 | AB57: ='HDPL Unit Mix'!$H$16 -> 0 | AC57: =IFERROR( CountyScoresTbl[[#This Row],[Affordable Single Family Homes Sold In Last Year (November 2024) (Zillow.com)]]/CountyScoresTbl[[#This Row],[CalHome Proposed Number of Loans (entered by Applicant)]], 0) -> 0 | AD57: =IFERROR( CountyScoresTbl[[#This Row],[Affordable Single Family Homes Sold In Last Year (November 2024) (Zillow.com)]]/CountyScoresTbl[[#This Row],[Serna Proposed Number of Loans (entered by Applicant)]], 0) -> 0 | AE57: 2 | AF57: 2 | AG57: =MIN(CountyScoresTbl[[#This Row],[Median Owner Renter Cost Ratio Points]]+CountyScoresTbl[[#This Row],[CalHome Proposed Loans to Sales Ratio Points]],15) -> 8 | AH57: =MIN(CountyScoresTbl[[#This Row],[Median Owner Renter Cost Ratio Points]]+CountyScoresTbl[[#This Row],[Serna Proposed Loans to Sales Ratio Points]],15) -> 8 | AI57: 0.5643290529 | AJ57: 2 | AK57: 0.01429017161 | AL57: 8 | AM57: =MIN(SUM(CountyScoresTbl[[#This Row],[Points Awarded10]],CountyScoresTbl[[#This Row],[Points Awarded12]]),15) -> 10 | AN57: 0.3568529912 | AO57: 4 | AP57: 0.02186241473 | AQ57: 8 | AR57: =MIN(SUM(CountyScoresTbl[[#This Row],[Points Awarded11]],CountyScoresTbl[[#This Row],[Points Awarded13]]),15) -> 12 | AS57: 1.517453799 | AT57: 4 | AU57: =SUM(CountyScoresTbl[[#This Row],[Points Awarded5]],10) -> 14 | AV57: 0 | AW57: =IF(CountyScoresTbl[[#This Row],[OMS Migrant Family Housing Centers In County]]>=3,30,IF(CountyScoresTbl[[#This Row],[OMS Migrant Family Housing Centers In County]]=2,20,IF(CountyScoresTbl[[#This Row],[OMS Migrant Family Housing Centers In County]]=1,10,0))) -> 0
A58: Tuolumne | B58: 4.350051177 | C58: 1 | D58: 0.6446917808 | E58: 4 | F58: 0.02311643836 | G58: 2 | H58: 0.0641025641 | I58: 1 | J58: =MIN(SUM(CountyScoresTbl[[#This Row],[Points Awarded]],CountyScoresTbl[[#This Row],[Points Awarded2]],CountyScoresTbl[[#This Row],[Points Awarded3]],CountyScoresTbl[[#This Row],[Points Awarded4]]),15) -> 8 | M58: 0.03869897724 | N58: 4 | Q58: 0.2812862109 | R58: 2 | S58: =MIN(SUM(CountyScoresTbl[[#This Row],[Points Awarded6]],CountyScoresTbl[[#This Row],[Points Awarded7]],CountyScoresTbl[[#This Row],[Points Awarded8]],CountyScoresTbl[[#This Row],[Points Awarded9]]),15) -> 6 | T58: 1.903454384 | U58: 2 | V58: 405000 | W58: 454500 | X58: 395900.2587 | Y58: =MIN( 500000, AVERAGE(CountyScoresTbl[[#This Row],[Redfin.com Median Sales Price (October 2024)]:[Zillow.com Median Sales Price (October 2024)]])) -> 418466.7529 | Z58: 942 | AA58: ='HDPL Unit Mix'!$G$16 -> 0 | AB58: ='HDPL Unit Mix'!$H$16 -> 0 | AC58: =IFERROR( CountyScoresTbl[[#This Row],[Affordable Single Family Homes Sold In Last Year (November 2024) (Zillow.com)]]/CountyScoresTbl[[#This Row],[CalHome Proposed Number of Loans (entered by Applicant)]], 0) -> 0 | AD58: =IFERROR( CountyScoresTbl[[#This Row],[Affordable Single Family Homes Sold In Last Year (November 2024) (Zillow.com)]]/CountyScoresTbl[[#This Row],[Serna Proposed Number of Loans (entered by Applicant)]], 0) -> 0 | AE58: 2 | AF58: 2 | AG58: =MIN(CountyScoresTbl[[#This Row],[Median Owner Renter Cost Ratio Points]]+CountyScoresTbl[[#This Row],[CalHome Proposed Loans to Sales Ratio Points]],15) -> 4 | AH58: =MIN(CountyScoresTbl[[#This Row],[Median Owner Renter Cost Ratio Points]]+CountyScoresTbl[[#This Row],[Serna Proposed Loans to Sales Ratio Points]],15) -> 4 | AI58: 0.7049614502 | AJ58: 6 | AK58: 0.001158748552 | AL58: 2 | AM58: =MIN(SUM(CountyScoresTbl[[#This Row],[Points Awarded10]],CountyScoresTbl[[#This Row],[Points Awarded12]]),15) -> 8 | AN58: 0.3877822045 | AO58: 4 | AP58: 0.0641025641 | AQ58: 2 | AR58: =MIN(SUM(CountyScoresTbl[[#This Row],[Points Awarded11]],CountyScoresTbl[[#This Row],[Points Awarded13]]),15) -> 6 | AS58: 1.795121951 | AT58: 1 | AU58: =SUM(CountyScoresTbl[[#This Row],[Points Awarded5]],10) -> 11 | AV58: 0 | AW58: =IF(CountyScoresTbl[[#This Row],[OMS Migrant Family Housing Centers In County]]>=3,30,IF(CountyScoresTbl[[#This Row],[OMS Migrant Family Housing Centers In County]]=2,20,IF(CountyScoresTbl[[#This Row],[OMS Migrant Family Housing Centers In County]]=1,10,0))) -> 0
A59: Ventura | B59: 7.484076433 | C59: 3 | D59: 0.6193854609 | E59: 3 | F59: 0.04431676243 | G59: 4 | H59: 0.03935685145 | I59: 2 | J59: =MIN(SUM(CountyScoresTbl[[#This Row],[Points Awarded]],CountyScoresTbl[[#This Row],[Points Awarded2]],CountyScoresTbl[[#This Row],[Points Awarded3]],CountyScoresTbl[[#This Row],[Points Awarded4]]),15) -> 12 | M59: 0.02792754813 | N59: 2 | Q59: 0.3328363772 | R59: 6 | S59: =MIN(SUM(CountyScoresTbl[[#This Row],[Points Awarded6]],CountyScoresTbl[[#This Row],[Points Awarded7]],CountyScoresTbl[[#This Row],[Points Awarded8]],CountyScoresTbl[[#This Row],[Points Awarded9]]),15) -> 8 | T59: 1.373831776 | U59: 8 | V59: 937000 | W59: 999125 | X59: 862873.5233 | Y59: =MIN( 500000, AVERAGE(CountyScoresTbl[[#This Row],[Redfin.com Median Sales Price (October 2024)]:[Zillow.com Median Sales Price (October 2024)]])) -> 500000 | Z59: 923 | AA59: ='HDPL Unit Mix'!$G$16 -> 0 | AB59: ='HDPL Unit Mix'!$H$16 -> 0 | AC59: =IFERROR( CountyScoresTbl[[#This Row],[Affordable Single Family Homes Sold In Last Year (November 2024) (Zillow.com)]]/CountyScoresTbl[[#This Row],[CalHome Proposed Number of Loans (entered by Applicant)]], 0) -> 0 | AD59: =IFERROR( CountyScoresTbl[[#This Row],[Affordable Single Family Homes Sold In Last Year (November 2024) (Zillow.com)]]/CountyScoresTbl[[#This Row],[Serna Proposed Number of Loans (entered by Applicant)]], 0) -> 0 | AE59: 2 | AF59: 2 | AG59: =MIN(CountyScoresTbl[[#This Row],[Median Owner Renter Cost Ratio Points]]+CountyScoresTbl[[#This Row],[CalHome Proposed Loans to Sales Ratio Points]],15) -> 10 | AH59: =MIN(CountyScoresTbl[[#This Row],[Median Owner Renter Cost Ratio Points]]+CountyScoresTbl[[#This Row],[Serna Proposed Loans to Sales Ratio Points]],15) -> 10 | AI59: 0.751771202 | AJ59: 8 | AK59: 0.006565555205 | AL59: 4 | AM59: =MIN(SUM(CountyScoresTbl[[#This Row],[Points Awarded10]],CountyScoresTbl[[#This Row],[Points Awarded12]]),15) -> 12 | AN59: 0.4207469549 | AO59: 6 | AP59: 0.03935685145 | AQ59: 4 | AR59: =MIN(SUM(CountyScoresTbl[[#This Row],[Points Awarded11]],CountyScoresTbl[[#This Row],[Points Awarded13]]),15) -> 10 | AS59: 1.40399137 | AT59: 5 | AU59: =SUM(CountyScoresTbl[[#This Row],[Points Awarded5]],10) -> 15 | AV59: 0 | AW59: =IF(CountyScoresTbl[[#This Row],[OMS Migrant Family Housing Centers In County]]>=3,30,IF(CountyScoresTbl[[#This Row],[OMS Migrant Family Housing Centers In County]]=2,20,IF(CountyScoresTbl[[#This Row],[OMS Migrant Family Housing Centers In County]]=1,10,0))) -> 0
A60: Yolo | B60: 5.235042735 | C60: 2 | D60: 0.6369750206 | E60: 3 | F60: 0.03458687895 | G60: 3 | H60: 0.02541466025 | I60: 4 | J60: =MIN(SUM(CountyScoresTbl[[#This Row],[Points Awarded]],CountyScoresTbl[[#This Row],[Points Awarded2]],CountyScoresTbl[[#This Row],[Points Awarded3]],CountyScoresTbl[[#This Row],[Points Awarded4]]),15) -> 12 | M60: 0.03301251203 | N60: 2 | Q60: 0.215420082 | R60: 2 | S60: =MIN(SUM(CountyScoresTbl[[#This Row],[Points Awarded6]],CountyScoresTbl[[#This Row],[Points Awarded7]],CountyScoresTbl[[#This Row],[Points Awarded8]],CountyScoresTbl[[#This Row],[Points Awarded9]]),15) -> 4 | T60: 1.515407855 | U60: 6 | V60: 615000 | W60: 646000 | X60: 608562.2761 | Y60: =MIN( 500000, AVERAGE(CountyScoresTbl[[#This Row],[Redfin.com Median Sales Price (October 2024)]:[Zillow.com Median Sales Price (October 2024)]])) -> 500000 | Z60: 537 | AA60: ='HDPL Unit Mix'!$G$16 -> 0 | AB60: ='HDPL Unit Mix'!$H$16 -> 0 | AC60: =IFERROR( CountyScoresTbl[[#This Row],[Affordable Single Family Homes Sold In Last Year (November 2024) (Zillow.com)]]/CountyScoresTbl[[#This Row],[CalHome Proposed Number of Loans (entered by Applicant)]], 0) -> 0 | AD60: =IFERROR( CountyScoresTbl[[#This Row],[Affordable Single Family Homes Sold In Last Year (November 2024) (Zillow.com)]]/CountyScoresTbl[[#This Row],[Serna Proposed Number of Loans (entered by Applicant)]], 0) -> 0 | AE60: 2 | AF60: 2 | AG60: =MIN(CountyScoresTbl[[#This Row],[Median Owner Renter Cost Ratio Points]]+CountyScoresTbl[[#This Row],[CalHome Proposed Loans to Sales Ratio Points]],15) -> 8 | AH60: =MIN(CountyScoresTbl[[#This Row],[Median Owner Renter Cost Ratio Points]]+CountyScoresTbl[[#This Row],[Serna Proposed Loans to Sales Ratio Points]],15) -> 8 | AI60: 0.5779865028 | AJ60: 4 | AK60: 0.003329918033 | AL60: 2 | AM60: =MIN(SUM(CountyScoresTbl[[#This Row],[Points Awarded10]],CountyScoresTbl[[#This Row],[Points Awarded12]]),15) -> 6 | AN60: 0.4417151476 | AO60: 8 | AP60: 0.02541466025 | AQ60: 8 | AR60: =MIN(SUM(CountyScoresTbl[[#This Row],[Points Awarded11]],CountyScoresTbl[[#This Row],[Points Awarded13]]),15) -> 15 | AS60: 1.65449233 | AT60: 2 | AU60: =SUM(CountyScoresTbl[[#This Row],[Points Awarded5]],10) -> 12 | AV60: 1 | AW60: =IF(CountyScoresTbl[[#This Row],[OMS Migrant Family Housing Centers In County]]>=3,30,IF(CountyScoresTbl[[#This Row],[OMS Migrant Family Housing Centers In County]]=2,20,IF(CountyScoresTbl[[#This Row],[OMS Migrant Family Housing Centers In County]]=1,10,0))) -> 10
A61: Yuba | B61: 4.955858931 | C61: 2 | D61: 0.5934172314 | E61: 2 | F61: 0.02952565344 | G61: 2 | H61: 0.03412809724 | I61: 3 | J61: =MIN(SUM(CountyScoresTbl[[#This Row],[Points Awarded]],CountyScoresTbl[[#This Row],[Points Awarded2]],CountyScoresTbl[[#This Row],[Points Awarded3]],CountyScoresTbl[[#This Row],[Points Awarded4]]),15) -> 9 | M61: 0.0488279729 | N61: 6 | Q61: 0.3125943824 | R61: 4 | S61: =MIN(SUM(CountyScoresTbl[[#This Row],[Points Awarded6]],CountyScoresTbl[[#This Row],[Points Awarded7]],CountyScoresTbl[[#This Row],[Points Awarded8]],CountyScoresTbl[[#This Row],[Points Awarded9]]),15) -> 10 | T61: 1.788038698 | U61: 2 | V61: 436000 | W61: 481450 | X61: 412698.9555 | Y61: =MIN( 500000, AVERAGE(CountyScoresTbl[[#This Row],[Redfin.com Median Sales Price (October 2024)]:[Zillow.com Median Sales Price (October 2024)]])) -> 443382.9852 | Z61: 583 | AA61: ='HDPL Unit Mix'!$G$16 -> 0 | AB61: ='HDPL Unit Mix'!$H$16 -> 0 | AC61: =IFERROR( CountyScoresTbl[[#This Row],[Affordable Single Family Homes Sold In Last Year (November 2024) (Zillow.com)]]/CountyScoresTbl[[#This Row],[CalHome Proposed Number of Loans (entered by Applicant)]], 0) -> 0 | AD61: =IFERROR( CountyScoresTbl[[#This Row],[Affordable Single Family Homes Sold In Last Year (November 2024) (Zillow.com)]]/CountyScoresTbl[[#This Row],[Serna Proposed Number of Loans (entered by Applicant)]], 0) -> 0 | AE61: 2 | AF61: 2 | AG61: =MIN(CountyScoresTbl[[#This Row],[Median Owner Renter Cost Ratio Points]]+CountyScoresTbl[[#This Row],[CalHome Proposed Loans to Sales Ratio Points]],15) -> 4 | AH61: =MIN(CountyScoresTbl[[#This Row],[Median Owner Renter Cost Ratio Points]]+CountyScoresTbl[[#This Row],[Serna Proposed Loans to Sales Ratio Points]],15) -> 4 | AI61: 0.4978142722 | AJ61: 2 | AK61: 0.003322259136 | AL61: 2 | AM61: =MIN(SUM(CountyScoresTbl[[#This Row],[Points Awarded10]],CountyScoresTbl[[#This Row],[Points Awarded12]]),15) -> 4 | AN61: 0.3556280587 | AO61: 4 | AP61: 0.03412809724 | AQ61: 6 | AR61: =MIN(SUM(CountyScoresTbl[[#This Row],[Points Awarded11]],CountyScoresTbl[[#This Row],[Points Awarded13]]),15) -> 10 | AS61: 1.732019704 | AT61: 1 | AU61: =SUM(CountyScoresTbl[[#This Row],[Points Awarded5]],10) -> 11 | AV61: 0 | AW61: =IF(CountyScoresTbl[[#This Row],[OMS Migrant Family Housing Centers In County]]>=3,30,IF(CountyScoresTbl[[#This Row],[OMS Migrant Family Housing Centers In County]]=2,20,IF(CountyScoresTbl[[#This Row],[OMS Migrant Family Housing Centers In County]]=1,10,0))) -> 0

Sheet Cover Page
B3: CalHome And FWHG Home Ownership Programs
B4: 2024 Homeownership Super Notice of Funding Availability (Super NOFA) (December 12, 2024)
B5: 2024 CalHome Tribal Notice of Funding Availability (NOFA) (December 12, 2024)
B6: Application
B19: State of California
B20: Gavin Newsom, Governor
B22: Business, Consumer Services and Housing Agency
B23: Tomiquia Moss, Secretary
B24: https://www.bcsh.ca.gov/
B26: Department of Housing and Community Development (HCD)
B27: Gustavo Velasquez, Director
B28: 2020 West El Camino Avenue, Suite 150, Sacramento, CA 95833
B29: HOSN@hcd.ca.gov
B30: Homeownership Super NOFA
B32: End of Document
C33: V1 | D33: 45609
C34: HOSN App due date: | I34: 2025-02-13
C35: Tribal App due date: | I35: 2025-03-13

Sheet Instructions
B2: Instructions
B4: When opening this file, a yellow banner at the top may appear with a button that says, "Enable Editing", and/or "Enable Macros". It is essential that you click this box(es) so that the macros are enabled. Enabling macros is necessary for full workbook/application functionality. WARNING: Partial functionality of this application/workbook WILL BE LOST when using Apple Mac Computers. The Department highly recommends using PC Computers and Microsoft Office 2013 or newer to complete the application.
F5: Microsoft has recently added blocking of macros by default, if this happens when you open the Application, please follow the instructions in the Word document added as an icon to the right (double-click to open).
B8: When completing this Application, it is highly advisable not to skip/jump to other sheets, start entering data from top to bottom and left to right when selecting a new sheet to work with.
B9: Application materials must be submitted electronically via HCD portal system. Requirements for uploading the Application Workbook and required supporting
B10: documentation, including naming conventions, are described in the Application instructions available at | Y10: 2024 Homeownership Super NOFA
B11: If applying to the CalHome Tribal Program, Applications will be accepted as set forth in the 2024 CalHome Tribal Notice of Funding Availability (NOFA). If applying for the CalHome And/or Serna Home Ownership Program, Applications will be accepted as set forth in the 2024 Homeownership Super NOFA.
B12: Application must be on the Department’s forms and cannot be altered or modified by the Applicant. Excel forms must be in Excel format, not a PDF document.
B13: If the Applicant discovers any errors within Application, use the Application Support tab and email the entire workbook to | AC13: AppSupport@hcd.ca.gov
B14: Additional instructions and guidance are given throughout the Application in "red" text and in cell comments. Cell Notes/Comments are very important to read as some of these will provide direction when completing your Application.
B15: "Yellow" cells | F15: are for Applicant input. It is very important that you answer ALL yellow cells, failure to provide all information may disqualify your Application from consideration or may negatively impact your point score. Even if an item is not applicable - "no" or "N/A" must be filled from the drop down.
B16: "Orange" cells | F16: are required attachments. Failure to provide the required attachments and documentation may disqualify your Application from consideration or may negatively impact your point score. Electronically attached files must use the naming convention in the Application.
B17: "Blue" cells | F17: are self-score points awarded in the "Scoring" worksheet. These are automated calculations based on the inputs provided by the Applicant.
B18: "Red" cells | F18: indicate the Applicant has failed to meet a requirement of the program, threshold, scoring, upload, or certification.
B19: Disclosure of Application: Information provided in the application will become a public record available for review by the public, pursuant to the California Public Records Act (Chapter 1473, Statutes of 1968). As such, any materials provided will be disclosable to any person making a request under this Act. The Department cautions Applicants to use discretion in providing information not specifically requested, including but not limited to, bank account numbers, personal phone numbers and home addresses. By providing this information to the Department, the Applicant is waiving any claim of confidentiality and consents to the disclosure of submitted material upon request.
B21: End of Document

Sheet Project Overview
B2: Project Overview
B3: HCD APP#:
B5: “Optional Answer" will not affect application review or ranking. Sponsor(s)/Applicant(s) or Joint Venture Entity meets CDLAC Definition of BIPOC Organization? per CDLAC 523(f)(1)(B), TCAC 10327(c)(2)(E)?
B7: Is the Applicant a "Tribal Entity" and exclusively applying for the 2024 CalHome Tribal Notice of Funding Availability (NOFA)? | AO7: IsCalhomeTribal | AP7: =vmIsCalhomeTribal="Yes" -> FALSE
B9: Select the Program(s) for which to apply for funding: (Must select "Yes" or "No" for each Program and each Eligible Activity below)
AQ10: TRUE
D12: Joe Serna, Jr. Farmworker Housing Grant (Serna) Homeownership Program | AO12: IsJSerna | AP12: =vmIsJSerna="Yes" -> FALSE | AQ12: =COUNTIF(AP14:AP24,AQ10) -> 0
B13: Select Eligible Activities as follows:
D14: Homeownership Development Project Loans | AO14: IsJHDPL | AP14: =vmIsJHDPL="Yes" -> FALSE
D15: If an Applicant is building new homeownership Assisted Units, the Applicant can either apply for a Homeownership Development Project Loan which the Applicant can later convert to a Mortgage Assistance Grant or apply only for a Mortgage Assistance Grant to assist Eligible Households to purchase the newly-constructed Assisted Units, but the Applicant cannot apply for both a Homeownership Development Project Loan and a Mortgage Assistance Grant for those same Assisted Units).
D17: Self-Help Technical Assistance Grants | AO17: IsJSHTA | AP17: =vmIsJSHTA="Yes" -> FALSE
D18: Is this Self-Help Technical Assistance Grant to support a Homeownership Development Project Loan or Mortgage Assistance program for which you are also applying for funding?
D20: Mortgage Assistance Grants | AO20: IsJMA | AP20: =vmIsJMA="Yes" -> FALSE
D22: Owner-Occupied Rehabilitation Grants | AO22: IsJOOR | AP22: =vmIsJOOR="Yes" -> FALSE
D24: Acquisition of Manufactured Housing Grants | AO24: IsJAMH | AP24: =vmIsJAMH="Yes" -> FALSE
AQ26: TRUE
D27: CalHome Program | AO27: IsCalhome | AP27: =vmIsCalhome="Yes" -> FALSE | AQ27: =COUNTIF(AP30:AP42,AQ26) -> 0
B29: Select Eligible Activities as follows:
D30: Homeownership Development Project Loans | AO30: IsHDPL | AP30: =vmIsHDPL="Yes" -> FALSE
D31: If an Applicant is building new homeownership Assisted Units, the Applicant can either apply for a Homeownership Development Project Loan which the Applicant can later convert to a Mortgage Assistance Grant or apply only for a Mortgage Assistance Grant to assist Eligible Households to purchase the newly-constructed Assisted Units, but the Applicant cannot apply for both a Homeownership Development Project Loan and a Mortgage Assistance Grant for those same Assisted Units).
D33: Self Help Technical Assistance Grants | AO33: IsSHTA | AP33: =vmIsSHTA="Yes" -> FALSE
D34: Is this Self-Help Technical Assistance Grant to support a Homeownership Development Project Loan or Mortgage Assistance program for which you are also applying for funding?
D36: Mortgage Assistance Grants | AO36: IsMA | AP36: =vmIsMA="Yes" -> FALSE
D38: Owner-Occupied Rehabilitation Grants | AO38: IsOOR | AP38: =vmIsOOR="Yes" -> FALSE
D40: Shared Housing Grants | AO40: IsSH | AP40: =vmIsSH="Yes" -> FALSE
D42: Accessory Dwelling Units/Junior Accessory Dwelling Units Grants | AO42: IsJADU | AP42: =vmIsJADU="Yes" -> FALSE
B45: Application preparer Information
B46: Preparer name: | M46: Preparer e-mail: | X46: Preparer title: | AF46: Preparer phone:
B48: §200 Eligible Applicant
B49: Sponsor- This term is only applicable for Homeownership Development Project Loans. A Sponsor is an entity who constructs, develops, rehabilitates, purchases, or owns a housing development that is or will be subject to legally enforceable restrictive covenants that require the housing development to provide, at least in part, Affordable housing.
B50: Eligible Applicant Name: | X50: Eligible Applicant Type:
B51: Contact name: | M51: Contact e-mail: | X51: Contact title: | AF51: Contact phone:
B52: Alternate Contact name: | M52: Alternate Contact e-mail: | X52: Alternate Contact title: | AF52: Alternate Contact phone:
B53: Are there affiliate or subsidiary entities that provide operational or financial support to the Applicant?
B54: If yes, provide the affiliate/subsidiary entity(ies) name(s):
B55: Is the Applicant an affiliate or subsidiary of another entity such as a parent company?
B56: If yes, provide the parent company name:
B57: Will the Applicant rely on related party entity(ies) to develop, construct, or operate the proposed Project?
B58: Tribal Entity, please read §100(e) and note that AB 1010 does not automatically operate to obviate, or otherwise modify, any provision(s) of the Guidelines. To the extent that a Tribal Entity applicant believes that AB 1010 is applicable to such Tribal Entity, their Application, the Project to which their Application relates, or any number of them, it is recommended that such Tribal Entity applicant submit an AB 1010 waiver request to the Department before applications are due under the applicable NOFA to ensure that the Department has adequate time to review such waiver request and render a decision granting, or rejecting, the request.
B59: §200.1 Applicant acknowledges and certifies to the Serna Limited Partnership Eligibility Requirements?
B60: §200.2 Applicant acknowledges and certifies to the Serna-Nonprofit Corporation Eligibility Requirements?
B61: Is the Applicant being controlled by a parent company?
B62: Is the controlling company a nonprofit corporation? | Q62: =IF($O$62="No","Applicant must be independent from any direction of, or control by, a for-profit entity","") -> 
B64: File Name: | E64: ='Document Checklist-Full List'!$B$9 -> 02. Certification & Legal Disclosure | N64: ='Document Checklist-Full List'!$K$9 -> Reference: Applicant Certification Worksheet. | AF64: Uploaded to HCD?
B65: File Name: | E65: ='Document Checklist-Full List'!$B$10 -> 02. OrgDoc1, OrgDoc2, etc. | N65: ='Document Checklist-Full List'!$K$10 -> Reference: Entity Org Docs Worksheet. | AF65: Uploaded to HCD?
B66: File Name: | E66: ='Document Checklist-Full List'!$B$11 -> 02. Organizational Chart | N66: ='Document Checklist-Full List'!$K$11 -> Applicant Organization Chart. | AF66: Uploaded to HCD?
B67: File Name: | E67: ='Document Checklist-Full List'!$B$12 -> 02. Signature Block | N67: ='Document Checklist-Full List'!$K$12 -> Signature Block - upload in Microsoft Word document. | AF67: Uploaded to HCD?
B68: File Name: | E68: ='Document Checklist-Full List'!$B$13 -> 02. Cert of Good Standing | N68: ='Document Checklist-Full List'!$K$13 -> Certificate of Good Standing dated within 30 days of the application due date. | AF68: Uploaded to HCD?
B69: File Name: | E69: ='Document Checklist-Full List'!$B$14 -> 02. Tax-Exempt Status | N69: ='Document Checklist-Full List'!$K$14 -> Evidence of tax-exempt status from IRS and FTB for Corporations (Non-Profits Only). | AF69: Uploaded to HCD?
B70: File Name: | E70: ='Document Checklist-Full List'!$B$15 -> 02. Payee Data Record | N70: ='Document Checklist-Full List'!$K$15 -> Completed Payee Data Record. | AF70: Uploaded to HCD?
B71: File Name: | E71: ='Document Checklist-Full List'!$B$16 -> 02. TIN Form | N71: ='Document Checklist-Full List'!$K$16 -> Completed Government TIN form | AF71: Uploaded to HCD?
B72: File Name: | E72: ='Document Checklist-Full List'!$B$17 -> 02. Resolution | N72: ='Document Checklist-Full List'!$K$17 -> Executed resolution on HCD provided template. | AF72: Uploaded to HCD?
B74: Controlling Nonprofit Corporation
B75: Company Name:
B76: Contact name: | M76: Contact e-mail: | X76: Contact title: | AF76: Contact phone:
B77: Alternate Contact information:
B78: Contact name: | M78: Contact e-mail: | X78: Contact title: | AF78: Contact phone:
B80: File Name: | E80: ='Document Checklist-Full List'!$B$19 -> 03. Certification & Legal Disclosure | N80: ='Document Checklist-Full List'!$K$19 -> Reference: Applicant Certification Worksheet. | AF80: Uploaded to HCD?
B81: File Name: | E81: ='Document Checklist-Full List'!$B$20 -> 03. OrgDoc1, OrgDoc2, etc. | N81: ='Document Checklist-Full List'!$K$20 -> Reference: Entity Org Docs Worksheet. | AF81: Uploaded to HCD?
B82: File Name: | E82: ='Document Checklist-Full List'!$B$21 -> 03. Project Specific Organizational Chart | N82: ='Document Checklist-Full List'!$K$21 -> Applicant Organization Chart. | AF82: Uploaded to HCD?
B83: File Name: | E83: ='Document Checklist-Full List'!$B$22 -> 03. Signature Block | N83: ='Document Checklist-Full List'!$K$22 -> Signature Block - upload in Microsoft Word document. | AF83: Uploaded to HCD?
B84: File Name: | E84: ='Document Checklist-Full List'!$B$23 -> 03. Cert of Good Standing | N84: ='Document Checklist-Full List'!$K$23 -> Certificate of Good Standing dated within 30 days of the application due date. | AF84: Uploaded to HCD?
B85: File Name: | E85: ='Document Checklist-Full List'!$B$24 -> 03. Tax-Exempt Status | N85: ='Document Checklist-Full List'!$K$24 -> Evidence of tax-exempt status from IRS and FTB for Corporations (Non-Profits Only). | AF85: Uploaded to HCD?
B86: File Name: | E86: ='Document Checklist-Full List'!$B$25 -> 03. Payee Data Record | N86: ='Document Checklist-Full List'!$K$25 -> Completed Payee Data Record. | AF86: Uploaded to HCD?
B87: File Name: | E87: ='Document Checklist-Full List'!$B$26 -> 03. TIN Form | N87: ='Document Checklist-Full List'!$K$26 -> Completed Government TIN form | AF87: Uploaded to HCD?
B88: File Name: | E88: ='Document Checklist-Full List'!$B$27 -> 03. Resolution | N88: ='Document Checklist-Full List'!$K$27 -> Executed resolution on HCD provided template. | AF88: Uploaded to HCD?
B89: File Name: | E89: ='Document Checklist-Full List'!$B$28 -> 03. Limited Partnership Agreement | N89: ='Document Checklist-Full List'!$K$28 -> Limited Partnership agreement, any Limited Liability Company operating agreement, the articles and bylaws of any Nonprofit Corporation, and any pertinent side agreements, between limited and general partners relating to the management and operation of the Limited Partnership (collectively, “organizational documents”). | AF89: Uploaded to HCD?
B91: Congress person Name(s) | L91: District # | O91: State Senator Name(s) | Y91: District # | AB91: State Assembly Member Name(s) | AL91: District #
B97: Homeownership Development Project Loans - CalHome | X97: Geographic Location: | AD97: =IF($F$99>0,VLOOKUP($F$99,Dropdowns!$B$10:$C$67,2,FALSE),"") -> 
B98: Project Name | U98: Project Address
B99: Project County
B100: Is Project located in a Rural Area as defined by H&S Code §50199.21? Applicant must use the TCAC Method for determining rural status. | AC100: Documentation of rural status
B101: Which methodology is being used to demonstrate that the Project/Program area is rural?
B102: File Name: | E102: ='Document Checklist-Full List'!$B$30 -> 04. Rural Status Determination | N102: ='Document Checklist-Full List'!$K$30 -> TCAC Method for determining rural status. | AF102: Uploaded to HCD?
B103: Project description - CalHome (Homeownership Development Project Loans)
B106: Homeownership Development Project Loans - FWHG | X106: Geographic Location: | AD106: =IF(County>0,VLOOKUP(County,Dropdowns!$B$10:$C$67,2,FALSE),"") -> 
B107: Project Name | U107: Project Address
B108: Project County
B109: Is Project located in a Rural Area as defined by H&S Code §50199.21? Applicant must use the TCAC Method for determining rural status. | AC109: Documentation of rural status
B110: Which methodology is being used to demonstrate that the Project/Program area is rural?
B111: File Name: | E111: ='Document Checklist-Full List'!$B$30 -> 04. Rural Status Determination | N111: ='Document Checklist-Full List'!$K$30 -> TCAC Method for determining rural status. | AF111: Uploaded to HCD?
B112: Project description - Homeownership Development Project Loans (FWHG)
B115: Self-Help Technical Assistance Grants - CalHome | X115: Geographic Location: | AD115: =IF($F$117>0,VLOOKUP($F$117,Dropdowns!$B$10:$C$67,2,FALSE),"") -> 
B116: Program Name | U116: Program Address
B117: Program County
B118: Will all the units be located in a Rural Area as defined by H&S Code §50199.21? Applicant must use the TCAC Method for determining rural status. | AC118: Documentation of rural status
B119: Which methodology is being used to demonstrate that the Project/Program area is rural?
B120: File Name: | E120: ='Document Checklist-Full List'!$B$30 -> 04. Rural Status Determination | N120: ='Document Checklist-Full List'!$K$30 -> TCAC Method for determining rural status. | AF120: Uploaded to HCD?
B121: Program description - Self-Help Technical Assistance Grants (CalHome)
B124: Self-Help Technical Assistance Grants - FWHG | X124: Geographic Location: | AD124: =IF($F$126>0,VLOOKUP($F$126,Dropdowns!$B$10:$C$67,2,FALSE),"") -> 
B125: Program Name | U125: Program Address
B126: Program County
B127: Will all the units be located in a Rural Area as defined by H&S Code §50199.21? Applicant must use the TCAC Method for determining rural status. | AC127: Documentation of rural status
B128: Which methodology is being used to demonstrate that the Project/Program area is rural?
B129: File Name: | E129: ='Document Checklist-Full List'!$B$30 -> 04. Rural Status Determination | N129: ='Document Checklist-Full List'!$K$30 -> TCAC Method for determining rural status. | AF129: Uploaded to HCD?
B130: Program description - Self-Help Technical Assistance Grants (FWHG)
B133: Mortgage Assistance Grants - CalHome | X133: Geographic Location: | AD133: =IF($F$135>0,VLOOKUP($F$135,Dropdowns!$B$10:$C$67,2,FALSE),"") -> 
B134: Program Name | U134: Program Address
B135: Program County
B136: Will all the units be located in a Rural Area as defined by H&S Code §50199.21? Applicant must use the TCAC Method for determining rural status. | AC136: Documentation of rural status
B137: Which methodology is being used to demonstrate that the Project/Program area is rural?
B138: File Name: | E138: ='Document Checklist-Full List'!$B$30 -> 04. Rural Status Determination | N138: ='Document Checklist-Full List'!$K$30 -> TCAC Method for determining rural status. | AF138: Uploaded to HCD?
B139: Program description - Mortgage Assistance Grants (CalHome)
B142: Mortgage Assistance Grants - FWHG | X142: Geographic Location: | AD142: =IF($F$144>0,VLOOKUP($F$144,Dropdowns!$B$10:$C$67,2,FALSE),"") -> 
B143: Program Name | U143: Program Address
B144: Program County
B145: Will all the units be located in a Rural Area as defined by H&S Code §50199.21? Applicant must use the TCAC Method for determining rural status. | AC145: Documentation of rural status
B146: Which methodology is being used to demonstrate that the Project/Program area is rural?
B147: File Name: | E147: ='Document Checklist-Full List'!$B$30 -> 04. Rural Status Determination | N147: ='Document Checklist-Full List'!$K$30 -> TCAC Method for determining rural status. | AF147: Uploaded to HCD?
B148: Program description - Mortgage Assistance Grants (FWHG)
B151: Owner-Occupied Rehabilitation Grants - CalHome | X151: Geographic Location: | AD151: =IF($F$153>0,VLOOKUP($F$153,Dropdowns!$B$10:$C$67,2,FALSE),"") -> 
B152: Program Name | U152: Program Address
B153: Program County
B154: Will all the units be located in a Rural Area as defined by H&S Code §50199.21? Applicant must use the TCAC Method for determining rural status. | AC154: Documentation of rural status
B155: Which methodology is being used to demonstrate that the Project/Program area is rural?
B156: File Name: | E156: ='Document Checklist-Full List'!$B$30 -> 04. Rural Status Determination | N156: ='Document Checklist-Full List'!$K$30 -> TCAC Method for determining rural status. | AF156: Uploaded to HCD?
B157: Program description - Owner-Occupied Rehabilitation Grants (CalHome)
B160: Owner-Occupied Rehabilitation Grants - FWHG | X160: Geographic Location: | AD160: =IF($F$162>0,VLOOKUP($F$162,Dropdowns!$B$10:$C$67,2,FALSE),"") -> 
B161: Program Name | U161: Program Address
B162: Program County
B163: Will all the units be located in a Rural Area as defined by H&S Code §50199.21? Applicant must use the TCAC Method for determining rural status. | AC163: Documentation of rural status
B164: Which methodology is being used to demonstrate that the Project/Program area is rural?
B165: File Name: | E165: ='Document Checklist-Full List'!$B$30 -> 04. Rural Status Determination | N165: ='Document Checklist-Full List'!$K$30 -> TCAC Method for determining rural status. | AF165: Uploaded to HCD?
B166: Program description - Owner-Occupied Rehabilitation Grants (FWHG)
B169: Shared Housing Grants - CalHome | X169: Geographic Location: | AD169: =IF($F$171>0,VLOOKUP($F$171,Dropdowns!$B$10:$C$67,2,FALSE),"") -> 
B170: Program Name | U170: Program Address
B171: Program County
B172: Program description - Shared Housing Grants (CalHome)
B175: Accessory Dwelling Units/Junior Accessory Dwelling Units Grants - CalHome | X175: Geographic Location: | AD175: =IF($F$177>0,VLOOKUP($F$177,Dropdowns!$B$10:$C$67,2,FALSE),"") -> 
B176: Program Name | U176: Program Address
B177: Program County
B178: Will all the units be located in a Rural Area as defined by H&S Code §50199.21? Applicant must use the TCAC Method for determining rural status. | AC178: Documentation of rural status
B179: Which methodology is being used to demonstrate that the Project/Program area is rural?
B180: File Name: | E180: ='Document Checklist-Full List'!$B$30 -> 04. Rural Status Determination | N180: ='Document Checklist-Full List'!$K$30 -> TCAC Method for determining rural status. | AF180: Uploaded to HCD?
B181: Program description - Accessory Dwelling Units/Junior Accessory Dwelling Units Grants (CalHome)
B184: Acquisition of Manufactured Housing Grants - FWHG | X184: Geographic Location: | AD184: =IF($F$186>0,VLOOKUP($F$186,Dropdowns!$B$10:$C$67,2,FALSE),"") -> 
B185: Program Name | U185: Program Address
B186: Program County
B187: Will all the units be located in a Rural Area as defined by H&S Code §50199.21? Applicant must use the TCAC Method for determining rural status. | AC187: Documentation of rural status
B188: Which methodology is being used to demonstrate that the Project/Program area is rural?
B189: File Name: | E189: ='Document Checklist-Full List'!$B$30 -> 04. Rural Status Determination | N189: ='Document Checklist-Full List'!$K$30 -> TCAC Method for determining rural status. | AF189: Uploaded to HCD?
B190: Program description - Acquisition of Manufactured Housing Grants (FWHG)
B193: Does the Applicant wish to apply to the Community-Based Developer funding target? NOFA (II)(d)(1)(b)
B194: Is Project/Program being proposed by a Community-Based Developer? | S194: See Appendix A- Definitions
B195: Is the Community-Based Developer a Tribal Entity? | O195: See Appendix A- Definitions
B196: Is Project located in Indian Country, or located on fee land within the state of California?
B197: APPENDIX B- Tribal Eligibility (b)(1-4), The Applicant meets the following conditions of Award funding to the extent applicable, and, subject to any modifications or waivers as provided for in H.S.C. §50406, subdivision (p) (Assembly Bill 1010 (Chapter 660, Statutes of 2019) that shall be set forth in a Standard Agreement. It is noted that these same conditions do not need to be satisfied initially to engage in the competitive Award process.
B198: APPENDIX B- Tribal Eligibility (B), Applicant acknowledges per the Director’s Memo and LWSI Omnibus Amendment, the Department has removed the Limited Waiver of Sovereign Immunity (LWSI) requirement from this housing program, making it easier for tribes to access critical housing resources. In addition, AB 1878 prohibits the Department from requiring a waiver for this program to the extent that not requiring such a waiver is not in conflict with applicable law. | AG198: Director’s Memo and LWSI Omnibus Amendment
B199: File Name: | E199: ='Document Checklist-Full List'!$B$32 -> 06. Tribal Entity Waiver | N199: ='Document Checklist-Full List'!$K$32 -> Modifications or waivers as provided for in HSC Section 50406, subdivision (p) (Assembly Bill 1010 (Chapter 660, Statutes of 2019). | AF199: Uploaded to HCD?
B200: File Name: | E200: ='Document Checklist-Full List'!$B$33 -> 07. Indian Country Verification | N200: ='Document Checklist-Full List'!$K$33 -> Documentation verifying land is located in Indian Country as defined by 18 USC 1151. | AF200: Uploaded to HCD?
B201: File Name: | E201: ='Document Checklist-Full List'!$B$34 -> 08. Fee Land Verification | N201: ='Document Checklist-Full List'!$K$34 -> Documentation verifying land is located on Fee land. | AF201: Uploaded to HCD?
B203: The Community-Based Developer certifies to meet the experience requirements set forth in Appendix A.
B204: (a) | C204: Sponsor/Applicant certifies that they have been operating in the community to be served by the Project for a period of at least twenty-four (24) consecutive months immediately preceding application submittal.
C205: Provide the date the entity started operating in the community to be serve by the project.
B206: (b) | C206: Applicant certifies to provide a map in Attachment "CB Developer Experience" documenting that the community does not exceed ten (10) square miles for non-Rural Areas or twenty (20) square miles for Rural Areas. In addition, the defined community must comply with the following, documented in Attachment "CB Developer Experience":
C207: (1) | D207: be primarily or exclusively located in a Moderate and/or Low Resource area or in a High Segregation & Poverty area, as designated in the most recently updated TCAC/HCD Opportunity Area Map or in such comparable federal map(s) as approved by the Department;
C208: (2) | D208: include the Project to be funded by the award; and
C209: (3) | D209: subject to subsection (c) immediately following, include the entity’s corporate office within its boundaries.
B210: (c) | C210: The Community-Based Developer satisfies one of the following geographic requirements, documented in Attachment "CB Developer Experience":
C211: (1) | D211: Where the proposed Project is located in a non-Rural Area, either: (A) the entity maintains a corporate office within five (5) miles of the proposed Project, or (B) the entity has developed, owned, or operated at least three (3) deed-restricted affordable housing projects located within ten (10) miles of the proposed Project; or
C212: (2) | D212: Where the proposed Project is located in a Rural Area, either: (A) the entity maintains a corporate office within ten (10) miles of the proposed Project, or (B) the entity has developed, owned, or operated at least three (3) deed-restricted affordable housing projects located within twenty (20) miles of the proposed Project.
B213: (d) | C213: The Community-Based Developer satisfies both of the following experience requirements, documented in Attachment "CB Developer Experience":
C214: (1) | D214: The entity has developed, owned, or operated at least one (1) Rental Housing Development that is equivalent to the proposed Project in size, scale, level of amenities, and occupancy. The Department may determine experience by evaluating the experience of the entity itself or the experience of senior staff within the organization. If the experience requirement is satisfied by one or more of the Community-Based Developer’s senior staff members, then the Standard Agreement and the loan documents shall include a Sponsor obligation to provide the Department with immediate written notice in the event of such member’s or members’ departure from or termination by the entity.
C215: (2) | D215: The entity has at least five (5) years’ experience in the delivery of Culturally Competent Services and/or Community Benefit Programs to Very Low Income and/or Lower Income households in the communities served by the entity. This experience must include direct, in-person delivery of at least two (2) Culturally Competent Services and/or Community Benefit Programs to the general public within ten (10) miles of the proposed Project. Such services or programs must have been provided on an ongoing basis and during core business hours, and they cannot have been provided at an existing affordable housing project. Provide detailed information and documentation of each service and/or program in Attachment 9, including location and number of years.
B216: (e) | C216: The Community-Based Developer can serve no more than three (3) distinct geographic communities, as demonstrated by the location or delivery site of corporate offices, affordable housing projects, Culturally Competent Services, and/or Community Benefit Programs. All geographic communities served must be documented, described, and visually identified in Attachment "CB Developer Experience".
B217: (f) | C217: The Community-Based Developer must have community knowledge, commitment to long-term community investment, and population-specific cultural competency, as demonstrated by evidence in Attachment "CB Developer Experience" of at least two (2) of the following:
C218: (1) | D218: Receipt of grant funds for services within the relevant community.
C219: (2) | D219: Bilingual staff members that provide daily language assistance during the entity’s delivery of services to the relevant community.
C220: (3) | D220: A record of hiring within the community.
C221: (4) | D221: Membership in or recruitment from a local Urban League (or substantially equivalent) organization.
B222: File Name: | E222: ='Document Checklist-Full List'!$B$35 -> 09. CB Developer Experience | N222: ='Document Checklist-Full List'!$K$35 -> Provide documentation of all requirements for "Community-Based Developer" listed in Appendix A – Defined Terms and as indicated in (a)-(f) above. | AF222: Uploaded to HCD?
B224: =IF(AND(vmIsCalhome="Yes",vmIsJSerna="Yes"),"CALHOME and FWHG",IF(vmIsCalhome="Yes","CALHOME",IF(vmIsJSerna="Yes","FWHG"))) -> FALSE
B225: ARTICLE II. GENERAL PROGRAM REQUIREMENTS
B226: §203 Eligible Households
C227: The Applicant acknowledges "Eligible Households" requirements therein §203?
B229: §204 Local Program/Project Administration
C230: The Applicant acknowledges and certifies to implement the Local Program or project and be responsible for the following activities therein §204?
C231: (b) | D231: The Recipient shall adopt a written nondiscrimination policy requiring that no person shall, on the grounds of race, color, religion, sex, gender, gender identity, gender expression, sexual orientation, marital status, national origin, ancestry, familial status, source of income, disability, age, medical condition, genetic information, citizenship, primary language, immigration status (except where explicitly prohibited by federal law), arbitrary characteristics, and all other classes of individuals protected from discrimination under federal or state fair housing laws, individuals perceived to be a member of any of the preceding classes, or any individual or person associated with any of the preceding classes be excluded from participation in, be denied the benefits of, or be subjected to discrimination under, any program or activity funded in whole or in part with Program funds.
D232: (1) | E232: Notwithstanding the foregoing and subparagraph (c) below, a Tribal Entity Recipient may implement a preference for Tribal Households in connection with any Eligible Activities undertaken within Indian Country in accordance with applicable law.
D233: (2) | E233: A Tribal Entity Recipient may also implement a tribal preference for procurement in connection with any Eligible Activities undertaken within Indian Country in accordance with applicable law. The Tribal Entity Recipient’s procurement policy shall be subject to the Department’s review and prior written approval.
E234: Will the Tribal Entity Recipient implement a tribal preference for procurement in connection with any Eligible Activities undertaken within Indian Country in accordance with applicable law
B235: File Name: | E235: ='Document Checklist-Full List'!$B$36 -> 10. Nondiscrimination policy | N235: ='Document Checklist-Full List'!$K$36 -> Recipient, provide a copy of your adopted written nondiscrimination policy. | AF235: Uploaded to HCD?
B236: File Name: | E236: ='Document Checklist-Full List'!$B$37 -> 11. Procurement preference | N236: ='Document Checklist-Full List'!$K$37 -> Provide a copy of the Tribal Entity Recipient’s procurement policy. | AF236: Uploaded to HCD?
B238: §205 Homebuyer Education Requirements
C239: The Applicant acknowledges and certifies to implement the Local Program and be responsible for the following activities therein §205?
C240: (1) | D240: Homebuyer Education curriculum shall be pre-approved by the Department and, at a minimum, shall include the following topics:
D241: (A) | E241: Preparing for Homeownership;
D242: (B) | E242: Available financing and credit analysis;
D243: (C) | E243: Loan closing and homebuyer responsibilities;
D244: (D) | E244: Home maintenance and Loan servicing.
B245: File Name: | E245: ='Document Checklist-Full List'!$B$38 -> 12. Education curriculum | N245: ='Document Checklist-Full List'!$K$38 -> Provide a copy of the "Homebuyer Education curriculum". | AF245: Uploaded to HCD?
B247: §206 Loan Servicing Requirements
C248: The Applicant acknowledges and certifies to develop and employ a Loan servicing plan that has been submitted to and approved by the Department as addressing the topics therein §206(a-c)?
B249: File Name: | E249: ='Document Checklist-Full List'!$B$39 -> 13. Loan servicing plan | N249: ='Document Checklist-Full List'!$K$39 -> Recipients shall develop and employ a Loan servicing plan addressing the topics therein §206. | AF249: Uploaded to HCD?
B251: §207 Reuse Account Requirements
C252: The Applicant acknowledges and certifies to develop and employ a Reuse Account plan that has been submitted to and approved by the Department as addressing the following topics?
C253: (1) | D253: Description of a tracking system to ensure the reuse of funds for Eligible Activities including:
D254: (A) | E254: Loans to individual homeowners and homebuyers,
D255: (B) | E255: Homebuyer Education and
D256: (C) | E256: Allowable 5 percent Loan servicing fee.
... 129 more rows

Sheet HDPL Unit Mix (hidden)
B2: NOFA (II)(b)(1)(a)(i) Homeownership Development Projects must have a minimum of five (5) units. | G2: HCD Assisted Units
B3: # of Bedrooms | C3: # of Baths | D3: % of Area Median Income | E3: Square footage (living spaces) | F3: Total Units | G3: CalHome | H3: FWHG | I3: Est. per unit construction costs | J3: Est. Sales Price | K3: Provide the data source used to set sales price
F16: =SUM(F4:F15) -> 0 | G16: =SUM(G4:G15) -> 0 | H16: =SUM(H4:H15) -> 0
B18: Applicant Notes/Comments
B22: End of Document

Sheet Grant-Loan Amount (hidden)
B2: Maximum Loan / Grant Amount
B4: NOFA (II)(D)(1)(a) Mobilehome or Manufactured Home Assistance: To the extent there are eligible applications, the Department shall target $27 million of the available $143.1 million in CalHome funds as Awards for Mobilehome or Manufactured Home assistance. To the extent there is insufficient demand of eligible applications to make $27 million in Awards, any remaining funds will be applied to the general pool of Applicants.
B5: Will the Applicant use CalHome funds for Mobilehome assistance in a Mobilehome park or Manufactured home community?
B6: Applicant certifies that CalHome funds will be used for | W6: ?
B7: If "Both", of the maximum application amount in column AQ (in this sheet) for the program activity, how much funds will be used for Mobilehome or Manufactured Home Assistance?
B8: Program Activity
O9: Manufactured home community | AD9: Mobilehome
O10: Manufactured home community | AD10: Mobilehome
O11: Manufactured home community | AD11: Mobilehome
B12: NOFA (II)(D)(1)(b) Community-Based Developer: To the extent that there are eligible applications, the Department shall target 15 percent of HOSN funds (i.e., $26.5 million) to Community-Based Developers applying for a Homeownership Development Project Loan and/or a Self-Help Technical Assistance Grant. This shall include 15 percent of the total CalHome funds available under the HOSN (i.e., $21.5 million) and 15 percent of the total Serna funds available under the HOSN (i.e., $5 million).
B13: Is the Applicant a Community-Based Developer applying for a Homeownership Development Project Loan and/or a Self-Help Technical Assistance Grant. | AL13: =IF(AND(OR(IsCalhome,IsJSerna),vmCBD="Yes"),TRUE,FALSE) -> FALSE
B14: NOFA (II)(C)(2)(a)(i) Will the Mortgage Assistance be provided as part of a Homeownership Development Project Loan?
K16: Assisting Units | S16: Requesting Amount | AA16: Homebuyer Education | AI16: Administrative Costs | AQ16: NOFA (II)(c)(1) | AY16: NOFA (II)(c)(1)
B18: Program Activities | K18: CalHome | O18: FWHG | S18: CalHome | W18: FWHG | AA18: CalHome | AE18: FWHG | AI18: CalHome | AM18: FWHG | AQ18: CalHome | AU18: FWHG | AY18: CalHome
B19: Homeownership Development Project Loans | K19: ='HDPL Unit Mix'!$G$16 -> 0 | O19: ='HDPL Unit Mix'!$H$16 -> 0 | AA19: N/A | AE19: N/A | AI19: N/A | AM19: N/A | AQ19: =IF(AND(NOT(IsCalhomeTribal),IsCalhome,IsHDPL),MIN($K$19*250000,$S$19),0) -> 0 | AU19: =IF(AND(IsJSerna,vmIsJHDPL),MIN($O$19*250000,W19),0) -> 0 | AY19: =IF(AND(IsCalhomeTribal,IsCalhome,IsHDPL),MIN($K$19*250000,$S$19),0) -> 0
B20: Self-Help Technical Assistance Grants | AA20: =K20*250 -> 0 | AE20: =O20*250 -> 0 | AI20: N/A | AM20: N/A | AQ20: =IF(AND(NOT(IsCalhomeTribal),IsCalhome,IsSHTA),MIN($K$20*20000,S20)+$AA$20,0) -> 0 | AU20: =IF(AND(IsJSerna,vmIsJSHTA),MIN($O$20*20000,W20)+$AE$20,0) -> 0 | AY20: =IF(AND(IsCalhomeTribal,IsCalhome,IsSHTA),MIN($K$20*20000,S20),0) -> 0
B21: Mortgage Assistance Grants | AA21: =K21*250 -> 0 | AE21: =O21*250 -> 0 | AI21: =IF(AND($AL$14,IsCalhome),MIN($K$21*250000,$S$21)*0.1,IF(AND($AL$14=FALSE,IsCalhome),MIN($K$21*200000,$S$21)*0.1,0)) -> 0 | AM21: =IF(AND($AL$14,IsJSerna),MIN($O$21*250000,$W$21)*0.1,IF(AND($AL$14=FALSE,IsJSerna),MIN($O$21*200000,$W$21)*0.1,0)) -> 0 | AQ21: =IF(AND(NOT(IsCalhomeTribal),$AL$14,IsCalhome,IsMA),MIN(SUM($K$21*250000,$AA$21,$AI$21),SUM($S$21,$AA$21,$AI$21)),IF(AND(NOT(IsCalhomeTribal),$AL$14=FALSE,IsCalhome,IsMA),MIN(SUM($K$21*200000,$AA$21,$AI$21),SUM($S$21,$AA$21,$AI$21)),0)) -> 0 | AU21: =IF(AND($AL$14,IsJSerna,vmIsJMA),MIN(SUM($O$21*250000,$AE$21,$AM$21),SUM($W$21,$AE$21,$AM$21,)),IF(AND($AL$14=FALSE,IsJSerna,vmIsJMA),MIN(SUM($O$21*200000,$AE$21,$AM$21),SUM($W$21,$AE$21,$AM$21)),0)) -> 0 | AY21: =IF(AND(IsCalhomeTribal,$AL$14,IsCalhome,IsMA),MIN(SUM($K$21*250000,$AI$21),SUM($S$21,$AI$21)),IF(AND(IsCalhomeTribal,$AL$14=FALSE,IsCalhome,IsMA),MIN(SUM($K$21*200000,$AI$21),SUM($S$21,$AI$21)),0)) -> 0
B22: Owner-Occupied Rehabilitation Grants | AA22: N/A | AE22: N/A | AI22: =IF(IsCalhome,MIN($K$22*250000,$S$22)*0.2,0) -> 0 | AM22: =IF(IsJSerna,MIN($O$22*250000,$W$22)*0.2,0) -> 0 | AQ22: =IF(AND(NOT(IsCalhomeTribal),IsCalhome,IsOOR),MIN($K$22*250000,$S$22)+AI22,0) -> 0 | AU22: =IF(AND(IsJSerna,vmIsJOOR),MIN($O$22*250000,$W$22)+AM22,0) -> 0 | AY22: =IF(AND(IsCalhomeTribal,IsCalhome,IsOOR),MIN($K$22*200000,$S$22)+AI22,0) -> 0
B23: Shared Housing Grants | K23: N/A | O23: N/A | W23: N/A | AA23: N/A | AE23: N/A | AI23: N/A | AM23: N/A | AQ23: =IF(AND(NOT(IsCalhomeTribal),IsCalhome,IsSH,S23=0),0,IF(AND(NOT(IsCalhomeTribal),IsCalhome,IsSH),MIN(300000,S23),0)) -> 0 | AU23: N/A | AY23: =IF(AND(IsCalhomeTribal,IsCalhome,IsSH,S23=0),0,IF(AND(IsCalhomeTribal,IsCalhome,IsSH),MIN(300000,S23),0)) -> 0
B24: Accessory Dwelling Units/Junior Accessory Dwelling Units Grants | O24: N/A | W24: N/A | AA24: N/A | AE24: N/A | AI24: =IF(IsCalhome,MIN($K$24*250000,$S$24)*0.2,0) -> 0 | AM24: N/A | AQ24: =IF(AND(NOT(IsCalhomeTribal),IsCalhome,IsJADU),MIN($K$24*250000,$S$24)+AI24,0) -> 0 | AU24: N/A | AY24: =IF(AND(IsCalhomeTribal,IsCalhome,IsJADU),MIN($K$24*250000,$S$24)+AI24,0) -> 0
B25: Acquisition of Manufactured Housing Grants | K25: N/A | S25: N/A | AA25: N/A | AE25: N/A | AI25: N/A | AM25: =IF(IsJSerna,MIN($O$25*150000,$W$25)*0.2,0) -> 0 | AQ25: N/A | AU25: =IF(AND(IsJSerna,vmIsJAMH),MIN($O$25*150000,$W$25)+AM25,0) -> 0 | AY25: N/A
Z28: Total max Application amount: | AQ28: =SUM(AQ19:AS25,AU19:AW25) -> 0 | AY28: =SUM(AY19:BA25) -> 0
B30: Applicant Notes/Comments
B33: End of Document

Sheet HDPL Dev Sources (hidden)
C2: HDPL Development Sources | I2: Construction Terms
D3: Sources Totals | F3: =SUMIF(DevSourcesTbl[Committed?],"Yes",DevSourcesTbl[Residential Amount]) -> 0 | G3: =SUMIF(DevSourcesTbl[Committed?],"Yes",DevSourcesTbl[Commercial Amount]) -> 0 | H3: =SUM(F3,G3) -> 0
B4: Committed? | C4: Source Name (lien priority order) | D4: Source Type | E4: Lien No. | F4: Residential Amount | G4: Commercial Amount | H4: Total Amount | I4: Interest Rate | J4: Required Payment | K4: Loan Term (months)
C5: CalHome | D5: State-HCD | H5: =SUM(DevSourcesTbl[[#This Row],[Residential Amount]],DevSourcesTbl[[#This Row],[Commercial Amount]]) -> 0
H6: =SUM(DevSourcesTbl[[#This Row],[Residential Amount]],DevSourcesTbl[[#This Row],[Commercial Amount]]) -> 0
H7: =SUM(DevSourcesTbl[[#This Row],[Residential Amount]],DevSourcesTbl[[#This Row],[Commercial Amount]]) -> 0
H8: =SUM(DevSourcesTbl[[#This Row],[Residential Amount]],DevSourcesTbl[[#This Row],[Commercial Amount]]) -> 0
H9: =SUM(DevSourcesTbl[[#This Row],[Residential Amount]],DevSourcesTbl[[#This Row],[Commercial Amount]]) -> 0
H10: =SUM(DevSourcesTbl[[#This Row],[Residential Amount]],DevSourcesTbl[[#This Row],[Commercial Amount]]) -> 0
H11: =SUM(DevSourcesTbl[[#This Row],[Residential Amount]],DevSourcesTbl[[#This Row],[Commercial Amount]]) -> 0
H12: =SUM(DevSourcesTbl[[#This Row],[Residential Amount]],DevSourcesTbl[[#This Row],[Commercial Amount]]) -> 0
H13: =SUM(DevSourcesTbl[[#This Row],[Residential Amount]],DevSourcesTbl[[#This Row],[Commercial Amount]]) -> 0
B15: File Name: | C15: ='Document Checklist-Full List'!$B$55 -> 27. EFC #1, EFC #2, etc. | D15: ='Document Checklist-Full List'!$K$55 -> Provide all commitment letters or other evidence documenting construction financing commitments. | I15: Uploaded to HCD?
B18: Applicant comments: Include a description of balloon payments and unusual or extraordinary circumstances that have resulted in higher than expected Project costs and provide a justification as to why these costs are reasonable.
B21: End of Document

Sheet HDPL Dev Budget SU (hidden)
C2: HDPL Projects | F2: Sources of Funds | O2: Commercial Sources
C3: Grant Totals | D3: =SUM(DevBudgetSUTbl[Column2])-SUM($D$13,$D$26,$D$35,$D$41,$D$48,$D$51,$D$58,$D$64,$D$73) -> 0 | E3: =SUM(DevBudgetSUTbl[Column3])-SUM($E$13,$E$26,$E$35,$E$41,$E$48,$E$51,$E$58,$E$64,$E$73) -> 0 | F3: =SUM(DevBudgetSUTbl[Column89])-SUM($F$13,$F$26,$F$35,$F$41,$F$48,$F$51,$F$58,$F$64,$F$73) -> 0 | G3: =SUM(DevBudgetSUTbl[Column15])-SUM($G$13,$G$26,$G$35,$G$41,$G$48,$G$51,$G$58,$G$64,$G$73) -> 0 | H3: =SUM(DevBudgetSUTbl[Column18])-SUM($H$13,$H$26,$H$35,$H$41,$H$48,$H$51,$H$58,$H$64,$H$73) -> 0 | I3: =SUM(DevBudgetSUTbl[Column19])-SUM($I$13,$I$26,$I$35,$I$41,$I$48,$I$51,$I$58,$I$64,$I$73) -> 0 | J3: =SUM(DevBudgetSUTbl[Column22])-SUM($J$13,$J$26,$J$35,$J$41,$J$48,$J$51,$J$58,$J$64,$J$73) -> 0 | K3: =SUM(DevBudgetSUTbl[Column23])-SUM($K$13,$K$26,$K$35,$K$41,$K$48,$K$51,$K$58,$K$64,$K$73) -> 0 | L3: =SUM(DevBudgetSUTbl[Column24])-SUM($L$13,$L$26,$L$35,$L$41,$L$48,$L$51,$L$58,$L$64,$L$73) -> 0 | M3: =SUM(DevBudgetSUTbl[Column25])-SUM($M$13,$M$26,$M$35,$M$41,$M$48,$M$51,$M$58,$M$64,$M$73) -> 0 | N3: =SUM(DevBudgetSUTbl[Column26])-SUM($N$13,$N$26,$N$35,$N$41,$N$48,$N$51,$N$58,$N$64,$N$73) -> 0 | O3: =SUM(DevBudgetSUTbl[Column33])-SUM($O$13,$O$26,$O$35,$O$41,$O$48,$O$51,$O$58,$O$64,$O$73) -> 0 | P3: =SUM(DevBudgetSUTbl[Column34])-SUM($P$13,$P$26,$P$35,$P$41,$P$48,$P$51,$P$58,$P$64,$P$73) -> 0
C4: USES OF FUNDS | D4: Total Project Cost/Sources | E4: Total Project Commercial Cost/Sources | F4: =IF('HDPL Dev Sources'!$C5>0,'HDPL Dev Sources'!$C5,"") -> CalHome | G4: =IF('HDPL Dev Sources'!$C6>0,'HDPL Dev Sources'!$C6,"") ->  | H4: =IF('HDPL Dev Sources'!$C7>0,'HDPL Dev Sources'!$C7,"") ->  | I4: =IF('HDPL Dev Sources'!$C8>0,'HDPL Dev Sources'!$C8,"") ->  | J4: =IF('HDPL Dev Sources'!$C9>0,'HDPL Dev Sources'!$C9,"") ->  | K4: =IF('HDPL Dev Sources'!$C10>0,'HDPL Dev Sources'!$C10,"") ->  | L4: =IF('HDPL Dev Sources'!$C11>0,'HDPL Dev Sources'!$C11,"") ->  | M4: =IF('HDPL Dev Sources'!$C12>0,'HDPL Dev Sources'!$C12,"") ->  | N4: =IF('HDPL Dev Sources'!$C13>0,'HDPL Dev Sources'!$C13,"") ->  | O4: Source Name | P4: Source Name
C5: Column1 | D5: Column2 | E5: Column3 | F5: Column89 | G5: Column15 | H5: Column18 | I5: Column19 | J5: Column22 | K5: Column23 | L5: Column24 | M5: Column25 | N5: Column26 | O5: Column33 | P5: Column34
B6: LAND COST/ACQUISITION | C6: Land Cost or Value | D6: =SUM(F6:N6) -> 0 | E6: =SUM(O6:P6) -> 0
C7: Demolition | D7: =SUM(F7:N7) -> 0 | E7: 0
C8: Legal | D8: 0 | E8: 0
C9: Onsite Predevelopment (do not include construction of housing units) | D9: 0 | E9: 0
C10: Off-Site Improvements | D10: 0 | E10: 0
C11: Predevelopment Interest/Holding Cost | D11: 0 | E11: 0
C12: Assumed, Accrued Interest on Existing Debt | D12: 0 | E12: 0
D13: =SUBTOTAL(109,D6:D12) -> 0 | E13: 0 | F13: 0 | G13: 0 | H13: 0 | I13: 0 | J13: 0 | K13: 0 | L13: 0 | M13: 0 | N13: 0 | O13: 0 | P13: 0
B14: REHABILITATION | C14: Site Work | D14: =SUM(F14:N14) -> 0 | E14: =SUM(O14:P14) -> 0
C15: Structures | D15: 0 | E15: 0
C16: General Requirements | D16: 0 | E16: =SUM(O16:P16) -> 0
C17: Contractor Overhead | D17: 0 | E17: 0
C18: Contractor Profit | D18: 0 | E18: 0
C19: Prevailing Wages | D19: 0 | E19: 0
C20: General Liability Insurance | D20: 0 | E20: 0
C21: Other: (Specify) | D21: 0 | E21: 0
C22: Other: (Specify) | D22: 0 | E22: 0
C23: Other: (Specify) | D23: 0 | E23: 0
C24: Other: (Specify) | D24: 0 | E24: 0
C25: Total Relocation Expenses | D25: 0 | E25: =SUM(O25:P25) -> 0
D26: =SUBTOTAL(109,D14:D25) -> 0 | E26: =SUBTOTAL(109,E14:E25) -> 0 | F26: 0 | G26: 0 | H26: 0 | I26: 0 | J26: 0 | K26: 0 | L26: 0 | M26: 0 | N26: 0 | O26: 0 | P26: 0
B27: NEW CONSTRUCTION | C27: Pre-Development Site Preparation | D27: =SUM(F27:N27) -> 0 | E27: =SUM(O27:P27) -> 0
C28: New Unit Home Construction (Labor and Materials) | D28: 0 | E28: =SUM(O28:P28) -> 0
C29: General Requirements | D29: 0 | E29: 0
C30: Prevailing Wages | D30: 0 | E30: 0
C31: General Liability Insurance | D31: 0 | E31: 0
C32: Other: (Specify) | D32: 0 | E32: 0
C33: Other: (Specify) | D33: 0 | E33: 0
C34: Other: (Specify) | D34: 0 | E34: 0
D35: =SUBTOTAL(109,D27:D34) -> 0 | E35: 0 | F35: 0 | G35: 0 | H35: 0 | I35: 0 | J35: 0 | K35: 0 | L35: 0 | M35: 0 | N35: 0 | O35: 0 | P35: 0
B36: ARCH. FEES | C36: Design | D36: =SUM(F36:N36) -> 0 | E36: =SUM(O36:P36) -> 0
C37: Supervision | D37: =SUM(F37:N37) -> 0 | E37: =SUM(O37:P37) -> 0
C38: Total Survey & Engineering | D38: =SUM(F38:N38) -> 0 | E38: =SUM(O38:P38) -> 0
C39: Other: (Specify) | D39: =SUM(F39:N39) -> 0 | E39: =SUM(O39:P39) -> 0
C40: Other: (Specify) | D40: =SUM(F40:N40) -> 0 | E40: =SUM(O40:P40) -> 0
D41: =SUBTOTAL(109,D36:D40) -> 0 | E41: =SUBTOTAL(109,E36:E40) -> 0 | F41: 0 | G41: 0 | H41: 0 | I41: 0 | J41: 0 | K41: 0 | L41: 0 | M41: 0 | N41: 0 | O41: 0 | P41: 0
B42: CONSTRUCTION INTEREST & FEES | C42: Construction Loan Interest | D42: =SUM(F42:N42) -> 0 | E42: =SUM(O42:P42) -> 0
C43: Change to Construction Loan Financing Fees | D43: 0 | E43: 0
C44: Bond Premium | D44: 0 | E44: 0
C45: Title & Recording | D45: 0 | E45: 0
C46: Taxes | D46: 0 | E46: 0
C47: Insurance | D47: 0 | E47: 0
D48: =SUBTOTAL(109,D42:D47) -> 0 | E48: 0 | F48: 0 | G48: 0 | H48: 0 | I48: 0 | J48: 0 | K48: 0 | L48: 0 | M48: 0 | N48: 0 | O48: 0 | P48: 0
B49: LEGAL FEES | C49: Attorney fees directly associated with activities related to units funded by the CalHome Program | D49: =SUM(F49:N49) -> 0 | E49: =SUM(O49:P49) -> 0
C50: Other: (Specify) | D50: =SUM(F50:N50) -> 0 | E50: =SUM(O50:P50) -> 0
D51: =SUBTOTAL(109,D49:D50) -> 0 | E51: 0 | F51: 0 | G51: 0 | H51: 0 | I51: 0 | J51: 0 | K51: 0 | L51: 0 | M51: 0 | N51: 0 | O51: 0 | P51: 0
B52: RESERVES | C52: Operating Reserve | D52: =SUM(F52:N52) -> 0 | E52: =SUM(O52:P52) -> 0
C53: Replacement Reserve | D53: 0 | E53: 0
C54: Transition Reserve | D54: 0 | E54: 0
C55: Other: (Specify) | D55: 0 | E55: 0
C56: Other: (Specify) | D56: 0 | E56: 0
C57: Other: (Specify) | D57: 0 | E57: 0
D58: =SUBTOTAL(109,D52:D57) -> 0 | E58: 0 | F58: 0 | G58: 0 | H58: 0 | I58: 0 | J58: 0 | K58: 0 | L58: 0 | M58: 0 | N58: 0 | O58: 0 | P58: 0
B59: CONTINGENCY COSTS | C59: Pre Construction Hard Cost Contingency | D59: =SUM(F59:N59) -> 0 | E59: =SUM(O59:P59) -> 0
C60: Pre Construction Soft Cost Contingency | D60: =SUM(F60:N60) -> 0 | E60: =SUM(O60:P60) -> 0
C61: Construction Hard Cost Contingency | D61: =SUM(F61:N61) -> 0 | E61: =SUM(O61:P61) -> 0
C62: Soft Construction Cost Contingency | D62: =SUM(F62:N62) -> 0 | E62: =SUM(O62:P62) -> 0
C63: Other: (Specify) | D63: =SUM(F63:N63) -> 0 | E63: =SUM(O63:P63) -> 0
D64: =SUBTOTAL(109,D59:D63) -> 0 | E64: =SUBTOTAL(109,E59:E63) -> 0 | F64: 0 | G64: 0 | H64: 0 | I64: 0 | J64: 0 | K64: 0 | L64: 0 | M64: 0 | N64: 0 | O64: 0 | P64: 0
B65: OTHER PROJECT COSTS | C65: Environmental hazard reports, surveys, and investigations | D65: =SUM(F65:N65) -> 0 | E65: =SUM(O65:P65) -> 0
C66: Local Development Impact Fees | D66: 0 | E66: 0
C67: Permit Processing Fees | D67: 0 | E67: 0
C68: Marketing | D68: 0 | E68: 0
C69: Market Study | D69: 0 | E69: 0
C70: Appraisal Costs | D70: 0 | E70: 0
C71: Construction Management | D71: 0 | E71: =SUM(O71:P71) -> 0
C72: Prevailing Wage Monitoring | D72: 0 | E72: 0
D73: =SUBTOTAL(109,D65:D72) -> 0 | E73: 0 | F73: 0 | G73: 0 | H73: 0 | I73: 0 | J73: 0 | K73: 0 | L73: 0 | M73: 0 | N73: 0 | O73: 0 | P73: 0
B74: DEVELOPER COSTS | C74: Developer Overhead/Profit | D74: =SUM(F74:N74) -> 0 | E74: =SUM(O74:P74) -> 0
C75: Consultant/Processing Agent | D75: 0 | E75: 0
C76: Project Administration | D76: 0 | E76: 0
C77: Broker Fees Paid to a Related Party | D77: 0 | E77: 0
C78: Construction Oversight by Developer | D78: 0 | E78: =SUM(O78:P78) -> 0
C79: Other: (Specify) | D79: 0 | E79: 0
C81: General comments:
B84: End of Document

Sheet CalHome Threshold Requirements (hidden)
AL3: =EDATE(Appduedate,-48) -> 2021-02-13 | AP3: Reviewer 1 | AQ3: Comments | AS3: Reviewer 2 | AT3: Comments | AV3: Manager Review | AW3: Comments
AH4: App due date: | AL4: =Appduedate -> 2025-02-13 | AP4: Thomson, Kara | AQ4: =IF(OR($AP$14="FAIL",$AP$21="FAIL",$AP$26="FAIL",$AP$30="FAIL",$AP$33="FAIL",$AP$51="FAIL",$AP$54="FAIL",$AP$56="FAIL",$AP$58="FAIL",$AP$62="FAIL",$AP$68="FAIL",$AP$73="FAIL",$AP$75="FAIL",$AP$77="FAIL",$AP$88="FAIL",$AP$95="FAIL",$AP$146="FAIL",$AP$169="FAIL",$AP$173="FAIL",$AP$175="FAIL",$AP$177="FAIL"),"FAIL","PASS") -> PASS | AS4: Bouldin, Brandon | AT4: =IF(OR($AS$14="FAIL",$AS$21="FAIL",$AS$26="FAIL",$AS$30="FAIL",$AS$33="FAIL",$AS$51="FAIL",$AS$54="FAIL",$AS$56="FAIL",$AS$58="FAIL",$AS$62="FAIL",$AS$68="FAIL",$AS$73="FAIL",$AS$75="FAIL",$AS$77="FAIL",$AS$88="FAIL",$AS$95="FAIL",$AS$146="FAIL",$AS$169="FAIL",$AS$173="FAIL",$AS$175="FAIL",$AS$177="FAIL"),"FAIL","PASS") -> PASS | AV4: Melendres, Gail | AW4: =IF(OR($AV$14="FAIL",$AV$21="FAIL",$AV$26="FAIL",$AV$30="FAIL",$AV$33="FAIL",$AV$51="FAIL",$AV$54="FAIL",$AV$56="FAIL",$AV$58="FAIL",$AV$62="FAIL",$AV$68="FAIL",$AV$73="FAIL",$AV$75="FAIL",$AV$77="FAIL",$AV$88="FAIL",$AV$95="FAIL",$AV$146="FAIL",$AV$169="FAIL",$AV$173="FAIL",$AV$175="FAIL",$AV$177="FAIL"),"FAIL","PASS") -> PASS
B5: CalHome Program - Threshold Requirements
B7: §208 CalHome Threshold Requirements
B8: Applications will not be considered for funding unless the application is received by the deadline as stated in the NOFA and demonstrates compliance with all CalHome Program Statutes and Guidelines, including the following conditions:
B10: (a) | C10: The Applicant meets geographic restrictions per CalHome Guidelines (Guidelines §200, subd. (a)).
B11: (b) | C11: The Applicant is an eligible Local Public Entity, Local Public Agency, Tribal Entity, or Nonprofit Corporation (Guidelines §200). For purposes of these Guidelines, a Local Public Entity or Locality is defined to include a Tribal Entity. Pursuant to Health & Safety Code §50091, a Nonprofit Corporation shall include a Tribally Designated Housing Entity as further defined therein.
B12: (c) | C12: The Applicant has complied with reporting requirements (Guidelines §200, subd. (c)).
C13: §200 Eligible Applicants
C14: To be eligible to apply for funding, the Applicant shall be a Local Public Entity, Local Public Agency, Tribal Entity, or Nonprofit Corporation. Appendix B of these Guidelines contains more details on tribal eligibility. | AL14: =IF(OR(vmApplicant1Type="Local Public Entity",vmApplicant1Type="Local Public Agency",vmApplicant1Type="Tribal Entity",vmApplicant1Type="Nonprofit Corporation"),TRUE,FALSE) -> FALSE
D15: (a) | E15: Geographic restrictions
E16: (1) | F16: A Local Public Entity that is not a Tribal Entity shall only be eligible to apply for an Award of CalHome Program funds for a Local Program or project located within its jurisdictional boundaries. A Tribal Entity shall be eligible to apply for an award of CalHome program funds for a Local Program or project located anywhere within the state of California, as long as the Tribal Entity has provided documentation establishing site control.
F17: =CONCATENATE("The ",vmApplicant1," ","acknowledges/certifies eligibility to apply for an Award of CalHome Program funds for a Local Program or project located within its jurisdictional boundaries.") -> The acknowledges/certifies eligibility to apply for an Award of CalHome Program funds for a Local Program or project located within its jurisdictional boundaries.
F18: Tribal Entity acknowledges to be eligible to apply for an award of CalHome program funds for a Local Program or project located anywhere within the state of California.
E20: (2) | F20: A Nonprofit Corporation or Tribally Designated Housing Entity shall only be eligible to apply for an Award of CalHome Program funds for a program or project if it has developed a project or operated a housing program in California within the past two years or if the Nonprofit Corporation or Tribally Designated Housing Entity has an existing 523 Self-Help Technical Assistance Grant Agreement with the United States Department of Agriculture (USDA).
F21: Has the Nonprofit Corporation or Tribally Designated Housing Entity developed a project or operated a housing program in California within the past two years, preceding application due date?
F22: Project or housing program name:
F23: Describe the Project or housing program, include dates of operation.
B25: File Name: | E25: ='Document Checklist-Full List'!$B$62 -> 32. CalH Project or Housing Program | N25: ='Document Checklist-Full List'!$K$62 -> Provide documentation for the Nonprofit Corporation or Tribally Designated Housing Entity that has developed a project or operated a housing program in California within the past two years preceding application due date. | AF25: Uploaded to HCD?
F26: Does the Nonprofit Corporation or Tribally Designated Housing Entity has an existing 523 Self-Help Technical Assistance Grant Agreement with the United States Department of Agriculture (USDA)?
B27: File Name: | E27: ='Document Checklist-Full List'!$B$63 -> 33. CalH USDA Agreement | N27: ='Document Checklist-Full List'!$K$63 -> Provide a copy of the existing Grant Agreement with the USDA. | AF27: Uploaded to HCD?
D29: (b) | E29: Stability and capacity
E30: (1) | F30: To be eligible for funding, the Applicant certifies to demonstrate to the Department’s satisfaction that it has sufficient organizational stability and capacity to carry out the activity for which it is requesting funds.
E32: (2) | F32: In order to demonstrate organizational stability, the Applicant shall have been operating as a housing Developer or housing program administrator for a minimum of two years prior to the date of application. In cases of Tribal Entities, the Department may consider any experience a Tribal Entity has with the Indian Home Loan Guarantee program under Section 184 of the Housing and Community Development Act of 1992. An Applicant may subcontract with an Administrative Subcontractor to qualify toward the organizational stability and experience requirement. The Administrative Subcontractor may be located anywhere within the state of California. A legally binding agreement between the Applicant and the Administrative Subcontractor must be submitted with the application. Multiple Applicants may establish a consortium (provided there is a legally binding agreement between the parties) with a single Administrative Subcontractor. One Applicant shall apply on behalf of other entities in a consortium. In the event that an Administrative Subcontractor cannot fulfill, or fails to fulfill, its obligations under the applicable legally binding agreement for the full term thereof, a CalHome Recipient must secure a new Administrative Subcontractor and provide HCD a new legally binding agreement within 90 days of when the previous legally binding agreement terminated. The new Administrative Subcontractor is obliged to fulfill the same experience requirements as the previous Administrative Subcontractor. The Recipient is required to submit this new legally binding agreement and experience documentation to HCD for approval. If an Applicant does not have a legally binding agreement in place and approved by HCD, within 90 days of losing their Administrative Subcontractor, their CalHome awarded funds will be disencumbered.
F33: Has the Applicant been operating as a housing Developer or housing program administrator for a minimum of two years preceding the Application due date?
F34: Applicant has been operating as a: | V34: for at least two years preceding the Application due date.
B35: File Name: | E35: ='Document Checklist-Full List'!$B$64 ->  | N35: ='Document Checklist-Full List'!$K$64 -> Provide documentation that the Applicant has been operating as a housing Developer or housing program administrator for a minimum of two years preceding the Application due date. | AF35: Uploaded to HCD?
F36: Does the Tribal Entity have any experience with §184 Indian Home Loan Guarantee program?
B37: File Name: | E37: ='Document Checklist-Full List'!$B$66 -> 36. CalH 184 IHLGP | N37: ='Document Checklist-Full List'!$K$66 -> Provide documentation that the Applicant/Tribal Entity have experience with §184 Indian Home Loan Guarantee program. | AF37: Uploaded to HCD?
F38: Will the Applicant/Locality subcontract with an Administrative Subcontractor to qualify toward the organizational stability and experience requirement?
F39: Administrative subcontractor has been operating as a: | Z39: for at least two years preceding the Application due date.
B40: File Name: | E40: ='Document Checklist-Full List'!$B$65 -> 35. CalH AS binding agreement | N40: ='Document Checklist-Full List'!$K$65 -> Provide an executed binding agreement between the Applicant and Administrative Subcontractor. | AF40: Uploaded to HCD?
F41: Provide the name(s) of the Administrative Subcontractors
E42: AS1 | F42: Name: | Q42: Address: | AE42: Entity type:
E43: AS2 | F43: Name: | Q43: Address: | AE43: Entity type:
E44: AS3 | F44: Name: | Q44: Address: | AE44: Entity type:
B45: File Name: | E45: ='Document Checklist-Full List'!$B$58 -> 28. CalH AS1 Certificate of GS 28. CalH AS2 Certificate of GS 28. CalH AS3 Certificate of GS | N45: ='Document Checklist-Full List'!$K$58 -> Provide a Certificate of Good Standing for each Admistrative Subcontractor; must be dated 30 days or less from the application due date. | AF45: Uploaded to HCD?
F46: =CONCATENATE("Is the ",vmApplicant1," ","in a consortium of localities (provided there is a legally binding agreement between the parties) with a single administrator?") -> Is the in a consortium of localities (provided there is a legally binding agreement between the parties) with a single administrator?
F47: =CONCATENATE("Is the ",vmApplicant1," ","applying on behalf of other localities in a consortium and may serve all localities?") -> Is the applying on behalf of other localities in a consortium and may serve all localities?
B48: File Name: | E48: ='Document Checklist-Full List'!$B$59 -> 29. CalH Consortium Agreement | N48: ='Document Checklist-Full List'!$K$59 -> Provide the legally binding agreement between the parties. | AF48: Uploaded to HCD?
E50: (3) | F50: A Nonprofit Corporation must be a corporation whose exempt purposes for the two years prior to the date of application have included the activity for which it is applying.
B51: File Name: | E51: ='Document Checklist-Full List'!$B$67 -> 37. CalH Nonprofit Activity - 2 years | N51: ='Document Checklist-Full List'!$K$67 -> Provide documentation that the Applicant, for the two years preceding the application date, have included the activity for which it is applying. | AF51: Uploaded to HCD?
E53: (4) | F53: A Nonprofit Corporation shall also demonstrate financial stability to the Department’s satisfaction through audited financial statements submitted for Department review as part of its application for funding.
B54: File Name: | E54: ='Document Checklist-Full List'!$B$68 -> 38. CalH Audited Financial Statements | N54: ='Document Checklist-Full List'!$K$68 -> Provide a copy of audited financial statements (most recent 2 years) | AF54: Uploaded to HCD?
E56: (5) | F56: The Applicant certifies to meet the additional stability and capacity requirements set forth in these Guidelines for the specific activity for which it is applying.
E58: (6) | F58: Applicant acknowledges and understand that to the extent necessary to address a presidential declaration of disaster or emergency, or a “state of emergency” or a “local emergency” declared by the Governor under Government Code (“GC”) §8571, the Department may alter or waive state-required criteria set forth in this subsection (b), to the extent otherwise allowed by law.
D60: (c) | E60: Reporting requirements
E61: (1) | F61: Recipients shall submit outstanding reports from previous CalHome Program loans and/or grants to the Department by the application date (as specified in the NOFA). Failure to submit the reports by the application date will make the Recipients ineligible for a CalHome Program Award.
F62: Does the Applicant/Recipient have previous loans and/or grants from the CalHome Program?
F63: Applicant/Recipient certifies to have submitted all outstanding reports from previous CalHome Program loans and/or grants to the Department by the application date?
F64: Provide a list of all loans and/or grants, award date(s), loan and/or grant numbers, and describe the activities therein.
D67: (d) | E67: Community-Based Developers
E68: (1) | F68: Applicant acknowledges that solely for the purpose of applying to the Community-Based Developer funding target, a Community-Based Developer shall qualify on its own as an eligible Applicant so long as the Community-Based Developer meets the experience requirements set forth in Appendix A.
F69: Note: these experience requirements are being requested to "Project Overview" sheet.
B71: (d) | C71: The activity is eligible (Guidelines §201).
C72: §201 Eligible Activities
C73: Applicant acknowledges its intent to apply to the CalHome Program and the following activities:
D74: (a) | E74: Homeownership Development Project Loans
E75: §400.5(a) | F75: Applicant acknowledges that the Department may make Predevelopment Loans to eligible Applicants for development of Homeownership Development Projects, including Program eligible Housing Developments that include ADUs or JADUs, or make permanent Loans for Mutual Housing and limited equity housing cooperatives.
E76: §400.5(b) | F76: Proposed development projects shall be ineligible to receive funding if Predevelopment Work has begun or will begin prior to the application due date. “Predevelopment Work” includes grading; site preparation (with the exception of demolition or clearing of property); or site improvements intended for public dedication.
F77: Has the Applicant completed or will complete any construction work at the development site preceding application date?
B78: File Name: | E78: ='Document Checklist-Full List'!$B$69 -> 39. CalH Construction Work Exception | N78: ='Document Checklist-Full List'!$K$69 -> Provide an explanation how the Project meets the exceptions specified in program Guidelines §201(a)(2). | AF78: Uploaded to HCD?
D79: (b) | E79: Self Help Technical Assistance Grants.
D80: (c) | E80: Mortgage Assistance Grants.
D81: (d) | E81: Owner-Occupied Rehabilitation Grants.
D82: (e) | E82: Shared Housing Grants.
D83: (f) | E83: Accessory Dwelling Units/Junior Accessory Dwelling Units Grants.
B85: (e) | C85: The proposed use of funds is eligible (Guidelines §202).
C86: §202 Eligible and Ineligible Uses of Funds.
D87: (a) | E87: Eligible uses of funds for specific activities are set forth in the Guideline provisions that directly address each activity.
E88: The Applicant acknowledges that the CalHome Program funds in support of a Homeownership Development Project shall be used only for the following costs: §400.2 (a-j).
E89: The Applicant acknowledges that the CalHome Program funds in support of a Self-Help Technical Assistance project shall be used only for the following costs of direct services. Indirect costs are not permitted: §401.2 (a-d).
E90: The Applicant acknowledges that the CalHome Program funds in support of a Mortgage Assistance program shall be used only for the following costs: §402.2 (a-d).
E91: The Applicant acknowledges that the CalHome Program funds in support of an Owner-Occupied Rehabilitation program shall be used only for the following costs: §403.2 (a-h).
E92: The Applicant acknowledges that the CalHome Program Shared Housing Technical Assistance funds shall be used only for the following costs: §404.2 (a-b).
E93: The Applicant acknowledges that the CalHome Program funds in support of an ADU/JADU Program shall be used only for the following costs: §405.2 (a-f).
D95: (b) | E95: Applicant acknowledges that CalHome Program funds shall not be used for any of the following costs that may be incurred in the Local Program or the project: §202 (b)(1-7).
B97: (f) | C97: The Applicant meets the eligibility requirements for the activity or activities for which they are applying:
C98: (1) | D98: First-Time Homebuyer Mortgage Assistance (Guidelines §402.1)
D99: §402.1 Eligible Applicant
D100: In addition to the requirements of §200, to be eligible to apply for CalHome Program funding for a Mortgage Assistance program, the Applicant or its Administrative Subcontractor shall have successfully administered a homebuyer program for a minimum of two years within the four years immediately preceding the application.
D101: Applicant or its Administrative Subcontractor certifies to have successfully administered a homebuyer program for a minimum of two years within the four years immediately preceding the application?
D102: Program name: | P102: Asstd. Units | U102: Start date: | AA102: End date: | AG102: Meet requirement? | AL102: =IF(OR($X$102="",YEARFRAC($X$102,Appduedate)<2),FALSE,IF(YEARFRAC(Edate,IF($AD$102="",Appduedate,$AD$102),1)<2,FALSE,TRUE)) -> FALSE
D103: Describe in detail the administered homebuyer program:
C106: (2) | D106: Owner-Occupied Rehabilitation Assistance (Guidelines §403.1).
D107: §403.1 Eligible Applicant
D108: In addition to the requirements of §200, to be eligible to apply for CalHome Program assistance for an Owner-Occupied Rehabilitation Program, the Applicant or its Administrative Subcontractor shall have successfully administered a local Owner-Occupied Rehabilitation Program for a minimum of two years within the four years immediately preceding the application.
D109: Applicant or its Administrative Subcontractor certifies to have successfully administered a local Owner-Occupied Rehabilitation Program for a minimum of two years within the four years immediately preceding the application?
D110: Program name: | P110: Asstd. Units | U110: Start date: | AA110: End date: | AG110: Meet requirement? | AL110: =IF(OR($X$110="",YEARFRAC($X$110,Appduedate)<2),FALSE,IF(YEARFRAC(Edate,IF($AD$110="",Appduedate,$AD$110),1)<2,FALSE,TRUE)) -> FALSE
D111: Describe in detail the administered local Owner-Occupied Rehabilitation Program:
C114: (3) | D114: Technical Assistance for Self-Help Housing Projects (Guidelines §401.1).
D115: §401.1 Eligible Applicant
D116: In addition to meeting the requirements of §200 of these Guidelines, to be eligible to apply for CalHome Program assistance for a Self-Help Technical Assistance project, the Applicant shall meet the criteria set forth in the California Code of Regulations (CCR), Title 25, Division 1, Chapter 7, Subchapter 6.5, Article 1, §7532 “Eligible Sponsors”, and have successfully completed a minimum of two Self-Help Construction projects within the four years immediately preceding the application.
D117: §7532 “Eligible Sponsors” means local public entities or nonprofit corporations including cooperatives that are engaged in, or will be engaged in developing, conducting, administering or coordinating programs of assistance which will aid eligible households construct or rehabilitate residential units for their own use.
D118: Does the Applicant meet the definition for "Eligible Sponsors" as stated above?
D119: Applicant/Sponsor certifies to have successfully completed a minimum of two Self-Help Construction projects within the four years immediately preceding the application?
D120: Project name: | P120: Asstd. Units | U120: Start date: | AA120: End date: | AG120: Meet requirement? | AL120: =IF(OR($AD$120<Edate,$AD$120=""),FALSE,TRUE) -> FALSE
D121: Project name: | P121: Asstd. Units | U121: Start date: | AA121: End date: | AG121: Meet requirement? | AL121: =IF(OR($AD$121<Edate,$AD$121=""),FALSE,TRUE) -> FALSE
D122: Describe in detail the completed two Self-Help Construction projects:
D123: SH project #1
D124: SH project #2
C126: (4) | D126: Technical Assistance for Shared Housing Programs (Guidelines §404.1).
D127: §404.1 Eligible Applicant
D128: In addition to the requirements of §200, to be eligible to apply for CalHome Program assistance for a Shared Housing program, the Applicant or its Administrative Subcontractor shall have successfully administered a Shared Housing program for renters or homeowners for a minimum of two years immediately preceding the application.
D129: Applicant or its Administrative Subcontractor certifies to have successfully administered a Shared Housing program for renters or homeowners for a minimum of two years immediately preceding the application?
D130: Program name: | P130: Asstd. Units | U130: Start date: | AA130: End date: | AG130: Meet requirement? | AL130: =IF(OR($X$130="",YEARFRAC($X$130,Appduedate)<2),FALSE,IF(YEARFRAC(Edate,IF($AD$130="",Appduedate,$AD$130),1)<2,FALSE,TRUE)) -> FALSE
D131: Describe in detail the administered Shared Housing program for renters or homeowners:
C134: (5) | D134: ADU/JADU Assistance (Guidelines §405.1).
D135: §405.1 Eligible Applicant
D136: In addition to the requirements of §200, to be eligible to apply for CalHome Program assistance for an ADU/JADU Program, the Applicant or its Administrative Subcontractor shall have successfully administered a local Owner-Occupied Rehabilitation Program, new construction development involving multiple Homeownership units (including single-family subdivisions), or an ADU/JADU Program for a minimum of two years within the four years immediately preceding the application.
